Workbook

Sheet Total Sch 1 - Line 11 Combined
A2: Transmission Revenue Summary
E3: Values
A4: Year | B4: Type | C4: Affiliate | D4: Product | E4: JAN | F4: FEB | G4: MAR | H4: APR | I4: MAY' | J4: JUN | K4: JUL | L4: AUG | M4: SEP | N4: OCT | O4: NOV | P4: DEC | Q4: YEAR Total'
A5: 2017 | B5: Schedule 1 | C5: KU | D5: FNO | E5: 39321.07672 | F5: 34558.74798 | G5: 35644.98694 | H5: 28148.4717 | I5: 33710.12014 | J5: 40567.57523 | K5: 43295.47349 | L5: 39722.56016 | M5: 38909.34331 | N5: 30713.1343 | O5: 33057.49944 | P5: 40135.62993 | Q5: 437784.6194
D6: LFP | E6: 13342.212 | F6: 13342.212 | G6: 13342.212 | H6: 13342.212 | I6: 13342.212 | J6: 13444.8444 | K6: 13285.4436 | L6: 13285.4436 | M6: 13285.4436 | N6: 13285.4436 | O6: 13285.4436 | P6: 13285.4436 | Q6: 159868.566
D7: NF | E7: 1088.738973 | F7: 21.434382 | G7: 1421.517951 | H7: 824.434227 | I7: 802.993266 | J7: 105.158736 | K7: 26.179527 | L7: 5.194299 | M7: 108.345666 | N7: 54.315855 | O7: 15.296853 | P7: 50.018694 | Q7: 4523.628429
D8: SFP | E8: 2565.81 | F8: 2565.81 | G8: 248.6862 | H8: 0 | I8: 3070.504827 | J8: 0 | K8: 8.418795 | L8: 84.207453 | M8: 0 | N8: 257.615127 | O8: 5211.98172 | P8: 5211.98172 | Q8: 19225.01584
C9: KU Total | E9: 56317.8377 | F9: 50488.20437 | G9: 50657.40309 | H9: 42315.11793 | I9: 50925.83024 | J9: 54117.57837 | K9: 56615.51541 | L9: 53097.40551 | M9: 52303.13258 | N9: 44310.50888 | O9: 51570.22161 | P9: 58683.07395 | Q9: 621401.8296
C10: LG&E | D10: FNO | E10: 18167.10176 | F10: 16173.88865 | G10: 16410.86132 | H10: 13568.7691 | I10: 16157.15175 | J10: 19468.30273 | K10: 21367.51188 | L10: 19723.7362 | M10: 19304.71681 | N10: 15290.64187 | O10: 15984.32589 | P10: 19173.74735 | Q10: 210790.7553
D11: LFP | E11: 6937.788 | F11: 6937.788 | G11: 6937.788 | H11: 6937.788 | I11: 6937.788 | J11: 6991.1556 | K11: 7150.5564 | L11: 7150.5564 | M11: 7150.5564 | N11: 7150.5564 | O11: 7150.5564 | P11: 7150.5564 | Q11: 84583.434
D12: NF | E12: 566.131027 | F12: 11.145618 | G12: 739.172049 | H12: 428.695773 | I12: 398.868074 | J12: 54.681264 | K12: 14.090473 | L12: 2.795701 | M12: 58.314334 | N12: 29.234145 | O12: 8.233147 | P12: 26.921306 | Q12: 2338.282911
D13: SFP | E13: 1334.19 | F13: 1334.19 | G13: 129.3138 | H13: 0 | I13: 716.942391 | J13: 0 | K13: 4.531205 | L13: 45.322547 | M13: 0 | N13: 138.654873 | O13: 2805.21828 | P13: 2805.21828 | Q13: 9313.581376
C14: LG&E Total | E14: 27005.21079 | F14: 24457.01227 | G14: 24217.13517 | H14: 20935.25287 | I14: 24210.75022 | J14: 26514.13959 | K14: 28536.68996 | L14: 26922.41084 | M14: 26513.58754 | N14: 22609.08729 | O14: 25948.33372 | P14: 29156.44334 | Q14: 307026.0536
C15: LGE | D15: FNO | E15: 2279.381511 | F15: 1796.247365 | G15: 2124.105742 | H15: 1068.101199 | I15: 1371.708107 | J15: 1626.350242 | K15: 1935.188431 | L15: 1655.933241 | M15: 1637.259078 | N15: 1239.933632 | O15: 1808.045268 | P15: 2428.246517 | Q15: 20970.50033
D16: NF | E16: 0 | F16: 0 | G16: 0 | H16: 0 | I16: 18.67866 | J16: 0 | K16: 0 | L16: 0 | M16: 0 | N16: 0 | O16: 0 | P16: 0 | Q16: 18.67866
D17: SFP | E17: 0 | F17: 0 | G17: 0 | H17: 0 | I17: 879.682782 | J17: 0 | K17: 0 | L17: 0 | M17: 0 | N17: 0 | O17: 0 | P17: 0 | Q17: 879.682782 | U17: Q1 | V17: Q2 | W17: Q3 | X17: Q4
C18: LGE Total | E18: 2279.381511 | F18: 1796.247365 | G18: 2124.105742 | H18: 1068.101199 | I18: 2270.069549 | J18: 1626.350242 | K18: 1935.188431 | L18: 1655.933241 | M18: 1637.259078 | N18: 1239.933632 | O18: 1808.045268 | P18: 2428.246517 | Q18: 21868.86177 | U18: =SUM(G18:I18) -> 5462.27649 | V18: =SUM(J18:L18) -> 5217.471914 | W18: =SUM(M18:O18) -> 4685.237978 | X18: =SUM(P18:R18) -> 24297.10829
B19: Schedule 1 Charge | C19: KU | D19: LFP | E19: 1282.91 | F19: 1282.9 | G19: 1282.9 | H19: 1282.9 | I19: 1282.9 | J19: 1292.77 | K19: 1277.45 | L19: 1277.45 | M19: 1277.45 | N19: 1277.45 | O19: 1277.44 | P19: 1277.45 | Q19: 15371.97 | U19: =SUM(G19:I19) -> 3848.7 | V19: =SUM(J19:L19) -> 3847.67 | W19: =SUM(M19:O19) -> 3832.34 | X19: =SUM(P19:R19) -> 16649.42
D20: NF | E20: 4920.55 | F20: 440.7 | G20: 3586.96 | H20: 1758.85 | I20: 2912.78 | J20: 65.18 | K20: 58.93 | L20: 21.47 | M20: 1369.33 | N20: 2163.92 | O20: 390.52 | P20: 1954.09 | Q20: 19643.28 | U20: 8258.59 | V20: 145.58 | W20: 3923.77 | X20: 21597.37
D21: SFP | E21: 0 | F21: 0 | G21: 0 | H21: 0 | I21: 1030.28 | J21: 0 | K21: 0 | L21: 0 | M21: 0 | N21: 0 | O21: 0 | P21: 0 | Q21: 1030.28 | U21: 1030.28 | V21: 0 | W21: 0 | X21: 1030.28
C22: KU Total | E22: 6203.46 | F22: 1723.6 | G22: 4869.86 | H22: 3041.75 | I22: 5225.96 | J22: 1357.95 | K22: 1336.38 | L22: 1298.92 | M22: 2646.78 | N22: 3441.37 | O22: 1667.96 | P22: 3231.54 | Q22: 36045.53 | U22: 13137.57 | V22: 3993.25 | W22: 7756.11 | X22: 39277.07
C23: LG&E | D23: LFP | E23: 667.09 | F23: 667.1 | G23: 667.1 | H23: 667.1 | I23: 667.1 | J23: 672.23 | K23: 687.55 | L23: 687.55 | M23: 687.55 | N23: 687.55 | O23: 687.56 | P23: 687.55 | Q23: 8133.03 | U23: 2001.3 | V23: 2047.33 | W23: 2062.66 | X23: 8820.58
D24: NF | E24: 2558.63 | F24: 229.15 | G24: 1865.17 | H24: 914.58 | I24: 1514.61 | J24: 33.89 | K24: 31.72 | L24: 11.55 | M24: 737 | N24: 1164.67 | O24: 210.19 | P24: 1051.74 | Q24: 10322.9 | U24: 4294.36 | V24: 77.16 | W24: 2111.86 | X24: 11374.64
D25: SFP | E25: 0 | F25: 0 | G25: 0 | H25: 0 | I25: 535.73 | J25: 0 | K25: 0 | L25: 0 | M25: 0 | N25: 0 | O25: 0 | P25: 0 | Q25: 535.73 | U25: 535.73 | V25: 0 | W25: 0 | X25: 535.73
C26: LG&E Total | E26: 3225.72 | F26: 896.25 | G26: 2532.27 | H26: 1581.68 | I26: 2717.44 | J26: 706.12 | K26: 719.27 | L26: 699.1 | M26: 1424.55 | N26: 1852.22 | O26: 897.75 | P26: 1739.29 | Q26: 18991.66 | U26: 6831.39 | V26: 2124.49 | W26: 4174.52 | X26: 20730.95
A27: 2017 Total | E27: 95031.61 | F27: 79361.314 | G27: 84400.774 | H27: 68941.902 | I27: 85350.05 | J27: 84322.1382 | K27: 89143.0438 | L27: 83673.7696 | M27: 84525.3092 | N27: 73453.1198 | O27: 81892.3106 | P27: 95238.5938 | Q27: 1005333.935 | U27: 238692.726 | V27: 257138.9516 | W27: 239870.7396 | X27: 1100572.529
U28: 0 | V28: 0 | W28: 0 | X28: 0
B29: Gross Schedule 1 Revenue - excludes MISO depancaking costs - Combined

Sheet Total Sch 1 - Line 11 KU
A2: Transmission Revenue Summary
E3: Values
A4: Year | B4: Type | C4: Affiliate | D4: Product | E4: JAN | F4: FEB | G4: MAR | H4: APR | I4: MAY' | J4: JUN | K4: JUL | L4: AUG | M4: SEP | N4: OCT | O4: NOV | P4: DEC | Q4: YEAR Total'
A5: 2017 | B5: Schedule 1 | C5: KU | D5: FNO | E5: 39321.07672 | F5: 34558.74798 | G5: 35644.98694 | H5: 28148.4717 | I5: 33710.12014 | J5: 40567.57523 | K5: 43295.47349 | L5: 39722.56016 | M5: 38909.34331 | N5: 30713.1343 | O5: 33057.49944 | P5: 40135.62993 | Q5: 437784.6194
D6: LFP | E6: 13342.212 | F6: 13342.212 | G6: 13342.212 | H6: 13342.212 | I6: 13342.212 | J6: 13444.8444 | K6: 13285.4436 | L6: 13285.4436 | M6: 13285.4436 | N6: 13285.4436 | O6: 13285.4436 | P6: 13285.4436 | Q6: 159868.566
D7: NF | E7: 1088.738973 | F7: 21.434382 | G7: 1421.517951 | H7: 824.434227 | I7: 802.993266 | J7: 105.158736 | K7: 26.179527 | L7: 5.194299 | M7: 108.345666 | N7: 54.315855 | O7: 15.296853 | P7: 50.018694 | Q7: 4523.628429
D8: SFP | E8: 2565.81 | F8: 2565.81 | G8: 248.6862 | H8: 0 | I8: 3070.504827 | J8: 0 | K8: 8.418795 | L8: 84.207453 | M8: 0 | N8: 257.615127 | O8: 5211.98172 | P8: 5211.98172 | Q8: 19225.01584
C9: KU Total | E9: 56317.8377 | F9: 50488.20437 | G9: 50657.40309 | H9: 42315.11793 | I9: 50925.83023 | J9: 54117.57837 | K9: 56615.51541 | L9: 53097.40551 | M9: 52303.13258 | N9: 44310.50888 | O9: 51570.22161 | P9: 58683.07395 | Q9: 621401.8296
B10: Schedule 1 Charge | C10: KU | D10: LFP | E10: 1282.91 | F10: 1282.9 | G10: 1282.9 | H10: 1282.9 | I10: 1282.9 | J10: 1292.77 | K10: 1277.45 | L10: 1277.45 | M10: 1277.45 | N10: 1277.45 | O10: 1277.44 | P10: 1277.45 | Q10: 15371.97
D11: NF | E11: 4920.55 | F11: 440.7 | G11: 3586.96 | H11: 1758.85 | I11: 2912.78 | J11: 65.18 | K11: 58.93 | L11: 21.47 | M11: 1369.33 | N11: 2163.92 | O11: 390.52 | P11: 1954.09 | Q11: 19643.28
D12: SFP | E12: 0 | F12: 0 | G12: 0 | H12: 0 | I12: 1030.28 | J12: 0 | K12: 0 | L12: 0 | M12: 0 | N12: 0 | O12: 0 | P12: 0 | Q12: 1030.28
C13: KU Total | E13: 6203.46 | F13: 1723.6 | G13: 4869.86 | H13: 3041.75 | I13: 5225.96 | J13: 1357.95 | K13: 1336.38 | L13: 1298.92 | M13: 2646.78 | N13: 3441.37 | O13: 1667.96 | P13: 3231.54 | Q13: 36045.53
A14: 2017 Total | E14: 62521.2977 | F14: 52211.80437 | G14: 55527.26309 | H14: 45356.86793 | I14: 56151.79023 | J14: 55475.52837 | K14: 57951.89541 | L14: 54396.32551 | M14: 54949.91258 | N14: 47751.87888 | O14: 53238.18161 | P14: 61914.61395 | Q14: 657447.3596
B16: Gross Schedule 1 Revenue - excludes MISO depancaking costs - KU Only
U17: Q1 | V17: Q2 | W17: Q3 | X17: Q4
U18: =SUM(G18:I18) -> 0 | V18: =SUM(J18:L18) -> 0 | W18: =SUM(M18:O18) -> 0 | X18: =SUM(P18:R18) -> 0
U19: =SUM(G19:I19) -> 0 | V19: =SUM(J19:L19) -> 0 | W19: =SUM(M19:O19) -> 0 | X19: =SUM(P19:R19) -> 0
U20: 0 | V20: 0 | W20: 0 | X20: 0
U21: 0 | V21: 0 | W21: 0 | X21: 0
U22: 0 | V22: 0 | W22: 0 | X22: 0
U23: 0 | V23: 0 | W23: 0 | X23: 0
U24: 0 | V24: 0 | W24: 0 | X24: 0
U25: 0 | V25: 0 | W25: 0 | X25: 0
U26: 0 | V26: 0 | W26: 0 | X26: 0
U27: 0 | V27: 0 | W27: 0 | X27: 0
U28: 0 | V28: 0 | W28: 0 | X28: 0

Sheet Total Sch 1 - Line 11 LGE
A2: Transmission Revenue Summary
E3: Values
A4: Year | B4: Type | C4: Affiliate | D4: Product | E4: JAN | F4: FEB | G4: MAR | H4: APR | I4: MAY' | J4: JUN | K4: JUL | L4: AUG | M4: SEP | N4: OCT | O4: NOV | P4: DEC | Q4: YEAR Total'
A5: 2017 | B5: Schedule 1 | C5: LG&E | D5: FNO | E5: 18167.10176 | F5: 16173.88865 | G5: 16410.86132 | H5: 13568.7691 | I5: 16157.15175 | J5: 19468.30273 | K5: 21367.51188 | L5: 19723.7362 | M5: 19304.71681 | N5: 15290.64187 | O5: 15984.32589 | P5: 19173.74735 | Q5: 210790.7553
D6: LFP | E6: 6937.788 | F6: 6937.788 | G6: 6937.788 | H6: 6937.788 | I6: 6937.788 | J6: 6991.1556 | K6: 7150.5564 | L6: 7150.5564 | M6: 7150.5564 | N6: 7150.5564 | O6: 7150.5564 | P6: 7150.5564 | Q6: 84583.434
D7: NF | E7: 566.131027 | F7: 11.145618 | G7: 739.172049 | H7: 428.695773 | I7: 398.868074 | J7: 54.681264 | K7: 14.090473 | L7: 2.795701 | M7: 58.314334 | N7: 29.234145 | O7: 8.233147 | P7: 26.921306 | Q7: 2338.282911
D8: SFP | E8: 1334.19 | F8: 1334.19 | G8: 129.3138 | H8: 0 | I8: 716.942391 | J8: 0 | K8: 4.531205 | L8: 45.322547 | M8: 0 | N8: 138.654873 | O8: 2805.21828 | P8: 2805.21828 | Q8: 9313.581376
C9: LG&E Total | E9: 27005.21079 | F9: 24457.01227 | G9: 24217.13517 | H9: 20935.25287 | I9: 24210.75022 | J9: 26514.13959 | K9: 28536.68996 | L9: 26922.41084 | M9: 26513.58754 | N9: 22609.08729 | O9: 25948.33372 | P9: 29156.44334 | Q9: 307026.0536
C10: LGE | D10: FNO | E10: 2279.381511 | F10: 1796.247365 | G10: 2124.105742 | H10: 1068.101199 | I10: 1371.708107 | J10: 1626.350242 | K10: 1935.188431 | L10: 1655.933241 | M10: 1637.259078 | N10: 1239.933632 | O10: 1808.045268 | P10: 2428.246517 | Q10: 20970.50033
D11: NF | E11: 0 | F11: 0 | G11: 0 | H11: 0 | I11: 18.67866 | J11: 0 | K11: 0 | L11: 0 | M11: 0 | N11: 0 | O11: 0 | P11: 0 | Q11: 18.67866
D12: SFP | E12: 0 | F12: 0 | G12: 0 | H12: 0 | I12: 879.682782 | J12: 0 | K12: 0 | L12: 0 | M12: 0 | N12: 0 | O12: 0 | P12: 0 | Q12: 879.682782
C13: LGE Total | E13: 2279.381511 | F13: 1796.247365 | G13: 2124.105742 | H13: 1068.101199 | I13: 2270.069549 | J13: 1626.350242 | K13: 1935.188431 | L13: 1655.933241 | M13: 1637.259078 | N13: 1239.933632 | O13: 1808.045268 | P13: 2428.246517 | Q13: 21868.86177
B14: Schedule 1 Charge | C14: LG&E | D14: LFP | E14: 667.09 | F14: 667.1 | G14: 667.1 | H14: 667.1 | I14: 667.1 | J14: 672.23 | K14: 687.55 | L14: 687.55 | M14: 687.55 | N14: 687.55 | O14: 687.56 | P14: 687.55 | Q14: 8133.03
D15: NF | E15: 2558.63 | F15: 229.15 | G15: 1865.17 | H15: 914.58 | I15: 1514.61 | J15: 33.89 | K15: 31.72 | L15: 11.55 | M15: 737 | N15: 1164.67 | O15: 210.19 | P15: 1051.74 | Q15: 10322.9
D16: SFP | E16: 0 | F16: 0 | G16: 0 | H16: 0 | I16: 535.73 | J16: 0 | K16: 0 | L16: 0 | M16: 0 | N16: 0 | O16: 0 | P16: 0 | Q16: 535.73
C17: LG&E Total | E17: 3225.72 | F17: 896.25 | G17: 2532.27 | H17: 1581.68 | I17: 2717.44 | J17: 706.12 | K17: 719.27 | L17: 699.1 | M17: 1424.55 | N17: 1852.22 | O17: 897.75 | P17: 1739.29 | Q17: 18991.66 | U17: Q1 | V17: Q2 | W17: Q3 | X17: Q4
A18: 2017 Total | E18: 32510.3123 | F18: 27149.50963 | G18: 28873.51091 | H18: 23585.03407 | I18: 29198.25976 | J18: 28846.60983 | K18: 31191.14839 | L18: 29277.44409 | M18: 29575.39662 | N18: 25701.24092 | O18: 28654.12899 | P18: 33323.97985 | Q18: 347886.5754 | U18: =SUM(G18:I18) -> 81656.80475 | V18: =SUM(J18:L18) -> 89315.20231 | W18: =SUM(M18:O18) -> 83930.76653 | X18: =SUM(P18:R18) -> 381210.5552
U19: =SUM(G19:I19) -> 0 | V19: =SUM(J19:L19) -> 0 | W19: =SUM(M19:O19) -> 0 | X19: =SUM(P19:R19) -> 0
B20: Gross Schedule 1 Revenue - excludes MISO depancaking costs - LGE Only | U20: 0 | V20: 0 | W20: 0 | X20: 0
U21: 0 | V21: 0 | W21: 0 | X21: 0
U22: 0 | V22: 0 | W22: 0 | X22: 0
U23: 0 | V23: 0 | W23: 0 | X23: 0
U24: 0 | V24: 0 | W24: 0 | X24: 0
U25: 0 | V25: 0 | W25: 0 | X25: 0
U26: 0 | V26: 0 | W26: 0 | X26: 0
U27: 0 | V27: 0 | W27: 0 | X27: 0
U28: 0 | V28: 0 | W28: 0 | X28: 0

Sheet Total Sch 1 - Line 12 Combined
A2: Transmission Revenue Summary
E3: Values
A4: Year | B4: Type | C4: Affiliate | D4: Product | E4: JAN | F4: FEB | G4: MAR | H4: APR | I4: MAY' | J4: JUN | K4: JUL | L4: AUG | M4: SEP | N4: OCT | O4: NOV | P4: DEC | Q4: YEAR Total'
A5: 2017 | B5: Schedule 1 | C5: KU | D5: FNO | E5: 39321.07672 | F5: 34558.74798 | G5: 35644.98694 | H5: 28148.4717 | I5: 33710.12014 | J5: 40567.57523 | K5: 43295.47349 | L5: 39722.56016 | M5: 38909.34331 | N5: 30713.1343 | O5: 33057.49944 | P5: 40135.62993 | Q5: 437784.6194
D6: LFP | E6: 13342.212 | F6: 13342.212 | G6: 13342.212 | H6: 13342.212 | I6: 13342.212 | J6: 13444.8444 | K6: 13285.4436 | L6: 13285.4436 | M6: 13285.4436 | N6: 13285.4436 | O6: 13285.4436 | P6: 13285.4436 | Q6: 159868.566
C7: KU Total | E7: 52663.28872 | F7: 47900.95998 | G7: 48987.19894 | H7: 41490.6837 | I7: 47052.33214 | J7: 54012.41963 | K7: 56580.91709 | L7: 53008.00376 | M7: 52194.78691 | N7: 43998.5779 | O7: 46342.94304 | P7: 53421.07353 | Q7: 597653.1854
C8: LG&E | D8: FNO | E8: 18167.10176 | F8: 16173.88865 | G8: 16410.86132 | H8: 13568.7691 | I8: 16157.15175 | J8: 19468.30273 | K8: 21367.51188 | L8: 19723.7362 | M8: 19304.71681 | N8: 15290.64187 | O8: 15984.32589 | P8: 19173.74735 | Q8: 210790.7553
D9: LFP | E9: 6937.788 | F9: 6937.788 | G9: 6937.788 | H9: 6937.788 | I9: 6937.788 | J9: 6991.1556 | K9: 7150.5564 | L9: 7150.5564 | M9: 7150.5564 | N9: 7150.5564 | O9: 7150.5564 | P9: 7150.5564 | Q9: 84583.434
C10: LG&E Total | E10: 25104.88976 | F10: 23111.67665 | G10: 23348.64932 | H10: 20506.5571 | I10: 23094.93975 | J10: 26459.45833 | K10: 28518.06828 | L10: 26874.2926 | M10: 26455.27321 | N10: 22441.19827 | O10: 23134.88229 | P10: 26324.30375 | Q10: 295374.1893
C11: LGE | D11: FNO | E11: 2279.381511 | F11: 1796.247365 | G11: 2124.105742 | H11: 1068.101199 | I11: 1371.708107 | J11: 1626.350242 | K11: 1935.188431 | L11: 1655.933241 | M11: 1637.259078 | N11: 1239.933632 | O11: 1808.045268 | P11: 2428.246517 | Q11: 20970.50033
C12: LGE Total | E12: 2279.381511 | F12: 1796.247365 | G12: 2124.105742 | H12: 1068.101199 | I12: 1371.708107 | J12: 1626.350242 | K12: 1935.188431 | L12: 1655.933241 | M12: 1637.259078 | N12: 1239.933632 | O12: 1808.045268 | P12: 2428.246517 | Q12: 20970.50033
B13: Schedule 1 Charge | C13: KU | D13: LFP | E13: 1282.91 | F13: 1282.9 | G13: 1282.9 | H13: 1282.9 | I13: 1282.9 | J13: 1292.77 | K13: 1277.45 | L13: 1277.45 | M13: 1277.45 | N13: 1277.45 | O13: 1277.44 | P13: 1277.45 | Q13: 15371.97
C14: KU Total | E14: 1282.91 | F14: 1282.9 | G14: 1282.9 | H14: 1282.9 | I14: 1282.9 | J14: 1292.77 | K14: 1277.45 | L14: 1277.45 | M14: 1277.45 | N14: 1277.45 | O14: 1277.44 | P14: 1277.45 | Q14: 15371.97
C15: LG&E | D15: LFP | E15: 667.09 | F15: 667.1 | G15: 667.1 | H15: 667.1 | I15: 667.1 | J15: 672.23 | K15: 687.55 | L15: 687.55 | M15: 687.55 | N15: 687.55 | O15: 687.56 | P15: 687.55 | Q15: 8133.03
C16: LG&E Total | E16: 667.09 | F16: 667.1 | G16: 667.1 | H16: 667.1 | I16: 667.1 | J16: 672.23 | K16: 687.55 | L16: 687.55 | M16: 687.55 | N16: 687.55 | O16: 687.56 | P16: 687.55 | Q16: 8133.03
A17: 2017 Total | E17: 81997.56 | F17: 74758.884 | G17: 76409.954 | H17: 65015.342 | I17: 73468.98 | J17: 84063.2282 | K17: 88999.1738 | L17: 83503.2296 | M17: 82252.3192 | N17: 69644.7098 | O17: 73250.8706 | P17: 84138.6238 | Q17: 937502.875 | U17: Q1 | V17: Q2 | W17: Q3 | X17: Q4
U18: =SUM(G18:I18) -> 0 | V18: =SUM(J18:L18) -> 0 | W18: =SUM(M18:O18) -> 0 | X18: =SUM(P18:R18) -> 0
B19: Gross Schedule 1 Revenue - excludes MISO depancaking costs - Excludes NF and SFP - Combined | U19: =SUM(G19:I19) -> 0 | V19: =SUM(J19:L19) -> 0 | W19: =SUM(M19:O19) -> 0 | X19: =SUM(P19:R19) -> 0
U20: 0 | V20: 0 | W20: 0 | X20: 0
U21: 0 | V21: 0 | W21: 0 | X21: 0
U22: 0 | V22: 0 | W22: 0 | X22: 0
U23: 0 | V23: 0 | W23: 0 | X23: 0
U24: 0 | V24: 0 | W24: 0 | X24: 0
U25: 0 | V25: 0 | W25: 0 | X25: 0
U26: 0 | V26: 0 | W26: 0 | X26: 0
U27: 0 | V27: 0 | W27: 0 | X27: 0
U28: 0 | V28: 0 | W28: 0 | X28: 0

Sheet Total Sch 1 - Line 12 - KU
A2: Transmission Revenue Summary
E3: Values
A4: Year | B4: Type | C4: Affiliate | D4: Product | E4: JAN | F4: FEB | G4: MAR | H4: APR | I4: MAY' | J4: JUN | K4: JUL | L4: AUG | M4: SEP | N4: OCT | O4: NOV | P4: DEC | Q4: YEAR Total'
A5: 2017 | B5: Schedule 1 | C5: KU | D5: FNO | E5: 39321.07672 | F5: 34558.74798 | G5: 35644.98694 | H5: 28148.4717 | I5: 33710.12014 | J5: 40567.57523 | K5: 43295.47349 | L5: 39722.56016 | M5: 38909.34331 | N5: 30713.1343 | O5: 33057.49944 | P5: 40135.62993 | Q5: 437784.6194
D6: LFP | E6: 13342.212 | F6: 13342.212 | G6: 13342.212 | H6: 13342.212 | I6: 13342.212 | J6: 13444.8444 | K6: 13285.4436 | L6: 13285.4436 | M6: 13285.4436 | N6: 13285.4436 | O6: 13285.4436 | P6: 13285.4436 | Q6: 159868.566
C7: KU Total | E7: 52663.28872 | F7: 47900.95998 | G7: 48987.19894 | H7: 41490.6837 | I7: 47052.33214 | J7: 54012.41963 | K7: 56580.91709 | L7: 53008.00376 | M7: 52194.78691 | N7: 43998.5779 | O7: 46342.94304 | P7: 53421.07353 | Q7: 597653.1854
B8: Schedule 1 Charge | C8: KU | D8: LFP | E8: 1282.91 | F8: 1282.9 | G8: 1282.9 | H8: 1282.9 | I8: 1282.9 | J8: 1292.77 | K8: 1277.45 | L8: 1277.45 | M8: 1277.45 | N8: 1277.45 | O8: 1277.44 | P8: 1277.45 | Q8: 15371.97
C9: KU Total | E9: 1282.91 | F9: 1282.9 | G9: 1282.9 | H9: 1282.9 | I9: 1282.9 | J9: 1292.77 | K9: 1277.45 | L9: 1277.45 | M9: 1277.45 | N9: 1277.45 | O9: 1277.44 | P9: 1277.45 | Q9: 15371.97
A10: 2017 Total | E10: 53946.19872 | F10: 49183.85998 | G10: 50270.09894 | H10: 42773.5837 | I10: 48335.23214 | J10: 55305.18963 | K10: 57858.36709 | L10: 54285.45376 | M10: 53472.23691 | N10: 45276.0279 | O10: 47620.38304 | P10: 54698.52353 | Q10: 613025.1554
B12: Gross Schedule 1 Revenue - excludes MISO depancaking costs - Excludes NF and SFP - KU Only
U17: Q1 | V17: Q2 | W17: Q3 | X17: Q4
U18: =SUM(G18:I18) -> 0 | V18: =SUM(J18:L18) -> 0 | W18: =SUM(M18:O18) -> 0 | X18: =SUM(P18:R18) -> 0
U19: =SUM(G19:I19) -> 0 | V19: =SUM(J19:L19) -> 0 | W19: =SUM(M19:O19) -> 0 | X19: =SUM(P19:R19) -> 0
U20: 0 | V20: 0 | W20: 0 | X20: 0
U21: 0 | V21: 0 | W21: 0 | X21: 0
U22: 0 | V22: 0 | W22: 0 | X22: 0
U23: 0 | V23: 0 | W23: 0 | X23: 0
U24: 0 | V24: 0 | W24: 0 | X24: 0
U25: 0 | V25: 0 | W25: 0 | X25: 0
U26: 0 | V26: 0 | W26: 0 | X26: 0
U27: 0 | V27: 0 | W27: 0 | X27: 0
U28: 0 | V28: 0 | W28: 0 | X28: 0

Sheet Total Sch 1 - Line 12 - LGE
A2: Transmission Revenue Summary
E3: Values
A4: Year | B4: Type | C4: Affiliate | D4: Product | E4: JAN | F4: FEB | G4: MAR | H4: APR | I4: MAY' | J4: JUN | K4: JUL | L4: AUG | M4: SEP | N4: OCT | O4: NOV | P4: DEC | Q4: YEAR Total'
A5: 2017 | B5: Schedule 1 | C5: LG&E | D5: FNO | E5: 18167.10176 | F5: 16173.88865 | G5: 16410.86132 | H5: 13568.7691 | I5: 16157.15175 | J5: 19468.30273 | K5: 21367.51188 | L5: 19723.7362 | M5: 19304.71681 | N5: 15290.64187 | O5: 15984.32589 | P5: 19173.74735 | Q5: 210790.7553
D6: LFP | E6: 6937.788 | F6: 6937.788 | G6: 6937.788 | H6: 6937.788 | I6: 6937.788 | J6: 6991.1556 | K6: 7150.5564 | L6: 7150.5564 | M6: 7150.5564 | N6: 7150.5564 | O6: 7150.5564 | P6: 7150.5564 | Q6: 84583.434
C7: LG&E Total | E7: 25104.88976 | F7: 23111.67665 | G7: 23348.64932 | H7: 20506.5571 | I7: 23094.93975 | J7: 26459.45833 | K7: 28518.06828 | L7: 26874.2926 | M7: 26455.27321 | N7: 22441.19827 | O7: 23134.88229 | P7: 26324.30375 | Q7: 295374.1893
C8: LGE | D8: FNO | E8: 2279.381511 | F8: 1796.247365 | G8: 2124.105742 | H8: 1068.101199 | I8: 1371.708107 | J8: 1626.350242 | K8: 1935.188431 | L8: 1655.933241 | M8: 1637.259078 | N8: 1239.933632 | O8: 1808.045268 | P8: 2428.246517 | Q8: 20970.50033
C9: LGE Total | E9: 2279.381511 | F9: 1796.247365 | G9: 2124.105742 | H9: 1068.101199 | I9: 1371.708107 | J9: 1626.350242 | K9: 1935.188431 | L9: 1655.933241 | M9: 1637.259078 | N9: 1239.933632 | O9: 1808.045268 | P9: 2428.246517 | Q9: 20970.50033
B10: Schedule 1 Charge | C10: LG&E | D10: LFP | E10: 667.09 | F10: 667.1 | G10: 667.1 | H10: 667.1 | I10: 667.1 | J10: 672.23 | K10: 687.55 | L10: 687.55 | M10: 687.55 | N10: 687.55 | O10: 687.56 | P10: 687.55 | Q10: 8133.03
C11: LG&E Total | E11: 667.09 | F11: 667.1 | G11: 667.1 | H11: 667.1 | I11: 667.1 | J11: 672.23 | K11: 687.55 | L11: 687.55 | M11: 687.55 | N11: 687.55 | O11: 687.56 | P11: 687.55 | Q11: 8133.03
A12: 2017 Total | E12: 28051.36128 | F12: 25575.02402 | G12: 26139.85506 | H12: 22241.7583 | I12: 25133.74786 | J12: 28758.03857 | K12: 31140.80671 | L12: 29217.77584 | M12: 28780.08229 | N12: 24368.6819 | O12: 25630.48756 | P12: 29440.10027 | Q12: 324477.7196
B14: Gross Schedule 1 Revenue - excludes MISO depancaking costs - Excludes NF and SFP - LGE Only
U17: Q1 | V17: Q2 | W17: Q3 | X17: Q4
U18: =SUM(G18:I18) -> 0 | V18: =SUM(J18:L18) -> 0 | W18: =SUM(M18:O18) -> 0 | X18: =SUM(P18:R18) -> 0
U19: =SUM(G19:I19) -> 0 | V19: =SUM(J19:L19) -> 0 | W19: =SUM(M19:O19) -> 0 | X19: =SUM(P19:R19) -> 0
U20: 0 | V20: 0 | W20: 0 | X20: 0
U21: 0 | V21: 0 | W21: 0 | X21: 0
U22: 0 | V22: 0 | W22: 0 | X22: 0
U23: 0 | V23: 0 | W23: 0 | X23: 0
U24: 0 | V24: 0 | W24: 0 | X24: 0
U25: 0 | V25: 0 | W25: 0 | X25: 0
U26: 0 | V26: 0 | W26: 0 | X26: 0
U27: 0 | V27: 0 | W27: 0 | X27: 0
U28: 0 | V28: 0 | W28: 0 | X28: 0

Sheet Summary for 3rd party (hidden)
A1: Customer | B1: (Multiple Items) | D1: All but LG&E-KU
A2: Transmission Revenue Summary
C3: Values
A4: Year | B4: Product | C4: JAN | D4: FEB | E4: MAR | F4: APR | G4: MAY' | H4: JUN | I4: JUL | J4: AUG | K4: SEP | L4: OCT | M4: NOV | N4: DEC | O4: YEAR Total'
A5: 2012 | B5: Firm Other | C5: 55774.2 | D5: 57873.7 | E5: 52401.1 | F5: 38559.3 | G5: 64521.2 | H5: 55563.7 | I5: 56950.4 | J5: 57472.3 | K5: 48534.5 | L5: 34667.5 | M5: 51307.9 | N5: 54081.3 | O5: 627707.1
B6: FNO | C6: 837562.4446 | D6: 808570.2381 | E6: 670995.0243 | F6: 732735.128 | G6: 853264.83 | H6: 1068595.519 | I6: 1165822.755 | J6: 1047451.275 | K6: 1052668.157 | L6: 780744.3124 | M6: 858868.0167 | N6: 725065.313 | O6: 10602343.01
B7: LFP | C7: 64437.4 | D7: 64437.4 | E7: 64437.4 | F7: 64437.4 | G7: 64437.4 | H7: 73495.1 | I7: 73495.1 | J7: 73495.1 | K7: 211431.9 | L7: 217711.9 | M7: 217591.09 | N7: 217711.9 | O7: 1407119.09
B8: MISO | C8: -240708.77 | D8: -286956.59 | E8: -261251.95 | F8: -387828.59 | G8: -400756.25 | H8: -389447.75 | I8: -416739.72 | J8: -402734.48 | K8: -391638.82 | L8: -402817.88 | M8: -385835.09 | N8: -400953.18 | O8: -4367669.07
B9: NF | C9: 155448.016 | D9: 9138.704 | E9: 17112.61 | F9: 19359.59 | G9: 19164.775 | H9: 15414.07 | I9: 17492.606 | J9: 14192.974 | K9: 70332.344 | L9: 62811.02 | M9: 78003.926 | N9: 80095.276 | O9: 558565.911
B10: SFP | C10: 227354.6 | D10: 95004.34 | E10: 51063.6 | F10: 257682.08 | G10: 56184.65 | H10: 327431.2 | I10: 317235.23 | J10: 224412.33 | K10: 189406.22 | L10: 299212.93 | M10: 308685.16 | N10: 160630 | O10: 2514302.34
A11: 2012 Total | C11: 1099867.891 | D11: 748067.7921 | E11: 594757.7843 | F11: 724944.908 | G11: 656816.605 | H11: 1151051.839 | I11: 1214256.371 | J11: 1014289.499 | K11: 1180734.301 | L11: 992329.7824 | M11: 1128621.003 | N11: 836630.609 | O11: 11342368.38
U15: =SUM(G15:I15) -> 0 | V15: =SUM(J15:L15) -> 0 | W15: =SUM(M15:O15) -> 0 | X15: =SUM(P15:R15) -> 0

Sheet Summary for LG&E (hidden)
A1: Customer | B1: LG&E and KU Marketing
A2: Transmission Revenue Summary
C3: Values
A4: Year | B4: Other | C4: JAN | D4: FEB | E4: MAR | F4: APR | G4: MAY' | H4: JUN | I4: JUL | J4: AUG | K4: SEP | L4: OCT | M4: NOV | N4: DEC | O4: YEAR Total'
A5: 2011 | B5: Export | C5: 457180.44 | D5: 392249.32 | E5: 409998.79 | F5: 156179.15 | G5: 401426.76 | H5: 421567.29 | I5: 443427.79 | J5: 240430.25 | K5: 396819.22 | L5: 763846.3 | M5: 630274.29 | N5: 450504.56 | O5: 5163904.16
B6: Import | C6: 27399.05 | D6: 56761.31 | E6: 84226.56 | F6: 121440.2 | G6: 120402.16 | H6: 178615.61 | I6: 110181.14 | J6: 77359 | K6: 51401.8 | L6: 30566.06 | M6: 34295.17 | N6: 30395 | O6: 923043.06
A7: 2011 Total | C7: 484579.49 | D7: 449010.63 | E7: 494225.35 | F7: 277619.35 | G7: 521828.92 | H7: 600182.9 | I7: 553608.93 | J7: 317789.25 | K7: 448221.02 | L7: 794412.36 | M7: 664569.46 | N7: 480899.56 | O7: 6086947.22
A8: 2012 | B8: Export | C8: 329327.93 | D8: 142548.81 | E8: 113285.99 | F8: 114269.19 | G8: 34772 | H8: 95410.73 | I8: 152791.92 | J8: 116087.57 | K8: 144050.69 | L8: 249311.07 | M8: 275561.95 | N8: 150258.7 | O8: 1917676.55
B9: Import | C9: 30395 | D9: 30548.64 | E9: 86823.22 | F9: 119783.62 | G9: 557481.31 | H9: 225569.9 | I9: 202672.9 | J9: 160439.38 | K9: 130539.99 | L9: 98874.12 | M9: 41821.5 | N9: 138352.86 | O9: 1823302.44
A10: 2012 Total | C10: 359722.93 | D10: 173097.45 | E10: 200109.21 | F10: 234052.81 | G10: 592253.31 | H10: 320980.63 | I10: 355464.82 | J10: 276526.95 | K10: 274590.68 | L10: 348185.19 | M10: 317383.45 | N10: 288611.56 | O10: 3740978.99
U15: =SUM(G15:I15) -> 0 | V15: =SUM(J15:L15) -> 0 | W15: =SUM(M15:O15) -> 0 | X15: =SUM(P15:R15) -> 0

Sheet Data (hidden)
A1: Customer | B1: Affiliate | C1: Product | D1: Type | E1: Other | F1: Year | G1: January | H1: February | I1: March | J1: April | K1: May | L1: June | M1: July | N1: August | O1: September | P1: October | Q1: November | R1: December
A2: BREC | B2: KU | C2: FNO | D2: Transmission Charge | F2: 2017 | G2: 14370.23394 | H2: 10601.80252 | I2: 8554.256152 | J2: 12055.21485 | K2: 12952.7389 | L2: 13303.80897 | M2: 15369.54647 | N2: 15975.41829 | O2: 14814.49416 | P2: 11131.3972 | Q2: 6743.975166 | R2: 3707.395015
A3: BREC | B3: KU | C3: FNO | D3: Schedule 1 | F3: 2017 | G3: 638.932743 | H3: 471.398508 | I3: 419.713884 | J3: 535.997709 | K3: 575.919081 | L3: 540.379323 | M3: 621.859656 | N3: 646.387929 | O3: 599.379198 | P3: 450.480294 | Q3: 272.91198 | R3: 150.023577
A4: BREC | B4: KU | C4: FNO | D4: Schedule 2 | F4: 2017 | G4: 667.772032 | H4: 492.663552 | I4: 438.656128 | J4: 560.18624 | K4: 300.955968 | L4: 280.2272 | M4: 226.02124 | N4: 117.4679 | O4: 108.92478 | P4: 81.865376 | Q4: 24.798263 | R4: 13.631848
A5: BREC | B5: KU | C5: SFP | D5: Transmission Charge | F5: 2017 | G5: 0 | H5: 0 | I5: 0 | J5: 0 | K5: 0 | L5: 0 | M5: 0 | N5: 0 | O5: 0 | P5: 0 | Q5: 0 | R5: 0
A6: BREC | B6: KU | C6: SFP | D6: Schedule 1 | F6: 2017 | G6: 0 | H6: 0 | I6: 0 | J6: 0 | K6: 0 | L6: 0 | M6: 0 | N6: 0 | O6: 0 | P6: 0 | Q6: 0 | R6: 0
A7: BREC | B7: KU | C7: SFP | D7: Schedule 2 | F7: 2017 | G7: 0 | H7: 0 | I7: 0 | J7: 0 | K7: 0 | L7: 0 | M7: 0 | N7: 0 | O7: 0 | P7: 0 | Q7: 0 | R7: 0
A8: BREC | B8: KU | C8: NF | D8: Transmission Charge | F8: 2017 | G8: 0 | H8: 0 | I8: 0 | J8: 0 | K8: 0 | L8: 0 | M8: 0 | N8: 0 | O8: 0 | P8: 0 | Q8: 0 | R8: 0
A9: BREC | B9: KU | C9: NF | D9: Schedule 1 | F9: 2017 | G9: 0 | H9: 0 | I9: 0 | J9: 0 | K9: 0 | L9: 0 | M9: 0 | N9: 0 | O9: 0 | P9: 0 | Q9: 0 | R9: 0
A10: BREC | B10: KU | C10: NF | D10: Schedule 2 | F10: 2017 | G10: 0 | H10: 0 | I10: 0 | J10: 0 | K10: 0 | L10: 0 | M10: 0 | N10: 0 | O10: 0 | P10: 0 | Q10: 0 | R10: 0
A11: BREC | B11: LG&E | C11: FNO | D11: Transmission Charge | F11: 2017 | G11: 7106.726064 | H11: 5243.067483 | I11: 4230.463848 | J11: 5961.845154 | K11: 6405.711105 | L11: 6579.331026 | M11: 7787.823531 | N11: 8094.821712 | O11: 7506.575841 | P11: 5640.332799 | Q11: 3417.204834 | R11: 1878.554985
A12: BREC | B12: LG&E | C12: FNO | D12: Schedule 1 | F12: 2017 | G12: 332.237257 | H12: 245.121492 | I12: 218.246116 | J12: 278.712291 | K12: 299.470919 | L12: 280.990677 | M12: 334.700344 | N12: 347.902071 | O12: 322.600802 | P12: 242.459706 | Q12: 146.88802 | R12: 80.746423
A13: BREC | B13: LG&E | C13: FNO | D13: Schedule 2 | F13: 2017 | G13: 328.307968 | H13: 242.216448 | I13: 215.663872 | J13: 275.41376 | K13: 147.964032 | L13: 137.7728 | M13: 260.77876 | N13: 135.5321 | O13: 125.67522 | P13: 94.454624 | Q13: 28.611737 | R13: 15.728152
A14: BREC | B14: LG&E | C14: SFP | D14: Transmission Charge | F14: 2017 | G14: 0 | H14: 0 | I14: 0 | J14: 0 | K14: 0 | L14: 0 | M14: 0 | N14: 0 | O14: 0 | P14: 0 | Q14: 0 | R14: 0
A15: BREC | B15: LG&E | C15: SFP | D15: Schedule 1 | F15: 2017 | G15: 0 | H15: 0 | I15: 0 | J15: 0 | K15: 0 | L15: 0 | M15: 0 | N15: 0 | O15: 0 | P15: 0 | Q15: 0 | R15: 0
A16: BREC | B16: LG&E | C16: SFP | D16: Schedule 2 | F16: 2017 | G16: 0 | H16: 0 | I16: 0 | J16: 0 | K16: 0 | L16: 0 | M16: 0 | N16: 0 | O16: 0 | P16: 0 | Q16: 0 | R16: 0
A17: BREC | B17: LG&E | C17: NF | D17: Transmission Charge | F17: 2017 | G17: 0 | H17: 0 | I17: 0 | J17: 0 | K17: 0 | L17: 0 | M17: 0 | N17: 0 | O17: 0 | P17: 0 | Q17: 0 | R17: 0
A18: BREC | B18: LG&E | C18: NF | D18: Schedule 1 | F18: 2017 | G18: 0 | H18: 0 | I18: 0 | J18: 0 | K18: 0 | L18: 0 | M18: 0 | N18: 0 | O18: 0 | P18: 0 | Q18: 0 | R18: 0
A19: BREC | B19: LG&E | C19: NF | D19: Schedule 2 | F19: 2017 | G19: 0 | H19: 0 | I19: 0 | J19: 0 | K19: 0 | L19: 0 | M19: 0 | N19: 0 | O19: 0 | P19: 0 | Q19: 0 | R19: 0
A20: CARGILL | B20: KU | C20: LFP | D20: Transmission Charge | F20: 2017 | G20: 0 | H20: 0 | I20: 0 | J20: 0 | K20: 0 | L20: 0 | M20: 0 | N20: 0 | O20: 0 | P20: 0 | Q20: 0 | R20: 0
A21: CARGILL | B21: KU | C21: LFP | D21: Schedule 1 | F21: 2017 | G21: 0 | H21: 0 | I21: 0 | J21: 0 | K21: 0 | L21: 0 | M21: 0 | N21: 0 | O21: 0 | P21: 0 | Q21: 0 | R21: 0
A22: CARGILL | B22: KU | C22: LFP | D22: Schedule 2 | F22: 2017 | G22: 0 | H22: 0 | I22: 0 | J22: 0 | K22: 0 | L22: 0 | M22: 0 | N22: 0 | O22: 0 | P22: 0 | Q22: 0 | R22: 0
A23: CARGILL | B23: KU | C23: SFP | D23: Transmission Charge | F23: 2017 | G23: 0 | H23: 0 | I23: 0 | J23: 0 | K23: 26877.747 | L23: 0 | M23: 285.391 | N23: 0 | O23: 0 | P23: 0 | Q23: 0 | R23: 0
A24: CARGILL | B24: KU | C24: SFP | D24: Schedule 1 | F24: 2017 | G24: 0 | H24: 0 | I24: 0 | J24: 0 | K24: 871.243812 | L24: 0 | M24: 8.418795 | N24: 0 | O24: 0 | P24: 0 | Q24: 0 | R24: 0
A25: CARGILL | B25: KU | C25: SFP | D25: Schedule 2 | F25: 2017 | G25: 0 | H25: 0 | I25: 0 | J25: 0 | K25: 531.003728 | L25: 0 | M25: 3.570467 | N25: 0 | O25: 0 | P25: 0 | Q25: 0 | R25: 0
A26: CARGILL | B26: KU | C26: NF | D26: Transmission Charge | F26: 2017 | G26: 0 | H26: 0 | I26: 0 | J26: 0 | K26: 0 | L26: 0 | M26: 0 | N26: 0 | O26: 0 | P26: 0 | Q26: 0 | R26: 0
A27: CARGILL | B27: KU | C27: NF | D27: Schedule 1 | F27: 2017 | G27: 0 | H27: 0 | I27: 0 | J27: 0 | K27: 0 | L27: 0 | M27: 0 | N27: 0 | O27: 0 | P27: 0 | Q27: 0 | R27: 0
A28: CARGILL | B28: KU | C28: NF | D28: Schedule 2 | F28: 2017 | G28: 0 | H28: 0 | I28: 0 | J28: 0 | K28: 0 | L28: 0 | M28: 0 | N28: 0 | O28: 0 | P28: 0 | Q28: 0 | R28: 0
A29: CARGILL | B29: LG&E | C29: LFP | D29: Transmission Charge | F29: 2017 | G29: 0 | H29: 0 | I29: 0 | J29: 0 | K29: 0 | L29: 0 | M29: 0 | N29: 0 | O29: 0 | P29: 0 | Q29: 0 | R29: 0
A30: CARGILL | B30: LG&E | C30: LFP | D30: Schedule 1 | F30: 2017 | G30: 0 | H30: 0 | I30: 0 | J30: 0 | K30: 0 | L30: 0 | M30: 0 | N30: 0 | O30: 0 | P30: 0 | Q30: 0 | R30: 0
A31: CARGILL | B31: LG&E | C31: LFP | D31: Schedule 2 | F31: 2017 | G31: 0 | H31: 0 | I31: 0 | J31: 0 | K31: 0 | L31: 0 | M31: 0 | N31: 0 | O31: 0 | P31: 0 | Q31: 0 | R31: 0
A32: CARGILL | B32: LG&E | C32: SFP | D32: Transmission Charge | F32: 2017 | G32: 0 | H32: 0 | I32: 0 | J32: 0 | K32: 13292.253 | L32: 0 | M32: 144.609 | N32: 0 | O32: 0 | P32: 0 | Q32: 0 | R32: 0
A33: CARGILL | B33: LG&E | C33: SFP | D33: Schedule 1 | F33: 2017 | G33: 0 | H33: 0 | I33: 0 | J33: 0 | K33: 453.036188 | L33: 0 | M33: 4.531205 | N33: 0 | O33: 0 | P33: 0 | Q33: 0 | R33: 0
A34: CARGILL | B34: LG&E | C34: SFP | D34: Schedule 2 | F34: 2017 | G34: 0 | H34: 0 | I34: 0 | J34: 0 | K34: 261.066272 | L34: 0 | M34: 4.119533 | N34: 0 | O34: 0 | P34: 0 | Q34: 0 | R34: 0
A35: CARGILL | B35: LG&E | C35: NF | D35: Transmission Charge | F35: 2017 | G35: 0 | H35: 0 | I35: 0 | J35: 0 | K35: 0 | L35: 0 | M35: 0 | N35: 0 | O35: 0 | P35: 0 | Q35: 0 | R35: 0
A36: CARGILL | B36: LG&E | C36: NF | D36: Schedule 1 | F36: 2017 | G36: 0 | H36: 0 | I36: 0 | J36: 0 | K36: 0 | L36: 0 | M36: 0 | N36: 0 | O36: 0 | P36: 0 | Q36: 0 | R36: 0
A37: CARGILL | B37: LG&E | C37: NF | D37: Schedule 2 | F37: 2017 | G37: 0 | H37: 0 | I37: 0 | J37: 0 | K37: 0 | L37: 0 | M37: 0 | N37: 0 | O37: 0 | P37: 0 | Q37: 0 | R37: 0
A38: CONSTELLATION | B38: KU | C38: SFP | D38: Transmission Charge | F38: 2017 | G38: 0 | H38: 0 | I38: 0 | J38: 0 | K38: 0 | L38: 0 | M38: 0 | N38: 0 | O38: 0 | P38: 0 | Q38: 0 | R38: 0
A39: CONSTELLATION | B39: KU | C39: SFP | D39: Schedule 1 | F39: 2017 | G39: 0 | H39: 0 | I39: 0 | J39: 0 | K39: 0 | L39: 0 | M39: 0 | N39: 0 | O39: 0 | P39: 0 | Q39: 0 | R39: 0
A40: CONSTELLATION | B40: KU | C40: SFP | D40: Schedule 2 | F40: 2017 | G40: 0 | H40: 0 | I40: 0 | J40: 0 | K40: 0 | L40: 0 | M40: 0 | N40: 0 | O40: 0 | P40: 0 | Q40: 0 | R40: 0
A41: CONSTELLATION | B41: KU | C41: NF | D41: Transmission Charge | F41: 2017 | G41: 0 | H41: 0 | I41: 0 | J41: 0 | K41: 0 | L41: 0 | M41: 0 | N41: 0 | O41: 0 | P41: 0 | Q41: 0 | R41: 0
A42: CONSTELLATION | B42: KU | C42: NF | D42: Schedule 1 | F42: 2017 | G42: 0 | H42: 0 | I42: 0 | J42: 0 | K42: 0 | L42: 0 | M42: 0 | N42: 0 | O42: 0 | P42: 0 | Q42: 0 | R42: 0
A43: CONSTELLATION | B43: KU | C43: NF | D43: Schedule 2 | F43: 2017 | G43: 0 | H43: 0 | I43: 0 | J43: 0 | K43: 0 | L43: 0 | M43: 0 | N43: 0 | O43: 0 | P43: 0 | Q43: 0 | R43: 0
A44: CONSTELLATION | B44: LG&E | C44: SFP | D44: Transmission Charge | F44: 2017 | G44: 0 | H44: 0 | I44: 0 | J44: 0 | K44: 0 | L44: 0 | M44: 0 | N44: 0 | O44: 0 | P44: 0 | Q44: 0 | R44: 0
A45: CONSTELLATION | B45: LG&E | C45: SFP | D45: Schedule 1 | F45: 2017 | G45: 0 | H45: 0 | I45: 0 | J45: 0 | K45: 0 | L45: 0 | M45: 0 | N45: 0 | O45: 0 | P45: 0 | Q45: 0 | R45: 0
A46: CONSTELLATION | B46: LG&E | C46: SFP | D46: Schedule 2 | F46: 2017 | G46: 0 | H46: 0 | I46: 0 | J46: 0 | K46: 0 | L46: 0 | M46: 0 | N46: 0 | O46: 0 | P46: 0 | Q46: 0 | R46: 0
A47: CONSTELLATION | B47: LG&E | C47: NF | D47: Transmission Charge | F47: 2017 | G47: 0 | H47: 0 | I47: 0 | J47: 0 | K47: 0 | L47: 0 | M47: 0 | N47: 0 | O47: 0 | P47: 0 | Q47: 0 | R47: 0
A48: CONSTELLATION | B48: LG&E | C48: NF | D48: Schedule 1 | F48: 2017 | G48: 0 | H48: 0 | I48: 0 | J48: 0 | K48: 0 | L48: 0 | M48: 0 | N48: 0 | O48: 0 | P48: 0 | Q48: 0 | R48: 0
A49: CONSTELLATION | B49: LG&E | C49: NF | D49: Schedule 2 | F49: 2017 | G49: 0 | H49: 0 | I49: 0 | J49: 0 | K49: 0 | L49: 0 | M49: 0 | N49: 0 | O49: 0 | P49: 0 | Q49: 0 | R49: 0
A50: EKPC | B50: KU | C50: FNO | D50: Transmission Charge | F50: 2017 | G50: 521270.9262 | H50: 445913.04 | I50: 484984.2682 | J50: 326951.1116 | K50: 374510.3181 | L50: 489887.2323 | M50: 508336.5842 | N50: 496434.4189 | O50: 464396.7505 | P50: 363528.255 | Q50: 495266.433 | R50: 596521.4143
A51: EKPC | B51: KU | C51: FNO | D51: Schedule 1 | F51: 2017 | G51: 23177.36963 | H51: 21143.04414 | I51: 21563.52777 | J51: 14537.47156 | K51: 16652.1069 | L51: 19899.76446 | M51: 20568.26686 | N51: 20086.51676 | O51: 18789.09268 | P51: 14713.32324 | Q51: 20039.76157 | R51: 24136.43173
A52: EKPC | B52: KU | C52: FNO | D52: Schedule 2 | F52: 2017 | G52: 24223.32186 | H52: 22097.18848 | I52: 22536.64909 | J52: 15193.51654 | K52: 8701.792 | L52: 10319.52083 | M52: 7475.731444 | N52: 3650.317314 | O52: 3414.536488 | P52: 2673.847984 | Q52: 1820.910312 | R52: 2193.153551
A53: EKPC | B53: KU | C53: SFP | D53: Transmission Charge | F53: 2017 | G53: 56304.765 | H53: 56304.77 | I53: 0 | J53: 0 | K53: 15656.94 | L53: 0 | M53: 0 | N53: 2853.91 | O53: 0 | P53: 0 | Q53: 0 | R53: 0
A54: EKPC | B54: KU | C54: SFP | D54: Schedule 1 | F54: 2017 | G54: 2565.81 | H54: 2565.81 | I54: 0 | J54: 0 | K54: 507.523797 | L54: 0 | M54: 0 | N54: 84.207453 | O54: 0 | P54: 0 | Q54: 0 | R54: 0
A55: EKPC | B55: KU | C55: SFP | D55: Schedule 2 | F55: 2017 | G55: 2681.6 | H55: 2681.6 | I55: 0 | J55: 0 | K55: 309.32256 | L55: 0 | M55: 0 | N55: 17.852335 | O55: 0 | P55: 0 | Q55: 0 | R55: 0
A56: EKPC | B56: KU | C56: NF | D56: Transmission Charge | F56: 2017 | G56: 0 | H56: 0 | I56: 4028.6511 | J56: 5218.98 | K56: 16497.98532 | L56: 675.235647 | M56: 0 | N56: 0 | O56: 3234.734423 | P56: 624.296131 | Q56: 624.296131 | R56: 0
A57: EKPC | B57: KU | C57: NF | D57: Schedule 1 | F57: 2017 | G57: 0 | H57: 0 | I57: 105.435054 | J57: 169.172406 | K57: 439.312725 | L57: 28.191015 | M57: 0 | N57: 0 | O57: 68.06547 | P57: 12.280389 | Q57: 12.280389 | R57: 0
A58: EKPC | B58: KU | C58: NF | D58: Schedule 2 | F58: 2017 | G58: 0 | H58: 0 | I58: 165.7564 | J58: 206.28208 | K58: 340.784432 | L58: 14.61472 | M58: 0 | N58: 0 | O58: 20.517417 | P58: 3.909406 | Q58: 1.95006 | R58: 0
A59: EKPC | B59: LG&E | C59: FNO | D59: Transmission Charge | F59: 2017 | G59: 257791.8838 | H59: 220524.03 | I59: 239846.5018 | J59: 161692.0084 | K59: 185212.1719 | L59: 242271.2377 | M59: 257576.6058 | N59: 251545.7211 | O59: 235312.0795 | P59: 184201.525 | Q59: 250953.897 | R59: 302260.2857
A60: EKPC | B60: LG&E | C60: FNO | D60: Schedule 1 | F60: 2017 | G60: 12051.95037 | H60: 10994.12586 | I60: 11212.77223 | J60: 7559.308438 | K60: 8658.8931 | L60: 10347.63554 | M60: 11070.35314 | N60: 10811.06324 | O60: 10112.75731 | P60: 7919.07676 | Q60: 10785.89843 | R60: 12990.82827
A61: EKPC | B61: LG&E | C61: FNO | D61: Schedule 2 | F61: 2017 | G61: 11909.31814 | H61: 10864.01152 | I61: 11080.07091 | J61: 7469.843456 | K61: 4278.208 | L61: 5073.559168 | M61: 8625.348556 | N61: 4211.662686 | O61: 3939.623512 | P61: 3085.032016 | Q61: 2100.929688 | R61: 2530.416449
A62: EKPC | B62: LG&E | C62: SFP | D62: Transmission Charge | F62: 2017 | G62: 27845.235 | H62: 27845.23 | I62: 0 | J62: 0 | K62: 7743.06 | L62: 0 | M62: 0 | N62: 1446.09 | O62: 0 | P62: 0 | Q62: 0 | R62: 0
A63: EKPC | B63: LG&E | C63: SFP | D63: Schedule 1 | F63: 2017 | G63: 1334.19 | H63: 1334.19 | I63: 0 | J63: 0 | K63: 263.906203 | L63: 0 | M63: 0 | N63: 45.322547 | O63: 0 | P63: 0 | Q63: 0 | R63: 0
A64: EKPC | B64: LG&E | C64: SFP | D64: Schedule 2 | F64: 2017 | G64: 1318.4 | H64: 1318.4 | I64: 0 | J64: 0 | K64: 152.07744 | L64: 0 | M64: 0 | N64: 20.597665 | O64: 0 | P64: 0 | Q64: 0 | R64: 0
A65: EKPC | B65: LG&E | C65: NF | D65: Transmission Charge | F65: 2017 | G65: 0 | H65: 0 | I65: 1992.3489 | J65: 2581.02 | K65: 8158.994682 | L65: 333.934353 | M65: 0 | N65: 0 | O65: 1639.055577 | P65: 316.333869 | Q65: 316.333869 | R65: 0
A66: EKPC | B66: LG&E | C66: NF | D66: Schedule 1 | F66: 2017 | G66: 0 | H66: 0 | I66: 54.824946 | J66: 87.967594 | K66: 228.437275 | L66: 14.658985 | M66: 0 | N66: 0 | O66: 36.63453 | P66: 6.609611 | Q66: 6.609611 | R66: 0
A67: EKPC | B67: LG&E | C67: NF | D67: Schedule 2 | F67: 2017 | G67: 0 | H67: 0 | I67: 81.4936 | J67: 101.41792 | K67: 167.545568 | L67: 7.18528 | M67: 0 | N67: 0 | O67: 23.672583 | P67: 4.510594 | Q67: 2.24994 | R67: 0
A68: KMPA_R | B68: KU | C68: FNO | D68: Transmission Charge | F68: 2017 | G68: 120036.54 | H68: 97937.12047 | I68: 101971.0407 | J68: 106773.6565 | K68: 137182.1372 | L68: 183326.7987 | M68: 209245.9554 | N68: 160205.392 | O68: 179102.7004 | P68: 139486.7939 | Q68: 100758.7713 | R68: 126082.3443
A69: KMPA_R | B69: KU | C69: FNO | D69: Schedule 1 | F69: 2017 | G69: 5336.8848 | H69: 4354.333519 | I69: 4533.683638 | J69: 4747.210346 | K69: 6099.186951 | L69: 7445.237719 | M69: 8465.433564 | N69: 6481.405856 | O69: 7245.932037 | P69: 5643.196561 | Q69: 4076.382879 | R69: 5100.894972
A70: KMPA_R | B70: KU | C70: FNO | D70: Schedule 2 | F70: 2017 | G70: 5577.728 | H70: 4550.836096 | I70: 4738.279936 | J70: 4961.442688 | K70: 3187.21568 | L70: 3860.914048 | M70: 3076.841812 | N70: 1177.864098 | O70: 1316.80123 | P70: 1025.536554 | Q70: 370.399968 | R70: 463.492118
A71: KMPA_R | B71: KU | C71: FNO | D71: Schedule 3 | F71: 2017 | G71: 4421.8512 | H71: 3607.762883 | I71: 3756.362594 | J71: 3933.27916 | K71: 5053.453119 | L71: 6121.627808 | M71: 7082.83286 | N71: 5422.842673 | O71: 6062.504082 | P71: 4721.532304 | Q71: 3410.615462 | R71: 4267.801082
A72: KMPA_R | B72: KU | C72: FNO | D72: Schedule 5 | F72: 2017 | G72: 6853.86936 | H72: 5592.032469 | I72: 5822.362021 | J72: 6096.582698 | K72: 7832.852334 | L72: 9488.523103 | M72: 10978.39093 | N72: 8405.406143 | O72: 9396.881327 | P72: 7318.375071 | Q72: 5286.453967 | R72: 6615.091678
A73: KMPA_R | B73: KU | C73: FNO | D73: Schedule 6 | F73: 2017 | G73: 6853.86936 | H73: 5592.032469 | I73: 5822.362021 | J73: 6096.582698 | K73: 7832.852334 | L73: 9488.523103 | M73: 10978.39093 | N73: 8405.406143 | O73: 9396.881327 | P73: 7318.375071 | Q73: 5286.453967 | R73: 6615.091678
A74: KMPA_R | B74: KU | C74: FNO | D74: Schedule 26 Charge (MISO Only) | F74: 2017 | G74: 0 | H74: 0 | J74: 0 | K74: 0 | L74: 0 | M74: 0 | N74: 0 | O74: 0 | P74: 0 | Q74: 0 | R74: 0
A75: KMPA_R | B75: KU | C75: FNO | D75: Schedule 26a Charge (MISO Only) | F75: 2017 | G75: 0 | H75: 0 | J75: 0 | K75: 0 | L75: 0 | M75: 0 | N75: 0 | O75: 0 | P75: 0 | Q75: 0 | R75: 0
A76: KMPA_R | B76: KU | C76: FNO | D76: Schedule 45 Charge (MISO Only) | F76: 2017 | G76: 0 | H76: 0 | J76: 0 | K76: 0 | L76: 0 | M76: 0 | N76: 0 | O76: 0 | P76: 0 | Q76: 0 | R76: 0
A77: KMPA_R | B77: KU | C77: FNO | D77: Schedule 12 Penalty Revenue Distribution to Non-Offending Customers | F77: 2017 | G77: -5.546839 | H77: -3.807179 | I77: =-5560.9-2.8 -> -5563.7 | J77: -1.458638 | K77: -4.503043 | L77: -7.072387 | M77: -10.373631 | N77: -11.780675 | O77: -3.305226 | P77: -21.045927 | Q77: -19.353492 | R77: -5.780827
A78: KMPA_R | B78: KU | C78: NF | D78: Transmission Charge | F78: 2017 | G78: 0 | H78: 0 | I78: 0 | J78: 0 | K78: 0 | L78: 0 | M78: 0 | N78: 0 | O78: 0 | P78: 0 | Q78: 0 | R78: 0
A79: KMPA_R | B79: KU | C79: NF | D79: Schedule 1 | F79: 2017 | G79: 0 | H79: 0 | I79: 0 | J79: 0 | K79: 0 | L79: 0 | M79: 0 | N79: 0 | O79: 0 | P79: 0 | Q79: 0 | R79: 0
A80: KMPA_R | B80: KU | C80: NF | D80: Schedule 2 | F80: 2017 | G80: 0 | H80: 0 | I80: 0 | J80: 0 | K80: 0 | L80: 0 | M80: 0 | N80: 0 | O80: 0 | P80: 0 | Q80: 0 | R80: 0
A81: KMPA_R | B81: LG&E | C81: FNO | D81: Transmission Charge | F81: 2017 | G81: 59363.46 | H81: 48434.30453 | I81: 50429.25927 | J81: 52804.36847 | K81: 67842.72783 | L81: 90663.33534 | M81: 106025.9376 | N81: 81176.84698 | O81: 90752.20455 | P81: 70678.6331 | Q81: 51054.95673 | R81: 63886.53367
A82: KMPA_R | B82: LG&E | C82: FNO | D82: Schedule 1 | F82: 2017 | G82: 2775.1152 | H82: 2264.200481 | I82: 2357.460362 | J82: 2468.491654 | K82: 3171.503049 | L82: 3871.433081 | M82: 4556.307036 | N82: 3488.453944 | O82: 3899.940963 | P82: 3037.308839 | Q82: 2194.010721 | R82: 2745.428628
A83: KMPA_R | B83: LG&E | C83: FNO | D83: Schedule 2 | F83: 2017 | G83: 2742.272 | H83: 2237.403904 | I83: 2329.560064 | J83: 2439.277312 | K83: 1566.98432 | L83: 1898.205952 | M83: 3549.998188 | N83: 1358.995902 | O83: 1519.29877 | P83: 1183.243446 | Q83: 427.360032 | R83: 534.767882
A84: KMPA_R | B84: LG&E | C84: FNO | D84: Schedule 3 | F84: 2017 | G84: 2754.1488 | H84: 2247.094117 | I84: 2339.649406 | J84: 2449.84184 | K84: 3147.541881 | L84: 3812.854192 | M84: 4348.46614 | N84: 3329.324327 | O84: 3722.040918 | P84: 2898.758696 | Q84: 2093.928538 | R84: 2620.192918
A85: KMPA_R | B85: LG&E | C85: FNO | D85: Schedule 5 | F85: 2017 | G85: 4268.93064 | H85: 3482.995881 | I85: 3626.456579 | J85: 3797.254852 | K85: 4878.689916 | L85: 5909.923997 | M85: 6740.122516 | N85: 5160.452707 | O85: 5769.163423 | P85: 4493.075979 | Q85: 3245.589233 | R85: 4061.299022
A86: KMPA_R | B86: LG&E | C86: FNO | D86: Schedule 6 | F86: 2017 | G86: 4268.93064 | H86: 3482.995881 | I86: 3626.456579 | J86: 3797.254852 | K86: 4878.689916 | L86: 5909.923997 | M86: 6740.122516 | N86: 5160.452707 | O86: 5769.163423 | P86: 4493.075979 | Q86: 3245.589233 | R86: 4061.299022
A87: KMPA_R | B87: LG&E | C87: FNO | D87: Schedule 26 Charge (MISO Only) | F87: 2017 | G87: 0 | H87: 0 | I87: 0 | J87: 0 | K87: 0 | L87: 0 | M87: 0 | N87: 0 | O87: 0 | P87: 0 | Q87: 0 | R87: 0
A88: KMPA_R | B88: LG&E | C88: FNO | D88: Schedule 26a Charge (MISO Only) | F88: 2017 | G88: 0 | H88: 0 | I88: 0 | J88: 0 | K88: 0 | L88: 0 | M88: 0 | N88: 0 | O88: 0 | P88: 0 | Q88: 0 | R88: 0
A89: KMPA_R | B89: LG&E | C89: FNO | D89: Schedule 45 Charge (MISO Only) | F89: 2017 | G89: 0 | H89: 0 | I89: 0 | J89: 0 | K89: 0 | L89: 0 | M89: 0 | N89: 0 | O89: 0 | P89: 0 | Q89: 0 | R89: 0
A90: KMPA_R | B90: LG&E | C90: FNO | D90: Schedule 12 Penalty Revenue Distribution to Non-Offending Customers | F90: 2017 | G90: -2.743161 | H90: -1.882821 | I90: =-2750.11-1.39 -> -2751.5 | J90: -0.721362 | K90: -2.226957 | L90: -3.497613 | M90: -5.256369 | N90: -5.969325 | O90: -1.674774 | P90: -10.664073 | Q90: -9.806508 | R90: -2.929173
A91: KMPA_R | B91: LG&E | C91: NF | D91: Transmission Charge | F91: 2017 | G91: 0 | H91: 0 | I91: 0 | J91: 0 | K91: 0 | L91: 0 | M91: 0 | N91: 0 | O91: 0 | P91: 0 | Q91: 0 | R91: 0
A92: KMPA_R | B92: LG&E | C92: NF | D92: Schedule 1 | F92: 2017 | G92: 0 | H92: 0 | I92: 0 | J92: 0 | K92: 0 | L92: 0 | M92: 0 | N92: 0 | O92: 0 | P92: 0 | Q92: 0 | R92: 0
A93: KMPA_R | B93: LG&E | C93: NF | D93: Schedule 2 | F93: 2017 | G93: 0 | H93: 0 | I93: 0 | J93: 0 | K93: 0 | L93: 0 | M93: 0 | N93: 0 | O93: 0 | P93: 0 | Q93: 0 | R93: 0
A94: KMPA_E | B94: LG&E | C94: MISO | D94: Transmission Charge | F94: 2017 | G94: -426026.49 | H94: =-399779.11+536756.26 -> 136977.15 | I94: -425796 | J94: -416890.13 | K94: -425675.09 | L94: -412029.45 | M94: -425763.76 | N94: -425797.5 | O94: -412062.1 | P94: -423546.81 | Q94: -413674.43 | R94: -423546.81
A95: KMPA_E | B95: LG&E | C95: MISO | D95: Schedule 1 Charge | F95: 2017 | G95: -9369.1 | H95: -8784.3 | I95: -9369.1 | J95: -9174.16 | K95: -9362.35 | L95: -8958.57 | M95: -9257.18 | N95: -9257.18 | O95: -8958.57 | P95: -9208.19 | Q95: -8993.56 | R95: -9208.19
A96: KMPA_E | B96: LG&E | C96: MISO | D96: Schedule 2 Charge | F96: 2017 | G96: -20456.91 | H96: -19180.03 | I96: -20347.95 | J96: -19924.59 | K96: -20544.99 | L96: -19834.33 | M96: -20702.27 | N96: -21343.32 | O96: -20683.82 | P96: -21308.91 | Q96: -20784.97 | R96: -21217.68
A97: KMPA_E | B97: LG&E | C97: MISO | D97: Schedule 3 Charge | F97: 2017 | G97: 0 | H97: 0 | I97: 0 | J97: 0 | K97: 0 | L97: 0 | M97: 0 | N97: 0 | O97: 0 | P97: 0 | Q97: 0 | R97: 0
A98: KMPA_E | B98: LG&E | C98: MISO | D98: Schedule 5 Charge | F98: 2017 | G98: 0 | H98: 0 | I98: 0 | J98: 0 | K98: 0 | L98: 0 | M98: 0 | N98: 0 | O98: 0 | P98: 0 | Q98: 0 | R98: 0
A99: KMPA_E | B99: LG&E | C99: MISO | D99: Schedule 6 Charge | F99: 2017 | G99: 0 | H99: 0 | I99: 0 | J99: 0 | K99: 0 | L99: 0 | M99: 0 | N99: 0 | O99: 0 | P99: 0 | Q99: 0 | R99: 0
A100: KMPA_E | B100: LG&E | C100: MISO | D100: Schedule 26 Charge (MISO Only) | F100: 2017 | G100: -48068.79 | H100: -45070.6 | I100: -48071.1 | J100: -47065.47 | K100: -48031.02 | L100: -47716.1 | M100: -49342.49 | N100: -49430.07 | O100: -47835.55 | P100: -49168.47 | Q100: -48022.41 | R100: -49168.47
A101: KMPA_E | B101: LG&E | C101: MISO | D101: Schedule 26a Charge (MISO Only) | F101: 2017 | G101: -68828.28 | H101: -61933.47 | I101: -56619.35 | J101: -58388.22 | K101: -66519.11 | L101: -76220.57 | M101: -67758.67 | N101: -61829.49 | O101: -68974.52 | P101: -64584.68 | Q101: -30752.09 | R101: -32775.58
A102: KMPA_E | B102: LG&E | C102: MISO | D102: Schedule 45 Charge (MISO Only) | F102: 2017 | G102: -600.32 | H102: -562.86 | I102: -600.32 | J102: -590.76 | K102: -602.9 | L102: -588.49 | M102: -608.1 | N102: -608.1 | O102: -588.49 | P102: -604.88 | Q102: -590.79 | R102: -604.88
A103: KMPA_E | B103: LG&E | C103: MISO | D103: Schedule 11 Charge (MISO Only) | F103: 2017 | G103: -1012.53 | H103: -1533.92 | I103: -1914.85 | J103: -469.53 | K103: -13106.02 | L103: -7091.39 | M103: -1469.07 | N103: -1820.16 | O103: -1673.53 | P103: -426.05 | Q103: -1949.89 | R103: -602.99
A104: KMPA_E | B104: LG&E | C104: MISO | D104: Schedule 12 Penalty Revenue Distribution to Non-Offending Customers | F104: 2017 | G104: 0 | H104: 0 | I104: 0 | J104: 0 | K104: 0 | L104: 0 | M104: 0 | N104: 0 | O104: 0 | P104: 0 | Q104: 0 | R104: 0
A105: LG&E and KU Marketing | B105: KU | C105: LFP | D105: Transmission Charge | E105: Import | F105: 2017 | G105: 20894.82 | H105: 26350.97 | I105: 18392.89 | J105: 22407.73 | K105: 20325.72 | L105: 25259.37 | M105: 22261.04 | N105: 25854.15 | O105: 23675.81 | P105: 21991.02 | Q105: 28212.06 | R105: 24558.71
A106: LG&E and KU Marketing | B106: KU | C106: LFP | D106: Schedule 1 Charge | E106: Import | F106: 2017 | G106: 952.18 | H106: 1200.81 | I106: 838.16 | J106: 1021.12 | K106: 926.24 | L106: 1051.24 | M106: 922.92 | N106: 1071.89 | O106: 981.58 | P106: 911.73 | Q106: 1169.64 | R106: 1018.18
A107: LG&E and KU Marketing | B107: KU | C107: LFP | D107: Schedule 2 Charge | E107: Import | F107: 2017 | G107: 995.15 | H107: 1255 | I107: 875.99 | J107: 1067.2 | K107: 484.02 | L107: 545.15 | M107: 335.44 | N107: 194.79 | O107: 178.38 | P107: 165.69 | Q107: 106.28 | R107: 92.52
A108: LG&E and KU Marketing | B108: KU | C108: LFP | D108: Transmission Charge | E108: Export | F108: 2017 | G108: 7257.56 | H108: 1801.42 | I108: 9759.49 | J108: 5744.65 | K108: 7826.67 | L108: 5803.6 | M108: 8551.24 | N108: 4958.13 | O108: 7136.46 | P108: 8821.26 | Q108: 2600.21 | R108: 6253.57
A109: LG&E and KU Marketing | B109: KU | C109: LFP | D109: Schedule 1 Charge | E109: Export | F109: 2017 | G109: 330.73 | H109: 82.09 | I109: 444.74 | J109: 261.78 | K109: 356.66 | L109: 241.53 | M109: 354.53 | N109: 205.56 | O109: 295.87 | P109: 365.72 | Q109: 107.8 | R109: 259.27
A110: LG&E and KU Marketing | B110: KU | C110: LFP | D110: Schedule 2 Charge | E110: Export | F110: 2017 | G110: 345.65 | H110: 85.8 | I110: 464.81 | J110: 273.6 | K110: 186.38 | L110: 125.25 | M110: 128.86 | N110: 37.36 | O110: 53.77 | P110: 66.46 | Q110: 9.8 | R110: 23.56
A111: LG&E and KU Marketing | B111: KU | C111: SFP | D111: Transmission Charge | E111: Import | F111: 2017 | G111: 0 | H111: 0 | I111: 0 | J111: 0 | K111: 0 | L111: 0 | M111: 0 | N111: 0 | O111: 0 | P111: 0 | Q111: 0 | R111: 0
A112: LG&E and KU Marketing | B112: KU | C112: SFP | D112: Schedule 1 Charge | E112: Import | F112: 2017 | G112: 0 | H112: 0 | I112: 0 | J112: 0 | K112: 0 | L112: 0 | M112: 0 | N112: 0 | O112: 0 | P112: 0 | Q112: 0 | R112: 0
A113: LG&E and KU Marketing | B113: KU | C113: SFP | D113: Schedule 2 Charge | E113: Import | F113: 2017 | G113: 0 | H113: 0 | I113: 0 | J113: 0 | K113: 0 | L113: 0 | M113: 0 | N113: 0 | O113: 0 | P113: 0 | Q113: 0 | R113: 0
A114: LG&E and KU Marketing | B114: KU | C114: SFP | D114: Transmission Charge | E114: Export | F114: 2017 | G114: 0 | H114: 0 | I114: 0 | J114: 0 | K114: 31783.59 | L114: 0 | M114: 0 | N114: 0 | O114: 0 | P114: 0 | Q114: 0 | R114: 0
A115: LG&E and KU Marketing | B115: KU | C115: SFP | D115: Schedule 1 Charge | E115: Export | F115: 2017 | G115: 0 | H115: 0 | I115: 0 | J115: 0 | K115: 1030.28 | L115: 0 | M115: 0 | N115: 0 | O115: 0 | P115: 0 | Q115: 0 | R115: 0
A116: LG&E and KU Marketing | B116: KU | C116: SFP | D116: Schedule 2 Charge | E116: Export | F116: 2017 | G116: 0 | H116: 0 | I116: 0 | J116: 0 | K116: 627.93 | L116: 0 | M116: 0 | N116: 0 | O116: 0 | P116: 0 | Q116: 0 | R116: 0
A117: LG&E and KU Marketing | B117: KU | C117: NF | D117: Transmission Charge | E117: Import | F117: 2017 | G117: 0 | H117: 2147.01 | I117: 0 | J117: 76.68 | K117: 0 | L117: 0 | M117: 0 | N117: 0 | O117: 0 | P117: 0 | Q117: 1054.45 | R117: 0
A118: LG&E and KU Marketing | B118: KU | C118: NF | D118: Schedule 1 Charge | E118: Import | F118: 2017 | G118: 0 | H118: 98.41 | I118: 0 | J118: 3.51 | K118: 0 | L118: 0 | M118: 0 | N118: 0 | O118: 0 | P118: 0 | Q118: 43.85 | R118: 0
A119: LG&E and KU Marketing | B119: KU | C119: NF | D119: Schedule 2 Charge | E119: Import | F119: 2017 | G119: 0 | H119: 103.15 | I119: 0 | J119: 3.69 | K119: 0 | L119: 0 | M119: 0 | N119: 0 | O119: 0 | P119: 0 | Q119: 3.98 | R119: 0
A120: LG&E and KU Marketing | B120: KU | C120: NF | D120: Transmission Charge | E120: Export | F120: 2017 | G120: 159773.65 | H120: 12736.78 | I120: 124992.92 | J120: 65103.73 | K120: 119987.53 | L120: 2914.83 | M120: 1417.21 | N120: 516.4 | O120: 49259.65 | P120: 87121.87 | Q120: 12950.24 | R120: 67524.55
A121: LG&E and KU Marketing | B121: KU | C121: NF | D121: Schedule 1 Charge | E121: Export | F121: 2017 | G121: 4920.55 | H121: 342.29 | I121: 3586.96 | J121: 1755.34 | K121: 2912.78 | L121: 65.18 | M121: 58.93 | N121: 21.47 | O121: 1369.33 | P121: 2163.92 | Q121: 346.67 | R121: 1954.09
A122: LG&E and KU Marketing | B122: KU | C122: NF | D122: Schedule 2 Charge | E122: Export | F122: 2017 | G122: 6832.69 | H122: 527.16 | I122: 5253.21 | J122: 2696.72 | K122: 2429.33 | L122: 53.56 | M122: 21.4 | N122: 3.91 | O122: 332.34 | P122: 572.31 | Q122: 43.16 | R122: 229.33
A123: LG&E and KU Marketing | B123: LG&E | C123: LFP | D123: Transmission Charge | E123: Import | F123: 2017 | G123: 10333.42597 | H123: 13031.73089 | I123: 9096.11 | J123: 11081.6325 | K123: 10051.97758 | L123: 12491.8925 | M123: 11279.77 | N123: 13100.41855 | O123: 11996.64417 | P123: 11142.95177 | Q123: 14295.18583 | R123: 12444.01177
A124: LG&E and KU Marketing | B124: LG&E | C124: LFP | D124: Schedule 1 Charge | E124: Import | F124: 2017 | G124: 495.1183871 | H124: 624.4132143 | I124: 435.84 | J124: 530.9716667 | K124: 481.6390323 | L124: 546.6325 | M124: 496.74 | N124: 576.9140323 | O124: 528.3041667 | P124: 490.7095161 | Q124: 629.5358333 | R124: 548.0095161
A125: LG&E and KU Marketing | B125: LG&E | C125: LFP | D125: Schedule 2 Charge | E125: Import | F125: 2017 | G125: 489.2586022 | H125: 617.0238095 | I125: 430.6766667 | J125: 524.6888889 | K125: 237.9692473 | L125: 268.0166667 | M125: 387.03 | N125: 224.7530108 | O125: 205.8144444 | P125: 191.1648387 | Q125: 122.6227778 | R125: 106.7407527
A126: LG&E and KU Marketing | B126: LG&E | C126: LFP | D126: Transmission Charge | E126: Export | F126: 2017 | G126: 3589.194032 | H126: 890.8791071 | I126: 4826.51 | J126: 2840.9875 | K126: 3870.632419 | L126: 2870.1375 | M126: 4332.95 | N126: 2512.301452 | O126: 3616.085833 | P126: 4469.768226 | Q126: 1317.544167 | R126: 3168.708226
A127: LG&E and KU Marketing | B127: LG&E | C127: LFP | D127: Schedule 1 Charge | E127: Export | F127: 2017 | G127: 171.9716129 | H127: 42.68678571 | I127: 231.26 | J127: 136.1283333 | K127: 185.4609677 | L127: 125.5975 | M127: 190.81 | N127: 110.6359677 | O127: 159.2458333 | P127: 196.8404839 | Q127: 58.02416667 | R127: 139.5404839
A128: LG&E and KU Marketing | B128: LG&E | C128: LFP | D128: Schedule 2 Charge | E128: Export | F128: 2017 | G128: 169.9413978 | H128: 42.17619048 | I128: 228.5233333 | J128: 134.5111111 | K128: 91.63075269 | L128: 61.58333333 | M128: 148.67 | N128: 43.09698925 | O128: 62.03555556 | P128: 76.68516129 | Q128: 11.29722222 | R128: 27.17924731
A129: LG&E and KU Marketing | B129: LG&E | C129: SFP | D129: Transmission Charge | E129: Import | F129: 2017 | G129: 0 | H129: 0 | I129: 0 | J129: 0 | K129: 0 | L129: 0 | M129: 0 | N129: 0 | O129: 0 | P129: 0 | Q129: 0 | R129: 0
A130: LG&E and KU Marketing | B130: LG&E | C130: SFP | D130: Schedule 1 Charge | E130: Import | F130: 2017 | G130: 0 | H130: 0 | I130: 0 | J130: 0 | K130: 0 | L130: 0 | M130: 0 | N130: 0 | O130: 0 | P130: 0 | Q130: 0 | R130: 0
A131: LG&E and KU Marketing | B131: LG&E | C131: SFP | D131: Schedule 2 Charge | E131: Import | F131: 2017 | G131: 0 | H131: 0 | I131: 0 | J131: 0 | K131: 0 | L131: 0 | M131: 0 | N131: 0 | O131: 0 | P131: 0 | Q131: 0 | R131: 0
A132: LG&E and KU Marketing | B132: LG&E | C132: SFP | D132: Transmission Charge | E132: Export | F132: 2017 | G132: 0 | H132: 0 | I132: 0 | J132: 0 | K132: 15718.41 | L132: 0 | M132: 0 | N132: 0 | O132: 0 | P132: 0 | Q132: 0 | R132: 0
A133: LG&E and KU Marketing | B133: LG&E | C133: SFP | D133: Schedule 1 Charge | E133: Export | F133: 2017 | G133: 0 | H133: 0 | I133: 0 | J133: 0 | K133: 535.73 | L133: 0 | M133: 0 | N133: 0 | O133: 0 | P133: 0 | Q133: 0 | R133: 0
A134: LG&E and KU Marketing | B134: LG&E | C134: SFP | D134: Schedule 2 Charge | E134: Export | F134: 2017 | G134: 0 | H134: 0 | I134: 0 | J134: 0 | K134: 308.72 | L134: 0 | M134: 0 | N134: 0 | O134: 0 | P134: 0 | Q134: 0 | R134: 0
A135: LG&E and KU Marketing | B135: LG&E | C135: NF | D135: Transmission Charge | E135: Import | F135: 2017 | G135: 0 | H135: 1061.79 | I135: 0 | J135: 37.92 | K135: 0 | L135: 0 | M135: 0 | N135: 0 | O135: 0 | P135: 0 | Q135: 534.3 | R135: 0
A136: LG&E and KU Marketing | B136: LG&E | C136: NF | D136: Schedule 1 Charge | E136: Import | F136: 2017 | G136: 0 | H136: 51.17 | I136: 0 | J136: 1.83 | K136: 0 | L136: 0 | M136: 0 | N136: 0 | O136: 0 | P136: 0 | Q136: 23.6 | R136: 0
A137: LG&E and KU Marketing | B137: LG&E | C137: NF | D137: Schedule 2 Charge | E137: Import | F137: 2017 | G137: 0 | H137: 50.71 | I137: 0 | J137: 1.81 | K137: 0 | L137: 0 | M137: 0 | N137: 0 | O137: 0 | P137: 0 | Q137: 4.59 | R137: 0
A138: LG&E and KU Marketing | B138: LG&E | C138: NF | D138: Transmission Charge | E138: Export | F138: 2017 | G138: 79015.24 | H138: 6298.91 | I138: 61814.61 | J138: 32196.72 | K138: 59339.22 | L138: 1441.51 | M138: 718.11 | N138: 261.66 | O138: 24960.11 | P138: 44145.07 | Q138: 6561.95 | R138: 34215.02
A139: LG&E and KU Marketing | B139: LG&E | C139: NF | D139: Schedule 1 Charge | E139: Export | F139: 2017 | G139: 2558.63 | H139: 177.98 | I139: 1865.17 | J139: 912.75 | K139: 1514.61 | L139: 33.89 | M139: 31.72 | N139: 11.55 | O139: 737 | P139: 1164.67 | Q139: 186.59 | R139: 1051.74
A140: LG&E and KU Marketing | B140: LG&E | C140: NF | D140: Schedule 2 Charge | E140: Export | F140: 2017 | G140: 3359.27 | H140: 259.17 | I140: 2582.72 | J140: 1325.83 | K140: 1194.37 | L140: 26.33 | M140: 24.7 | N140: 4.51 | O140: 383.45 | P140: 660.32 | Q140: 49.8 | R140: 264.59
A141: OMU_R | B141: KU | C141: FNO | D141: Transmission Charge | F141: 2017 | G141: 94179.11697 | H141: 80683.80489 | I141: 63804.7069 | J141: 107786.7174 | K141: 129774.3805 | L141: 186057.6206 | M141: 197246.8016 | N141: 183328.3821 | O141: 180354.3889 | P141: 145151.7143 | Q141: 83774.14537 | R141: 101065.329
A142: OMU_R | B142: KU | C142: FNO | D142: Schedule 1 | F142: 2017 | G142: 5439.5172 | H142: 4839.630822 | I142: 4730.327316 | J142: 6044.943096 | K142: 7022.62197 | L142: 8700.832764 | M142: 9111.262017 | N142: 8547.956868 | O142: 8427.317811 | P142: 7004.339925 | Q142: 4519.963272 | R142: 5219.490375
A143: OMU_R | B143: KU | C143: FNO | D143: Schedule 2 | F143: 2017 | G143: 0 | H143: 0 | I143: 0 | J143: 0 | K143: 0 | L143: 0 | M143: 0 | N143: 0 | O143: 0 | P143: 0 | Q143: 0 | R143: 0
A144: OMU_R | B144: KU | C144: FNO | D144: Schedule 3 | F144: 2017 | G144: 4506.8868 | H144: 4009.853718 | I144: 3919.290804 | J144: 5008.511804 | K144: 5818.56093 | L144: 7154.00251 | M144: 7623.180444 | N144: 7151.877986 | O144: 7050.93957 | P144: 5860.370735 | Q144: 3781.749047 | R144: 4367.029403
A145: OMU_R | B145: KU | C145: FNO | D145: Schedule 5 | F145: 2017 | G145: 6985.67454 | H145: 6215.273263 | I145: 6074.900746 | J145: 7763.193297 | K145: 9018.769441 | L145: 11088.70389 | M145: 11815.92969 | N145: 11085.41088 | O145: 10928.95633 | P145: 9083.574639 | Q145: 5861.711023 | R145: 6768.895574
A146: OMU_R | B146: KU | C146: FNO | D146: Schedule 6 | F146: 2017 | G146: 6985.67454 | H146: 6215.273263 | I146: 6074.900746 | J146: 7763.193297 | K146: 9018.769441 | L146: 11088.70389 | M146: 11815.92969 | N146: 11085.41088 | O146: 10928.95633 | P146: 9083.574639 | Q146: 5861.711023 | R146: 6768.895574
A147: OMU_R | B147: KU | C147: LFP | D147: Transmission Charge | F147: 2017 | G147: 292784.778 | H147: 292784.778 | I147: 292784.778 | J147: 292784.778 | K147: 292784.778 | L147: 323054.862 | M147: 320447.634 | N147: 320447.634 | O147: 320447.634 | P147: 320447.634 | Q147: 320447.634 | R147: 320447.634
A148: OMU_R | B148: KU | C148: LFP | D148: Schedule 1 | F148: 2017 | G148: 13342.212 | H148: 13342.212 | I148: 13342.212 | J148: 13342.212 | K148: 13342.212 | L148: 13444.8444 | M148: 13285.4436 | N148: 13285.4436 | O148: 13285.4436 | P148: 13285.4436 | Q148: 13285.4436 | R148: 13285.4436
A149: OMU_R | B149: KU | C149: LFP | D149: Schedule 2 | F149: 2017 | G149: 13944.32 | H149: 13944.32 | I149: 13944.32 | J149: 13944.32 | K149: 6972.16 | L149: 6972.16 | M149: 4828.72 | N149: 2414.36 | O149: 2414.36 | P149: 2414.36 | Q149: 1207.18 | R149: 1207.18
A150: OMU_R | B150: KU | C150: SFP | D150: Transmission Charge | F150: 2017 | G150: 0 | H150: 0 | I150: 7671.9006 | J150: 0 | K150: 0 | L150: 0 | M150: 0 | N150: 0 | O150: 0 | P150: 8732.9646 | Q150: 125714.0718 | R150: 125714.0718
A151: OMU_R | B151: KU | C151: SFP | D151: Schedule 1 | F151: 2017 | G151: 0 | H151: 0 | I151: 248.6862 | J151: 0 | K151: 0 | L151: 0 | M151: 0 | N151: 0 | O151: 0 | P151: 257.615127 | Q151: 5211.98172 | R151: 5211.98172
A152: OMU_R | B152: KU | C152: SFP | D152: Schedule 2 | F152: 2017 | G152: 0 | H152: 0 | I152: 303.235328 | J152: 0 | K152: 0 | L152: 0 | M152: 0 | N152: 0 | O152: 0 | P152: 54.629538 | Q152: 473.586 | R152: 473.586
A153: OMU_R | B153: KU | C153: NF | D153: Transmission Charge | F153: 2017 | G153: 43131.34354 | H153: 783.810504 | I153: 51335.75407 | J153: 27598.68218 | K153: 14716.74075 | L153: 3343.144768 | M153: 1136.964559 | N153: 221.184662 | O153: 2017.601541 | P153: 1732.602124 | Q153: 0 | R153: 1118.108842
A154: OMU_R | B154: KU | C154: NF | D154: Schedule 1 | F154: 2017 | G154: 1088.738973 | H154: 21.434382 | I154: 1279.536552 | J154: 655.261821 | K154: 319.324923 | L154: 76.967721 | M154: 26.179527 | N154: 4.349169 | O154: 40.280196 | P154: 42.035466 | Q154: 0 | R154: 37.107708
A155: OMU_R | B155: KU | C155: NF | D155: Schedule 2 | F155: 2017 | G155: 1760.651408 | H155: 36.885408 | I155: 2089.817808 | J155: 1112.09304 | K155: 291.382656 | L155: 61.784064 | M155: 14.681166 | N155: 1.383614 | O155: 12.666104 | P155: 11.324277 | Q155: 0 | R155: 3.932621
A156: OMU_R | B156: LG&E | C156: FNO | D156: Transmission Charge | F156: 2017 | G156: 46575.80303 | H156: 39901.76511 | I156: 31554.2931 | J156: 53305.37258 | K156: 64179.25948 | L156: 92013.84942 | M156: 99945.90837 | N156: 92893.37789 | O156: 91386.44113 | P156: 73549.07568 | Q156: 42448.76463 | R156: 51210.29101
A157: OMU_R | B157: LG&E | C157: FNO | D157: Schedule 1 | F157: 2017 | G157: 2828.4828 | H157: 2516.549178 | I157: 2459.712684 | J157: 3143.296904 | K157: 3651.67803 | L157: 4524.327236 | M157: 4903.907983 | N157: 4600.723132 | O157: 4535.792189 | P157: 3769.910075 | Q157: 2432.756728 | R157: 2809.259625
A158: OMU_R | B158: LG&E | C158: FNO | D158: Schedule 2 | F158: 2017 | G158: 0 | H158: 0 | I158: 0 | J158: 0 | K158: 0 | L158: 0 | M158: 0 | N158: 0 | O158: 0 | P158: 0 | Q158: 0 | R158: 0
A159: OMU_R | B159: LG&E | C159: FNO | D159: Schedule 3 | F159: 2017 | G159: 2807.1132 | H159: 2497.536282 | I159: 2441.129196 | J159: 3119.550196 | K159: 3624.08907 | L159: 4455.86849 | M159: 4680.209556 | N159: 4390.856014 | O159: 4328.88543 | P159: 3597.942265 | Q159: 2321.783953 | R159: 2681.113597
A160: OMU_R | B160: LG&E | C160: FNO | D160: Schedule 5 | F160: 2017 | G160: 4351.02546 | H160: 3871.181237 | I160: 3783.750254 | J160: 4835.302803 | K160: 5617.338059 | L160: 6906.596159 | M160: 7254.324812 | N160: 6805.826821 | O160: 6709.772416 | P160: 5576.810511 | Q160: 3598.765127 | R160: 4155.726076
A161: OMU_R | B161: LG&E | C161: FNO | D161: Schedule 6 | F161: 2017 | G161: 4351.02546 | H161: 3871.181237 | I161: 3783.750254 | J161: 4835.302803 | K161: 5617.338059 | L161: 6906.596159 | M161: 7254.324812 | N161: 6805.826821 | O161: 6709.772416 | P161: 5576.810511 | Q161: 3598.765127 | R161: 4155.726076
A162: OMU_R | B162: LG&E | C162: LFP | D162: Transmission Charge | F162: 2017 | G162: 144795.222 | H162: 144795.222 | I162: 144795.222 | J162: 144795.222 | K162: 144795.222 | L162: 159765.138 | M162: 162372.366 | N162: 162372.366 | O162: 162372.366 | P162: 162372.366 | Q162: 162372.366 | R162: 162372.366
A163: OMU_R | B163: LG&E | C163: LFP | D163: Schedule 1 | F163: 2017 | G163: 6937.788 | H163: 6937.788 | I163: 6937.788 | J163: 6937.788 | K163: 6937.788 | L163: 6991.1556 | M163: 7150.5564 | N163: 7150.5564 | O163: 7150.5564 | P163: 7150.5564 | Q163: 7150.5564 | R163: 7150.5564
A164: OMU_R | B164: LG&E | C164: LFP | D164: Schedule 2 | F164: 2017 | G164: 6855.68 | H164: 6855.68 | I164: 6855.68 | J164: 6855.68 | K164: 3427.84 | L164: 3427.84 | M164: 5571.28 | N164: 2785.64 | O164: 2785.64 | P164: 2785.64 | Q164: 1392.82 | R164: 1392.82
A165: OMU_R | B165: LG&E | C165: SFP | D165: Transmission Charge | F165: 2017 | G165: 0 | H165: 0 | I165: 3794.0994 | J165: 0 | K165: 0 | L165: 0 | M165: 0 | N165: 0 | O165: 0 | P165: 4425.0354 | Q165: 63699.9282 | R165: 63699.9282
A166: OMU_R | B166: LG&E | C166: SFP | D166: Schedule 1 | F166: 2017 | G166: 0 | H166: 0 | I166: 129.3138 | J166: 0 | K166: 0 | L166: 0 | M166: 0 | N166: 0 | O166: 0 | P166: 138.654873 | Q166: 2805.21828 | R166: 2805.21828
A167: OMU_R | B167: LG&E | C167: SFP | D167: Schedule 2 | F167: 2017 | G167: 0 | H167: 0 | I167: 149.084672 | J167: 0 | K167: 0 | L167: 0 | M167: 0 | N167: 0 | O167: 0 | P167: 63.030462 | Q167: 546.414 | R167: 546.414
A168: OMU_R | B168: LG&E | C168: NF | D168: Transmission Charge | F168: 2017 | G168: 21330.38646 | H168: 387.629496 | I168: 25387.83593 | J168: 13648.78782 | K168: 7278.089247 | L168: 1653.335232 | M168: 576.105441 | N168: 112.075338 | O168: 1022.328459 | P168: 877.917876 | Q168: 0 | R168: 566.551158
A169: OMU_R | B169: LG&E | C169: NF | D169: Schedule 1 | F169: 2017 | G169: 566.131027 | H169: 11.145618 | I169: 665.343448 | J169: 340.728179 | K169: 166.045077 | L169: 40.022279 | M169: 14.090473 | N169: 2.340831 | O169: 21.679804 | P169: 22.624534 | Q169: 0 | R169: 19.972292
A170: OMU_R | B170: LG&E | C170: NF | D170: Schedule 2 | F170: 2017 | G170: 865.618592 | H170: 18.134592 | I170: 1027.452192 | J170: 546.75696 | K170: 143.257344 | L170: 30.375936 | M170: 16.938834 | N170: 1.596386 | O170: 14.613896 | P170: 13.065723 | Q170: 0 | R170: 4.537379
A171: OMU_E | B171: LG&E | C171: MISO | D171: Transmission Charge | F171: 2017 | G171: -203331.38 | H171: -174406.89 | I171: -196285.53 | J171: -202254.81 | K171: =-189363.46+2140.52 -> -187222.94 | L171: -194447.66 | M171: -192865.82 | N171: -191271 | O171: -194257.18 | P171: -207039.52 | Q171: -380685 | R171: -380738.75
A172: OMU_E | B172: LG&E | C172: MISO | D172: Schedule 1 | F172: 2017 | G172: -8765.69 | H172: -8057.18 | I172: =-8588.1 -> -8588.1 | J172: -8699.98 | K172: -8384.99 | L172: -8159.58 | M172: -8133.69 | N172: -8095.8 | O172: -8156.68 | P172: -8556.73 | Q172: -16113 | R172: -16114.08
A173: OMU_E | B173: LG&E | C173: MISO | D173: Schedule 2 | F173: 2017 | G173: -9448.42 | H173: -8281.72 | I173: -9162.49 | J173: -9391.44 | K173: -4436.05 | L173: -4176.84 | M173: -4149.51 | N173: -2060 | O173: -2086.8 | P173: -2202.05 | Q173: -2050 | R173: -2050.24
A174: TVA Meredith | B174: KU | C174: FNO | D174: Transmission Service | F174: 2017 | G174: 98587.86371 | H174: 73119.79666 | I174: 91869.92574 | J174: 46191.70658 | K174: 59329.43824 | L174: 70347.18677 | M174: 88864.12704 | N174: 76037.64004 | O174: 75186.63062 | P174: 56925.89412 | Q174: 83024.171 | R174: 111515.9226
A175: TVA Meredith | B175: KU | C175: FNO | D175: Schedule 1 | F175: 2017 | G175: 4383.528489 | H175: 3454.402635 | I175: 4084.914258 | J175: 2054.088801 | K175: 2637.961893 | L175: 3127.669758 | M175: 3595.501569 | N175: 3076.656759 | O175: 3041.960922 | P175: 2303.746368 | Q175: 3359.274732 | R175: 4511.583483
A176: TVA Meredith | B176: KU | C176: FNO | D176: Schedule 2 | F176: 2017 | G176: 4581.352704 | H176: 3610.291712 | I176: 4269.288208 | J176: 2146.781696 | K176: 1378.503296 | L176: 1634.408384 | M176: 1306.81878 | N176: 559.119346 | O176: 552.814152 | P176: 418.65931 | Q176: 305.240106 | R176: 409.944399
A177: TVA Meredith | B177: KU | C177: SFP | D177: Transmission Service | F177: 2017 | G177: 0 | H177: 0 | I177: 0 | J177: 0 | K177: 52189.8 | L177: 0 | M177: 0 | N177: 0 | O177: 0 | P177: 0 | Q177: 0 | R177: 0
A178: TVA Meredith | B178: KU | C178: SFP | D178: Schedule 1 | F178: 2017 | G178: 0 | H178: 0 | I178: 0 | J178: 0 | K178: 1691.737218 | L178: 0 | M178: 0 | N178: 0 | O178: 0 | P178: 0 | Q178: 0 | R178: 0
A179: TVA Meredith | B179: KU | C179: SFP | D179: Schedule 2 | F179: 2017 | G179: 0 | H179: 0 | I179: 0 | J179: 0 | K179: 1031.0752 | L179: 0 | M179: 0 | N179: 0 | O179: 0 | P179: 0 | Q179: 0 | R179: 0
A180: TVA Meredith | B180: KU | C180: NF | D180: Transmission Service | F180: 2017 | G180: 0 | H180: 0 | I180: 0 | J180: 0 | K180: 783.656611 | L180: 0 | M180: 0 | N180: 0 | O180: 0 | P180: 0 | Q180: 0 | R180: 0
A181: TVA Meredith | B181: KU | C181: NF | D181: Schedule 1 | F181: 2017 | G181: 0 | H181: 0 | I181: 0 | J181: 0 | K181: 35.92134 | L181: 0 | M181: 0 | N181: 0 | O181: 0 | P181: 0 | Q181: 0 | R181: 0
A182: TVA Meredith | B182: KU | C182: NF | D182: Schedule 2 | F182: 2017 | G182: 0 | H182: 0 | I182: 0 | J182: 0 | K182: 18.80472 | L182: 0 | M182: 0 | N182: 0 | O182: 0 | P182: 0 | Q182: 0 | R182: 0
A183: TVA Meredith | B183: LGE | C183: FNO | D183: Transmission Service | F183: 2017 | G183: 48756.12629 | H183: 36161.02334 | I183: 45433.80426 | J183: 22843.87342 | K183: 29341.07176 | L183: 34789.84323 | M183: 45027.88296 | N183: 38528.63996 | O183: 38097.42938 | P183: 28844.62588 | Q183: 42068.749 | R183: 56505.65735
A184: TVA Meredith | B184: LGE | C184: FNO | D184: Schedule 1 | F184: 2017 | G184: 2279.381511 | H184: 1796.247365 | I184: 2124.105742 | J184: 1068.101199 | K184: 1371.708107 | L184: 1626.350242 | M184: 1935.188431 | N184: 1655.933241 | O184: 1637.259078 | P184: 1239.933632 | Q184: 1808.045268 | R184: 2428.246517
A185: TVA Meredith | B185: LGE | C185: FNO | D185: Schedule 2 | F185: 2017 | G185: 2252.407296 | H185: 1774.988288 | I185: 2098.981792 | J185: 1055.458304 | K185: 677.736704 | L185: 803.551616 | M185: 1507.78122 | N185: 645.100654 | O185: 637.825848 | P185: 483.04069 | Q185: 352.179894 | R185: 472.985601
A186: TVA Meredith | B186: LGE | C186: SFP | D186: Transmission Service | F186: 2017 | G186: 0 | H186: 0 | I186: 0 | J186: 0 | K186: 25810.2 | L186: 0 | M186: 0 | N186: 0 | O186: 0 | P186: 0 | Q186: 0 | R186: 0
A187: TVA Meredith | B187: LGE | C187: SFP | D187: Schedule 1 | F187: 2017 | G187: 0 | H187: 0 | I187: 0 | J187: 0 | K187: 879.682782 | L187: 0 | M187: 0 | N187: 0 | O187: 0 | P187: 0 | Q187: 0 | R187: 0
A188: TVA Meredith | B188: LGE | C188: SFP | D188: Schedule 2 | F188: 2017 | G188: 0 | H188: 0 | I188: 0 | J188: 0 | K188: 506.9248 | L188: 0 | M188: 0 | N188: 0 | O188: 0 | P188: 0 | Q188: 0 | R188: 0
A189: TVA Meredith | B189: LGE | C189: NF | D189: Transmission Service | F189: 2017 | G189: 0 | H189: 0 | I189: 0 | J189: 0 | K189: 387.553389 | L189: 0 | M189: 0 | N189: 0 | O189: 0 | P189: 0 | Q189: 0 | R189: 0
A190: TVA Meredith | B190: LGE | C190: NF | D190: Schedule 1 | F190: 2017 | G190: 0 | H190: 0 | I190: 0 | J190: 0 | K190: 18.67866 | L190: 0 | M190: 0 | N190: 0 | O190: 0 | P190: 0 | Q190: 0 | R190: 0
A191: TVA Meredith | B191: LGE | C191: NF | D191: Schedule 2 | F191: 2017 | G191: 0 | H191: 0 | I191: 0 | J191: 0 | K191: 9.24528 | L191: 0 | M191: 0 | N191: 0 | O191: 0 | P191: 0 | Q191: 0 | R191: 0
A192: NextEra | B192: KU | C192: SFP | D192: Transmission Charge | F192: 2017 | G192: 0 | H192: 0 | I192: 0 | J192: 0 | K192: 0 | L192: 0 | M192: 0 | N192: 0 | O192: 0 | P192: 0 | Q192: 0 | R192: 0
A193: NextEra | B193: KU | C193: SFP | D193: Schedule 1 | F193: 2017 | G193: 0 | H193: 0 | I193: 0 | J193: 0 | K193: 0 | L193: 0 | M193: 0 | N193: 0 | O193: 0 | P193: 0 | Q193: 0 | R193: 0
A194: NextEra | B194: KU | C194: SFP | D194: Schedule 2 | F194: 2017 | G194: 0 | H194: 0 | I194: 0 | J194: 0 | K194: 0 | L194: 0 | M194: 0 | N194: 0 | O194: 0 | P194: 0 | Q194: 0 | R194: 0
A195: NextEra | B195: KU | C195: NF | D195: Transmission Charge | F195: 2017 | G195: 0 | H195: 0 | I195: 0 | J195: 0 | K195: 0 | L195: 0 | M195: 0 | N195: 0 | O195: 0 | P195: 0 | Q195: 0 | R195: 0
A196: NextEra | B196: KU | C196: NF | D196: Schedule 1 | F196: 2017 | G196: 0 | H196: 0 | I196: 0 | J196: 0 | K196: 0 | L196: 0 | M196: 0 | N196: 0 | O196: 0 | P196: 0 | Q196: 0 | R196: 0
A197: NextEra | B197: KU | C197: NF | D197: Schedule 2 | F197: 2017 | G197: 0 | H197: 0 | I197: 0 | J197: 0 | K197: 0 | L197: 0 | M197: 0 | N197: 0 | O197: 0 | P197: 0 | Q197: 0 | R197: 0
A198: NextEra | B198: LGE | C198: SFP | D198: Transmission Charge | F198: 2017 | G198: 0 | H198: 0 | I198: 0 | J198: 0 | K198: 0 | L198: 0 | M198: 0 | N198: 0 | O198: 0 | P198: 0 | Q198: 0 | R198: 0
A199: NextEra | B199: LGE | C199: SFP | D199: Schedule 1 | F199: 2017 | G199: 0 | H199: 0 | I199: 0 | J199: 0 | K199: 0 | L199: 0 | M199: 0 | N199: 0 | O199: 0 | P199: 0 | Q199: 0 | R199: 0
A200: NextEra | B200: LGE | C200: SFP | D200: Schedule 2 | F200: 2017 | G200: 0 | H200: 0 | I200: 0 | J200: 0 | K200: 0 | L200: 0 | M200: 0 | N200: 0 | O200: 0 | P200: 0 | Q200: 0 | R200: 0
... 1740 more rows

Sheet Sheet1 (hidden)
A3: KMPA_R | B3: KU | C3: FNO | D3: Transmission Charge | F3: 2011 | G3: 102384 | H3: 102384 | I3: 90060
A4: KMPA_R | B4: KU | C4: FNO | D4: Schedule 1 | F4: 2011 | G4: 3812.4 | H4: 3812.4 | I4: 3353.5
A5: KMPA_R | B5: KU | C5: FNO | D5: Schedule 2 | F5: 2011 | G5: 6480 | H5: 6480 | I5: 5700
A6: KMPA_R | B6: KU | C6: FNO | D6: Schedule 3 | F6: 2011 | G6: 7452 | H6: 7452 | I6: 6555
A7: KMPA_R | B7: KU | C7: FNO | D7: Schedule 5 | F7: 2011 | G7: 11550.6 | H7: 11550.6 | I7: 10160.25
A8: KMPA_R | B8: KU | C8: FNO | D8: Schedule 6 | F8: 2011 | G8: 11550.6 | H8: 11550.6 | I8: 10160.25
A9: KMPA_R | B9: KU | C9: FNO | D9: Schedule 26 Charge (MISO Only) | F9: 2011 | G9: 0 | H9: 0 | I9: 0
A10: KMPA_R | B10: KU | C10: FNO | D10: Schedule 12 Penalty Revenue Distribution to Non-Offending Customers | F10: 2011 | G10: -47.04 | H10: -77.69 | I10: -77.69
D12: Transmission Charge | G12: 0.6952
D13: Schedule 1 | G13: 0.5
D14: Schedule 2 | G14: 0.4329
D15: Schedule 3 | G15: 0.4329
D16: Schedule 5 | G16: 0.4329
D17: Schedule 6 | G17: 0.4329
D18: Schedule 26 Charge (MISO Only)
D19: Schedule 12 Penalty Revenue Distribution to Non-Offending Customers
A21: KMPA_R | B21: KU | C21: FNO | D21: Transmission Charge | F21: 2010 | G21: =+G3*$G$12 -> 71177.3568 | H21: =+H3*$G$12 -> 71177.3568 | I21: 62609.712 | J21: 0 | K21: 0 | L21: 0 | M21: 0 | N21: 0 | O21: 0 | P21: 0 | Q21: 0 | R21: 0
A22: KMPA_R | B22: KU | C22: FNO | D22: Schedule 1 | F22: 2010 | G22: =+G4*$G$13 -> 1906.2 | H22: =+H4*$G$13 -> 1906.2 | I22: 1676.75 | J22: 0 | K22: 0 | L22: 0 | M22: 0 | N22: 0 | O22: 0 | P22: 0 | Q22: 0 | R22: 0
A23: KMPA_R | B23: KU | C23: FNO | D23: Schedule 2 | F23: 2010 | G23: =+G5*$G$14 -> 2805.192 | H23: =+H5*$G$14 -> 2805.192 | I23: 2467.53 | J23: 0 | K23: 0 | L23: 0 | M23: 0 | N23: 0 | O23: 0 | P23: 0 | Q23: 0 | R23: 0
A24: KMPA_R | B24: KU | C24: FNO | D24: Schedule 3 | F24: 2010 | G24: =+G6*$G$15 -> 3225.9708 | H24: =+H6*$G$15 -> 3225.9708 | I24: 2837.6595 | J24: 0 | K24: 0 | L24: 0 | M24: 0 | N24: 0 | O24: 0 | P24: 0 | Q24: 0 | R24: 0
A25: KMPA_R | B25: KU | C25: FNO | D25: Schedule 5 | F25: 2010 | G25: =+G7*$G$16 -> 5000.25474 | H25: =+H7*$G$16 -> 5000.25474 | I25: 4398.372225 | J25: 0 | K25: 0 | L25: 0 | M25: 0 | N25: 0 | O25: 0 | P25: 0 | Q25: 0 | R25: 0
A26: KMPA_R | B26: KU | C26: FNO | D26: Schedule 6 | F26: 2010 | G26: =+G8*$G$17 -> 5000.25474 | H26: =+H8*$G$17 -> 5000.25474 | I26: 4398.372225 | J26: 0 | K26: 0 | L26: 0 | M26: 0 | N26: 0 | O26: 0 | P26: 0 | Q26: 0 | R26: 0
A27: KMPA_R | B27: KU | C27: FNO | D27: Schedule 26 Charge (MISO Only) | F27: 2010
A28: KMPA_R | B28: KU | C28: FNO | D28: Schedule 12 Penalty Revenue Distribution to Non-Offending Customers | F28: 2010 | G28: =+G10*$G$12 -> -32.702208 | H28: =+H10*$G$12 -> -54.010088 | I28: -54.010088 | J28: 0 | K28: 0 | L28: 0 | M28: 0 | N28: 0 | O28: 0 | P28: 0 | Q28: 0 | R28: 0
A29: KMPA_R | B29: LG&E | C29: FNO | D29: Transmission Charge | F29: 2010 | G29: =+G3-G21 -> 31206.6432 | H29: =+H3-H21 -> 31206.6432 | I29: 27450.288 | J29: 0 | K29: 0 | L29: 0 | M29: 0 | N29: 0 | O29: 0 | P29: 0 | Q29: 0 | R29: 0
A30: KMPA_R | B30: LG&E | C30: FNO | D30: Schedule 1 | F30: 2010 | G30: =+G4-G22 -> 1906.2 | H30: 1906.2 | I30: 1676.75 | J30: 0 | K30: 0 | L30: 0 | M30: 0 | N30: 0 | O30: 0 | P30: 0 | Q30: 0 | R30: 0
A31: KMPA_R | B31: LG&E | C31: FNO | D31: Schedule 2 | F31: 2010 | G31: 3674.808 | H31: 3674.808 | I31: 3232.47 | J31: 0 | K31: 0 | L31: 0 | M31: 0 | N31: 0 | O31: 0 | P31: 0 | Q31: 0 | R31: 0
A32: KMPA_R | B32: LG&E | C32: FNO | D32: Schedule 3 | F32: 2010 | G32: 4226.0292 | H32: 4226.0292 | I32: 3717.3405 | J32: 0 | K32: 0 | L32: 0 | M32: 0 | N32: 0 | O32: 0 | P32: 0 | Q32: 0 | R32: 0
A33: KMPA_R | B33: LG&E | C33: FNO | D33: Schedule 5 | F33: 2010 | G33: 6550.34526 | H33: 6550.34526 | I33: 5761.877775 | J33: 0 | K33: 0 | L33: 0 | M33: 0 | N33: 0 | O33: 0 | P33: 0 | Q33: 0 | R33: 0
A34: KMPA_R | B34: LG&E | C34: FNO | D34: Schedule 6 | F34: 2010 | G34: 6550.34526 | H34: 6550.34526 | I34: 5761.877775 | J34: 0 | K34: 0 | L34: 0 | M34: 0 | N34: 0 | O34: 0 | P34: 0 | Q34: 0 | R34: 0
A35: KMPA_R | B35: LG&E | C35: FNO | D35: Schedule 26 Charge (MISO Only) | F35: 2010 | G35: 0 | H35: 0 | I35: 0 | J35: 0 | K35: 0 | L35: 0 | M35: 0 | N35: 0 | O35: 0 | P35: 0 | Q35: 0 | R35: 0
A36: KMPA_R | B36: LG&E | C36: FNO | D36: Schedule 12 Penalty Revenue Distribution to Non-Offending Customers | F36: 2010 | G36: -14.337792 | H36: -23.679912 | I36: -23.679912 | J36: 0 | K36: 0 | L36: 0 | M36: 0 | N36: 0 | O36: 0 | P36: 0 | Q36: 0 | R36: 0

Sheet Sch 3 5 6 Charges (hidden)
B1: Values
A2: Row Labels | B2: Sum of January | C2: Sum of February | D2: Sum of March | E2: Sum of April | F2: Sum of May | G2: Sum of June | H2: Sum of July | I2: Sum of August | J2: Sum of September | K2: Sum of October | L2: Sum of November | M2: Sum of December | N2: Sum of Year Total
A3: 2010 | B3: 0 | C3: 0 | D3: 0 | E3: 30836.1 | F3: 77231.7 | G3: 89113.5 | H3: 89396.4 | I3: 97034.7 | J3: 80909.4 | K3: 66481.5 | L3: 49790.4 | M3: 59691.9 | N3: 640485.6
A4: KMPA_R | B4: 0 | C4: 0 | D4: 0 | E4: 30836.1 | F4: 36494.1 | G4: 34796.7 | H4: 35645.4 | I4: 38474.4 | J4: 31684.8 | K4: 29704.5 | L4: 22349.1 | M4: 28007.1 | N4: 287992.2
A5: FNO | B5: 0 | C5: 0 | D5: 0 | E5: 30836.1 | F5: 36494.1 | G5: 34796.7 | H5: 35645.4 | I5: 38474.4 | J5: 31684.8 | K5: 29704.5 | L5: 22349.1 | M5: 28007.1 | N5: 287992.2
A6: Schedule 3 | B6: 0 | C6: 0 | D6: 0 | E6: 7521 | F6: 8901 | G6: 8487 | H6: 8694 | I6: 9384 | J6: 7728 | K6: 7245 | L6: 5451 | M6: 6831 | N6: 70242
A7: Schedule 5 | B7: 0 | C7: 0 | D7: 0 | E7: 11657.55 | F7: 13796.55 | G7: 13154.85 | H7: 13475.7 | I7: 14545.2 | J7: 11978.4 | K7: 11229.75 | L7: 8449.05 | M7: 10588.05 | N7: 108875.1
A8: Schedule 6 | B8: 0 | C8: 0 | D8: 0 | E8: 11657.55 | F8: 13796.55 | G8: 13154.85 | H8: 13475.7 | I8: 14545.2 | J8: 11978.4 | K8: 11229.75 | L8: 8449.05 | M8: 10588.05 | N8: 108875.1
A9: OMU | B9: 0 | C9: 0 | D9: 0 | E9: 0 | F9: 40737.6 | G9: 54316.8 | H9: 53751 | I9: 58560.3 | J9: 49224.6 | K9: 36777 | L9: 27441.3 | M9: 31684.8 | N9: 352493.4
A10: FNO | B10: 0 | C10: 0 | D10: 0 | E10: 0 | F10: 0 | G10: 42671.74 | H10: 42227.24 | I10: 46005.47 | J10: 38671.27 | K10: 28892.33 | L10: 21558.12 | M10: 24891.85 | N10: 244918.02
A11: Schedule 3 | B11: 0 | C11: 0 | D11: 0 | E11: 0 | F11: 0 | G11: 13248 | H11: 13110 | I11: 14283 | J11: 12006 | K11: 8970 | L11: 6693 | M11: 7728 | N11: 76038
A12: Schedule 5 | B12: 0 | C12: 0 | D12: 0 | E12: 0 | F12: 0 | G12: 20534.4 | H12: 20320.5 | I12: 22138.65 | J12: 18609.3 | K12: 13903.5 | L12: 10374.15 | M12: 11978.4 | N12: 117858.9
A13: Schedule 6 | B13: 0 | C13: 0 | D13: 0 | E13: 0 | F13: 0 | G13: 8889.34 | H13: 8796.74 | I13: 9583.82 | J13: 8055.97 | K13: 6018.83 | L13: 4490.97 | M13: 5185.45 | N13: 51021.12
A14: LFP | B14: 0 | C14: 0 | D14: 0 | E14: 0 | F14: 32003.81 | G14: 11645.06 | H14: 11523.76 | I14: 12554.83 | J14: 10553.33 | K14: 7884.67 | L14: 5883.18 | M14: 6792.95 | N14: 98841.59
A15: Schedule 3 | B15: 0 | C15: 0 | D15: 0 | E15: 0 | F15: 9936 | G15: 0 | H15: 0 | I15: 0 | J15: 0 | K15: 0 | L15: 0 | M15: 0 | N15: 9936
A16: Schedule 5 | B16: 0 | C16: 0 | D16: 0 | E16: 0 | F16: 15400.8 | G16: 0 | H16: 0 | I16: 0 | J16: 0 | K16: 0 | L16: 0 | M16: 0 | N16: 15400.8
A17: Schedule 6 | B17: 0 | C17: 0 | D17: 0 | E17: 0 | F17: 6667.01 | G17: 11645.06 | H17: 11523.76 | I17: 12554.83 | J17: 10553.33 | K17: 7884.67 | L17: 5883.18 | M17: 6792.95 | N17: 73504.79
A18: NF | B18: 0 | C18: 0 | D18: 0 | E18: 0 | F18: 0 | G18: 0 | H18: 0 | I18: 0 | J18: 0 | K18: 0 | L18: 0 | M18: 0 | N18: 0
A19: Schedule 3 | B19: 0 | C19: 0 | D19: 0 | E19: 0 | F19: 0 | G19: 0 | H19: 0 | I19: 0 | J19: 0 | K19: 0 | L19: 0 | M19: 0 | N19: 0
A20: Schedule 5 | B20: 0 | C20: 0 | D20: 0 | E20: 0 | F20: 0 | G20: 0 | H20: 0 | I20: 0 | J20: 0 | K20: 0 | L20: 0 | M20: 0 | N20: 0
A21: Schedule 6 | B21: 0 | C21: 0 | D21: 0 | E21: 0 | F21: 0 | G21: 0 | H21: 0 | I21: 0 | J21: 0 | K21: 0 | L21: 0 | M21: 0 | N21: 0
A22: SFP | B22: 0 | C22: 0 | D22: 0 | E22: 0 | F22: 8733.79 | G22: 0 | H22: 0 | I22: 0 | J22: 0 | K22: 0 | L22: 0 | M22: 0 | N22: 8733.79
A23: Schedule 3 | B23: 0 | C23: 0 | D23: 0 | E23: 0 | F23: 0 | G23: 0 | H23: 0 | I23: 0 | J23: 0 | K23: 0 | L23: 0 | M23: 0 | N23: 0
A24: Schedule 5 | B24: 0 | C24: 0 | D24: 0 | E24: 0 | F24: 0 | G24: 0 | H24: 0 | I24: 0 | J24: 0 | K24: 0 | L24: 0 | M24: 0 | N24: 0
A25: Schedule 6 | B25: 0 | C25: 0 | D25: 0 | E25: 0 | F25: 8733.79 | G25: 0 | H25: 0 | I25: 0 | J25: 0 | K25: 0 | L25: 0 | M25: 0 | N25: 8733.79
A26: 2011 | B26: 64784.1 | C26: 62238 | D26: 58277.4 | E26: 46112.7 | F26: 91093.8 | G26: 97317.6 | H26: 105238.8 | I26: 100995.3 | J26: 101561.1 | K26: 65067 | N26: 792685.8
A27: KMPA_R | B27: 30553.2 | C27: 30553.2 | D27: 26875.5 | E27: 21500.4 | F27: 41869.2 | G27: 46112.7 | H27: 50356.2 | I27: 47810.1 | J27: 47527.2 | K27: 28007.1 | N27: 371164.8
A28: FNO | B28: 30553.2 | C28: 30553.2 | D28: 26875.5 | E28: 21500.4 | F28: 41869.2 | G28: 46112.7 | H28: 50356.2 | I28: 47810.1 | J28: 47527.2 | K28: 28007.1 | N28: 371164.8
A29: Schedule 3 | B29: 7452 | C29: 7452 | D29: 6555 | E29: 5244 | F29: 10212 | G29: 11247 | H29: 12282 | I29: 11661 | J29: 11592 | K29: 6831 | N29: 90528
A30: Schedule 5 | B30: 11550.6 | C30: 11550.6 | D30: 10160.25 | E30: 8128.2 | F30: 15828.6 | G30: 17432.85 | H30: 19037.1 | I30: 18074.55 | J30: 17967.6 | K30: 10588.05 | N30: 140318.4
A31: Schedule 6 | B31: 11550.6 | C31: 11550.6 | D31: 10160.25 | E31: 8128.2 | F31: 15828.6 | G31: 17432.85 | H31: 19037.1 | I31: 18074.55 | J31: 17967.6 | K31: 10588.05 | N31: 140318.4
A32: OMU | B32: 34230.9 | C32: 31684.8 | D32: 31401.9 | E32: 24612.3 | F32: 49224.6 | G32: 51204.9 | H32: 54882.6 | I32: 53185.2 | J32: 54033.9 | K32: 37059.9 | N32: 421521
A33: FNO | B33: 26892.09 | C33: 24891.85 | D33: 24669.6 | E33: 19335.63299 | F33: 38671.26597 | G33: 40227.00655 | H33: 43116.23907 | I33: 41782.74714 | J33: 42449.49311 | K33: 29114.5738 | N33: 331150.4986
A34: Schedule 3 | B34: 8349 | C34: 7728 | D34: 7659 | E34: 6003 | F34: 12006 | G34: 12489 | H34: 13386 | I34: 12972 | J34: 13179 | K34: 9039 | N34: 102810
A35: Schedule 5 | B35: 12940.95 | C35: 11978.4 | D35: 11871.45 | E35: 9304.65 | F35: 18609.3 | G35: 19357.95 | H35: 20748.3 | I35: 20106.6 | J35: 20427.45 | K35: 14010.45 | N35: 159355.5
A36: Schedule 6 | B36: 5602.14 | C36: 5185.45 | D36: 5139.15 | E36: 4027.982985 | F36: 8055.96597 | G36: 8380.056555 | H36: 8981.93907 | I36: 8704.14714 | J36: 8843.043105 | K36: 6065.123805 | N36: 68984.99863
A37: LFP | B37: 7338.81 | C37: 6792.95 | D37: 6732.3 | E37: 5276.667015 | F37: 10553.33403 | G37: 10977.89344 | H37: 11766.36093 | I37: 11402.45286 | J37: 11584.4069 | K37: 7945.326195 | N37: 90370.50137
A38: Schedule 3 | B38: 0 | C38: 0 | D38: 0 | E38: 0 | F38: 0 | G38: 0 | H38: 0 | I38: 0 | J38: 0 | K38: 0 | N38: 0
A39: Schedule 5 | B39: 0 | C39: 0 | D39: 0 | E39: 0 | F39: 0 | G39: 0 | H39: 0 | I39: 0 | J39: 0 | K39: 0 | N39: 0
A40: Schedule 6 | B40: 7338.81 | C40: 6792.95 | D40: 6732.3 | E40: 5276.667015 | F40: 10553.33403 | G40: 10977.89344 | H40: 11766.36093 | I40: 11402.45286 | J40: 11584.4069 | K40: 7945.326195 | N40: 90370.50137
A41: NF | B41: 0 | C41: 0 | D41: 0 | E41: 0 | F41: 0 | G41: 0 | H41: 0 | I41: 0 | J41: 0 | K41: 0 | N41: 0
A42: Schedule 3 | B42: 0 | C42: 0 | D42: 0 | E42: 0 | F42: 0 | G42: 0 | H42: 0 | I42: 0 | J42: 0 | K42: 0 | N42: 0
A43: Schedule 5 | B43: 0 | C43: 0 | D43: 0 | E43: 0 | F43: 0 | G43: 0 | H43: 0 | I43: 0 | J43: 0 | K43: 0 | N43: 0
A44: Schedule 6 | B44: 0 | C44: 0 | D44: 0 | E44: 0 | F44: 0 | G44: 0 | H44: 0 | I44: 0 | J44: 0 | K44: 0 | N44: 0
A45: SFP | B45: 0 | C45: 0 | D45: 0 | E45: 0 | F45: 0 | G45: 0 | H45: 0 | I45: 0 | J45: 0 | K45: 0 | N45: 0
A46: Schedule 3 | B46: 0 | C46: 0 | D46: 0 | E46: 0 | F46: 0 | G46: 0 | H46: 0 | I46: 0 | J46: 0 | K46: 0 | N46: 0
A47: Schedule 5 | B47: 0 | C47: 0 | D47: 0 | E47: 0 | F47: 0 | G47: 0 | H47: 0 | I47: 0 | J47: 0 | K47: 0 | N47: 0
A48: Schedule 6 | B48: 0 | C48: 0 | D48: 0 | E48: 0 | F48: 0 | G48: 0 | H48: 0 | I48: 0 | J48: 0 | K48: 0 | N48: 0
A49: Grand Total | B49: 64784.1 | C49: 62238 | D49: 58277.4 | E49: 76948.8 | F49: 168325.5 | G49: 186431.1 | H49: 194635.2 | I49: 198030 | J49: 182470.5 | K49: 131548.5 | L49: 49790.4 | M49: 59691.9 | N49: 1433171.4
A52: Total KMPA
A53: Schedule 3 | B53: =+GETPIVOTDATA("Sum of Year Total",$A$1,"Customer","KMPA_R","Product","FNO","Type","Schedule 3","Year",2010)+GETPIVOTDATA("Sum of Year Total",$A$1,"Customer","KMPA_R","Product","FNO","Type","Schedule 3","Year",2011) -> 160770
A54: Schedule 5 | B54: =+GETPIVOTDATA("Sum of Year Total",$A$1,"Customer","KMPA_R","Product","FNO","Type","Schedule 5","Year",2010)+GETPIVOTDATA("Sum of Year Total",$A$1,"Customer","KMPA_R","Product","FNO","Type","Schedule 5","Year",2011) -> 249193.5
A55: Schedule 6 | B55: =+GETPIVOTDATA("Sum of Year Total",$A$1,"Customer","KMPA_R","Product","FNO","Type","Schedule 6","Year",2010)+GETPIVOTDATA("Sum of Year Total",$A$1,"Customer","KMPA_R","Product","FNO","Type","Schedule 6","Year",2011) -> 249193.5
B56: =SUM(B53:B55) -> 659157
A57: Total OMU
A58: Schedule 3 | B58: =+GETPIVOTDATA("Sum of Year Total",$A$1,"Customer","OMU","Product","FNO","Type","Schedule 3","Year",2010)+GETPIVOTDATA("Sum of Year Total",$A$1,"Customer","OMU","Product","LFP","Type","Schedule 3","Year",2010)+GETPIVOTDATA("Sum of Year Total",$A$1,"Customer","OMU","Product","FNO","Type","Schedule 3","Year",2011) -> 188784
A59: Schedule 5 | B59: =+GETPIVOTDATA("Sum of Year Total",$A$1,"Customer","OMU","Product","FNO","Type","Schedule 5","Year",2010)+GETPIVOTDATA("Sum of Year Total",$A$1,"Customer","OMU","Product","LFP","Type","Schedule 5","Year",2010)+GETPIVOTDATA("Sum of Year Total",$A$1,"Customer","OMU","Product","FNO","Type","Schedule 5","Year",2011) -> 292615.2
A60: Schedule 6 | B60: =+GETPIVOTDATA("Sum of Year Total",$A$1,"Customer","OMU","Product","FNO","Type","Schedule 6","Year",2010)+GETPIVOTDATA("Sum of Year Total",$A$1,"Customer","OMU","Product","LFP","Type","Schedule 6","Year",2010)+GETPIVOTDATA("Sum of Year Total",$A$1,"Customer","OMU","Product","SFP","Type","Schedule 6","Year",2010)+GETPIVOTDATA("Sum of Year Total",$A$1,"Customer","OMU","Product","FNO","Type","Schedule 6","Year",2011)+GETPIVOTDATA("Sum of Year Total",$A$1,"Customer","OMU","Product","LFP","Type","Schedule 6","Year",2011) -> 292615.2
B61: =SUM(B58:B60) -> 774014.4
A63: Grand Total
A64: Schedule 3 | B64: =+B53+B58 -> 349554
A65: Schedule 5 | B65: =+B54+B59 -> 541808.7
A66: Schedule 6 | B66: 541808.7
B67: =SUM(B64:B66) -> 1433171.4

Sheet Sheet3 (hidden)
A1: Calculated Field
A2: Solve Order | B2: Field | C2: Formula
A3: 1 | B3: YEAR Total | C3: =January+February+March+April+May+June+July+August+September+October+November+December
A5: Calculated Item
A6: Solve Order | B6: Item | C6: Formula
A9: Note: | B9: When a cell is updated by more than one formula,
B10: the value is set by the formula with the last solve order.
B12: To change the solve order for multiple calculated items or fields,
B13: on the Options tab, in the Tools group, click Formulas, and then click Solve Order.

Sheet Data for Charts (hidden)
A1: ACTUALS
A2: Network
C3: January | D3: February | E3: March | F3: April | G3: May | H3: June | I3: July | J3: August | K3: September | L3: October | M3: November | N3: December
A4: EKPC | B4: FNO | C4: =SUM(Data!G50:G52)+SUM(Data!G59:G61) -> 850424.77 | D4: =SUM(Data!H50:H52)+SUM(Data!H59:H61) -> 731535.44 | E4: =SUM(Data!I50:I52)+SUM(Data!I59:I61) -> 791223.79 | F4: =SUM(Data!J50:J52)+SUM(Data!J59:J61) -> 533403.26 | G4: =SUM(Data!K50:K52)+SUM(Data!K59:K61) -> 598013.49 | H4: =SUM(Data!L50:L52)+SUM(Data!L59:L61) -> 777798.95 | I4: =SUM(Data!M50:M52)+SUM(Data!M59:M61) -> 813652.89 | J4: =SUM(Data!N50:N52)+SUM(Data!N59:N61) -> 786739.7 | K4: =SUM(Data!O50:O52)+SUM(Data!O59:O61) -> 735964.84 | L4: =SUM(Data!P50:P52)+SUM(Data!P59:P61) -> 576121.06 | M4: =SUM(Data!Q50:Q52)+SUM(Data!Q59:Q61) -> 780967.83 | N4: =SUM(Data!R50:R52)+SUM(Data!R59:R61) -> 940632.53
A5: KMPA | B5: FNO | C5: =SUM(Data!G68:G77)+SUM(Data!G81:G90) -> 225245.31 | D5: =SUM(Data!H68:H77)+SUM(Data!H81:H90) -> 183777.4227 | E5: =SUM(Data!I68:I77)+SUM(Data!I81:I90) -> 183037.7332 | F5: =SUM(Data!J68:J77)+SUM(Data!J81:J90) -> 200363.0631 | G5: =SUM(Data!K68:K77)+SUM(Data!K81:K90) -> 252667.1045 | H5: =SUM(Data!L68:L77)+SUM(Data!L81:L90) -> 331786.731 | I5: =SUM(Data!M68:M77)+SUM(Data!M81:M90) -> 381773.1695 | J5: =SUM(Data!N68:N77)+SUM(Data!N81:N90) -> 289755.0935 | K5: =SUM(Data!O68:O77)+SUM(Data!O81:O90) -> 323948.5325 | L5: =SUM(Data!P68:P77)+SUM(Data!P81:P90) -> 252266.1955 | M5: =SUM(Data!Q68:Q77)+SUM(Data!Q81:Q90) -> 181421.352 | N5: =SUM(Data!R68:R77)+SUM(Data!R81:R90) -> 227045.527
A6: OMU | B6: FNO | C6: =SUM(Data!G141:G146)+SUM(Data!G156:G161) -> 179010.32 | D6: =SUM(Data!H141:H146)+SUM(Data!H156:H161) -> 154622.049 | E6: =SUM(Data!I141:I146)+SUM(Data!I156:I161) -> 128626.762 | F6: =SUM(Data!J141:J146)+SUM(Data!J156:J161) -> 203605.3842 | G6: =SUM(Data!K141:K146)+SUM(Data!K156:K161) -> 243342.805 | H6: =SUM(Data!L141:L146)+SUM(Data!L156:L161) -> 338897.1011 | I6: =SUM(Data!M141:M146)+SUM(Data!M156:M161) -> 361651.779 | J6: =SUM(Data!N141:N146)+SUM(Data!N156:N161) -> 336695.6494 | K6: =SUM(Data!O141:O146)+SUM(Data!O156:O161) -> 331361.2225 | L6: =SUM(Data!P141:P146)+SUM(Data!P156:P161) -> 268254.1233 | M6: =SUM(Data!Q141:Q146)+SUM(Data!Q156:Q161) -> 158200.1153 | N6: =SUM(Data!R141:R146)+SUM(Data!R156:R161) -> 189201.7563
A7: TVA | B7: FNO | C7: =SUM(Data!G174:G179) -> 107552.7449 | D7: =SUM(Data!H174:H179) -> 80184.49101 | E7: =SUM(Data!I174:I179) -> 100224.1282 | F7: =SUM(Data!J174:J179) -> 50392.57708 | G7: =SUM(Data!K174:K179) -> 118258.5158 | H7: =SUM(Data!L174:L179) -> 75109.26492 | I7: =SUM(Data!M174:M179) -> 93766.44739 | J7: =SUM(Data!N174:N179) -> 79673.41614 | K7: =SUM(Data!O174:O179) -> 78781.4057 | L7: =SUM(Data!P174:P179) -> 59648.2998 | M7: =SUM(Data!Q174:Q179) -> 86688.68584 | N7: =SUM(Data!R174:R179) -> 116437.4505
A8: BREC | B8: FNO | C8: =SUM(Data!G2:G4)+SUM(Data!G11:G13) -> 23444.21 | D8: =SUM(Data!H2:H4)+SUM(Data!H11:H13) -> 17296.27 | E8: =SUM(Data!I2:I4)+SUM(Data!I11:I13) -> 14077 | F8: =SUM(Data!J2:J4)+SUM(Data!J11:J13) -> 19667.37 | G8: =SUM(Data!K2:K4)+SUM(Data!K11:K13) -> 20682.76 | H8: =SUM(Data!L2:L4)+SUM(Data!L11:L13) -> 21122.51 | I8: =SUM(Data!M2:M4)+SUM(Data!M11:M13) -> 24600.73 | J8: =SUM(Data!N2:N4)+SUM(Data!N11:N13) -> 25317.53 | K8: =SUM(Data!O2:O4)+SUM(Data!O11:O13) -> 23477.65 | L8: =SUM(Data!P2:P4)+SUM(Data!P11:P13) -> 17640.99 | M8: =SUM(Data!Q2:Q4)+SUM(Data!Q11:Q13) -> 10634.39 | N8: =SUM(Data!R2:R4)+SUM(Data!R11:R13) -> 5846.08
A9: KYMA | B9: FNO, OS | C9: =SUM(Data!G240:G253) -> 4069.508 | D9: =SUM(Data!H240:H253) -> 4171.3143 | E9: =SUM(Data!I240:I253) -> 4659.7584 | F9: =SUM(Data!J240:J253) -> 1335.9782 | G9: =SUM(Data!K254:K268) -> 21696.8204 | H9: =SUM(Data!L254:L268) -> 26795.8005 | I9: =SUM(Data!M254:M268) -> 30836.219 | J9: =SUM(Data!N254:N268) -> 28356.7985 | K9: =SUM(Data!O254:O268) -> 24872.3815 | L9: =SUM(Data!P254:P268) -> 17871.298 | M9: =SUM(Data!Q254:Q268) -> 26305.53953 | N9: =SUM(Data!R254:R268) -> 34179.5115
A10: Hoosier | B10: FNO | C10: =SUM(Data!G234:G239) -> 9414.56 | D10: =SUM(Data!H234:H239) -> 7531.61 | E10: =SUM(Data!I234:I239) -> 7027.41 | F10: =SUM(Data!J234:J239) -> 7531.75 | G10: =SUM(Data!K234:K239) -> 7371.54 | H10: =SUM(Data!L234:L239) -> 10106.94 | I10: =SUM(Data!M234:M239) -> 10106.92 | J10: =SUM(Data!N234:N239) -> 10006.98 | K10: =SUM(Data!O234:O239) -> 10007.53 | L10: =SUM(Data!P234:P239) -> 8004.37 | M10: =SUM(Data!Q234:Q239) -> 7965.23 | N10: =SUM(Data!R234:R239) -> 9957.05
C11: =SUM(C4:C10) -> 1399161.423 | D11: =SUM(D4:D10) -> 1179118.597 | E11: 1228876.582 | F11: 1016299.383 | G11: 1262033.036 | H11: 1581617.298 | I11: 1716388.155 | J11: 1556545.168 | K11: 1528413.562 | L11: 1199806.337 | M11: 1252183.143 | N11: 1523299.905
A14: LT Firm PTP
A16: OMU | B16: LFP-Other Firm | C16: =SUM(Data!G147:G149)+SUM(Data!G162:G164) -> 478660 | D16: =SUM(Data!H147:H149)+SUM(Data!H162:H164) -> 478660 | E16: =SUM(Data!I147:I149)+SUM(Data!I162:I164) -> 478660 | F16: =SUM(Data!J147:J149)+SUM(Data!J162:J164) -> 478660 | G16: =SUM(Data!K147:K149)+SUM(Data!K162:K164) -> 468260 | H16: =SUM(Data!L147:L149)+SUM(Data!L162:L164) -> 513656 | I16: =SUM(Data!M147:M149)+SUM(Data!M162:M164) -> 513656 | J16: =SUM(Data!N147:N149)+SUM(Data!N162:N164) -> 508456 | K16: =SUM(Data!O147:O149)+SUM(Data!O162:O164) -> 508456 | L16: =SUM(Data!P147:P149)+SUM(Data!P162:P164) -> 508456 | M16: =SUM(Data!Q147:Q149)+SUM(Data!Q162:Q164) -> 505856 | N16: =SUM(Data!R147:R149)+SUM(Data!R162:R164) -> 505856
C18: =SUM(C16:C17) -> 478660 | D18: 478660 | E18: 478660 | F18: 478660 | G18: 468260 | H18: 513656 | I18: 513656 | J18: 508456 | K18: 508456 | L18: 508456 | M18: 505856 | N18: 505856
A20: ST Firm PTP
A22: Cargill | B22: SFP | C22: =SUM(Data!G23:G25)+SUM(Data!G32:G34) -> 0 | D22: =SUM(Data!H23:H25)+SUM(Data!H32:H34) -> 0 | E22: =SUM(Data!I23:I25)+SUM(Data!I32:I34) -> 0 | F22: =SUM(Data!J23:J25)+SUM(Data!J32:J34) -> 0 | G22: =SUM(Data!K23:K25)+SUM(Data!K32:K34) -> 42286.35 | H22: =SUM(Data!L23:L25)+SUM(Data!L32:L34) -> 0 | I22: =SUM(Data!M23:M25)+SUM(Data!M32:M34) -> 450.64 | J22: =SUM(Data!N23:N25)+SUM(Data!N32:N34) -> 0 | K22: =SUM(Data!O23:O25)+SUM(Data!O32:O34) -> 0 | L22: =SUM(Data!P23:P25)+SUM(Data!P32:P34) -> 0 | M22: =SUM(Data!Q23:Q25)+SUM(Data!Q32:Q34) -> 0 | N22: =SUM(Data!R23:R25)+SUM(Data!R32:R34) -> 0
A23: EKPC | B23: SFP | C23: =SUM(Data!G53:G55)+SUM(Data!G62:G64) -> 92050 | D23: =SUM(Data!H53:H55)+SUM(Data!H62:H64) -> 92050 | E23: =SUM(Data!I53:I55)+SUM(Data!I62:I64) -> 0 | F23: =SUM(Data!J53:J55)+SUM(Data!J62:J64) -> 0 | G23: =SUM(Data!K53:K55)+SUM(Data!K62:K64) -> 24632.83 | H23: =SUM(Data!L53:L55)+SUM(Data!L62:L64) -> 0 | I23: =SUM(Data!M53:M55)+SUM(Data!M62:M64) -> 0 | J23: =SUM(Data!N53:N55)+SUM(Data!N62:N64) -> 4467.98 | K23: =SUM(Data!O53:O55)+SUM(Data!O62:O64) -> 0 | L23: =SUM(Data!P53:P55)+SUM(Data!P62:P64) -> 0 | M23: =SUM(Data!Q53:Q55)+SUM(Data!Q62:Q64) -> 0 | N23: =SUM(Data!R53:R55)+SUM(Data!R62:R64) -> 0
A24: NextEra | B24: SFP | C24: =SUM(Data!G192:G194)+SUM(Data!G198:G200) -> 0 | D24: =SUM(Data!H192:H194)+SUM(Data!H198:H200) -> 0 | E24: =SUM(Data!I192:I194)+SUM(Data!I198:I200) -> 0 | F24: =SUM(Data!J192:J194)+SUM(Data!J198:J200) -> 0 | G24: =SUM(Data!K192:K194)+SUM(Data!K198:K200) -> 0 | H24: =SUM(Data!L192:L194)+SUM(Data!L198:L200) -> 0 | I24: =SUM(Data!M192:M194)+SUM(Data!M198:M200) -> 0 | J24: =SUM(Data!N192:N194)+SUM(Data!N198:N200) -> 0 | K24: =SUM(Data!O192:O194)+SUM(Data!O198:O200) -> 0 | L24: =SUM(Data!P192:P194)+SUM(Data!P198:P200) -> 0 | M24: =SUM(Data!Q192:Q194)+SUM(Data!Q198:Q200) -> 0 | N24: =SUM(Data!R192:R194)+SUM(Data!R198:R200) -> 0
A25: Ameren | B25: SFP | C25: =SUM(Data!G204:G206)+SUM(Data!G210:G212) -> 0 | D25: =SUM(Data!H204:H206)+SUM(Data!H210:H212) -> 0 | E25: =SUM(Data!I204:I206)+SUM(Data!I210:I212) -> 0 | F25: =SUM(Data!J204:J206)+SUM(Data!J210:J212) -> 0 | G25: =SUM(Data!K204:K206)+SUM(Data!K210:K212) -> 0 | H25: =SUM(Data!L204:L206)+SUM(Data!L210:L212) -> 0 | I25: =SUM(Data!M204:M206)+SUM(Data!M210:M212) -> 0 | J25: =SUM(Data!N204:N206)+SUM(Data!N210:N212) -> 0 | K25: =SUM(Data!O204:O206)+SUM(Data!O210:O212) -> 0 | L25: =SUM(Data!P204:P206)+SUM(Data!P210:P212) -> 0 | M25: =SUM(Data!Q204:Q206)+SUM(Data!Q210:Q212) -> 0 | N25: =SUM(Data!R204:R206)+SUM(Data!R210:R212) -> 0
A26: OMU | B26: SFP | C26: =SUM(Data!G150:G152)+SUM(Data!G165:G167) -> 0 | D26: =SUM(Data!H150:H152)+SUM(Data!H165:H167) -> 0 | E26: =SUM(Data!I150:I152)+SUM(Data!I165:I167) -> 12296.32 | F26: =SUM(Data!J150:J152)+SUM(Data!J165:J167) -> 0 | G26: =SUM(Data!K150:K152)+SUM(Data!K165:K167) -> 0 | H26: =SUM(Data!L150:L152)+SUM(Data!L165:L167) -> 0 | I26: =SUM(Data!M150:M152)+SUM(Data!M165:M167) -> 0 | J26: =SUM(Data!N150:N152)+SUM(Data!N165:N167) -> 0 | K26: =SUM(Data!O150:O152)+SUM(Data!O165:O167) -> 0 | L26: =SUM(Data!P150:P152)+SUM(Data!P165:P167) -> 13671.93 | M26: =SUM(Data!Q150:Q152)+SUM(Data!Q165:Q167) -> 198451.2 | N26: =SUM(Data!R150:R152)+SUM(Data!R165:R167) -> 198451.2
A27: TEA | B27: SFP | C27: =SUM(Data!G216:G218)+SUM(Data!G222:G224) -> 0 | D27: =SUM(Data!H216:H218)+SUM(Data!H222:H224) -> 0 | E27: =SUM(Data!I216:I218)+SUM(Data!I222:I224) -> 0 | F27: =SUM(Data!J216:J218)+SUM(Data!J222:J224) -> 0 | G27: =SUM(Data!K216:K218)+SUM(Data!K222:K224) -> 0 | H27: =SUM(Data!L216:L218)+SUM(Data!L222:L224) -> 0 | I27: =SUM(Data!M216:M218)+SUM(Data!M222:M224) -> 0 | J27: =SUM(Data!N216:N218)+SUM(Data!N222:N224) -> 0 | K27: =SUM(Data!O216:O218)+SUM(Data!O222:O224) -> 0 | L27: =SUM(Data!P216:P218)+SUM(Data!P222:P224) -> 0 | M27: =SUM(Data!Q216:Q218)+SUM(Data!Q222:Q224) -> 0 | N27: =SUM(Data!R216:R218)+SUM(Data!R222:R224) -> 0
A28: Constell | B28: SFP | C28: =SUM(Data!G38:G40)+SUM(Data!G44:G46) -> 0 | D28: =SUM(Data!H38:H40)+SUM(Data!H44:H46) -> 0 | E28: =SUM(Data!I38:I40)+SUM(Data!I44:I46) -> 0 | F28: =SUM(Data!J38:J40)+SUM(Data!J44:J46) -> 0 | G28: =SUM(Data!K38:K40)+SUM(Data!K44:K46) -> 0 | H28: =SUM(Data!L38:L40)+SUM(Data!L44:L46) -> 0 | I28: =SUM(Data!M38:M40)+SUM(Data!M44:M46) -> 0 | J28: =SUM(Data!N38:N40)+SUM(Data!N44:N46) -> 0 | K28: =SUM(Data!O38:O40)+SUM(Data!O44:O46) -> 0 | L28: =SUM(Data!P38:P40)+SUM(Data!P44:P46) -> 0 | M28: =SUM(Data!Q38:Q40)+SUM(Data!Q44:Q46) -> 0 | N28: =SUM(Data!R38:R40)+SUM(Data!R44:R46) -> 0
A29: Total | C29: =SUM(C22:C28) -> 92050 | D29: =SUM(D22:D28) -> 92050 | E29: 12296.32 | F29: 0 | G29: 66919.18 | H29: 0 | I29: 450.64 | J29: 4467.98 | K29: 0 | L29: 13671.93 | M29: 198451.2 | N29: 198451.2
A31: Non-Firm
A33: OMU | B33: NF | C33: =SUM(Data!G153:G155)+SUM(Data!G168:G170) -> 68742.87 | D33: =SUM(Data!H153:H155)+SUM(Data!H168:H170) -> 1259.04 | E33: =SUM(Data!I153:I155)+SUM(Data!I168:I170) -> 81785.74 | F33: =SUM(Data!J153:J155)+SUM(Data!J168:J170) -> 43902.31 | G33: =SUM(Data!K153:K155)+SUM(Data!K168:K170) -> 22914.84 | H33: =SUM(Data!L153:L155)+SUM(Data!L168:L170) -> 5205.63 | I33: =SUM(Data!M153:M155)+SUM(Data!M168:M170) -> 1784.96 | J33: =SUM(Data!N153:N155)+SUM(Data!N168:N170) -> 342.93 | K33: =SUM(Data!O153:O155)+SUM(Data!O168:O170) -> 3129.17 | L33: =SUM(Data!P153:P155)+SUM(Data!P168:P170) -> 2699.57 | M33: =SUM(Data!Q153:Q155)+SUM(Data!Q168:Q170) -> 0 | N33: =SUM(Data!R153:R155)+SUM(Data!R168:R170) -> 1750.21
A34: TEA | B34: NF | C34: =SUM(Data!G219:G221)+SUM(Data!G225:G227) -> 0 | D34: =SUM(Data!H219:H221)+SUM(Data!H225:H227) -> 0 | E34: =SUM(Data!I219:I221)+SUM(Data!I225:I227) -> 1923.3 | F34: =SUM(Data!J219:J221)+SUM(Data!J225:J227) -> 0 | G34: =SUM(Data!K219:K221)+SUM(Data!K225:K227) -> 609.36 | H34: =SUM(Data!L219:L221)+SUM(Data!L225:L227) -> 0 | I34: =SUM(Data!M219:M221)+SUM(Data!M225:M227) -> 0 | J34: =SUM(Data!N219:N221)+SUM(Data!N225:N227) -> 66.39 | K34: =SUM(Data!O219:O221)+SUM(Data!O225:O227) -> 0 | L34: =SUM(Data!P219:P221)+SUM(Data!P225:P227) -> 0 | M34: =SUM(Data!Q219:Q221)+SUM(Data!Q225:Q227) -> 236.8 | N34: =SUM(Data!R219:R221)+SUM(Data!R225:R227) -> 888.18
A35: EKPC | B35: NF | C35: =SUM(Data!G56:G58)+SUM(Data!G65:G67) -> 0 | D35: =SUM(Data!H56:H58)+SUM(Data!H65:H67) -> 0 | E35: =SUM(Data!I56:I58)+SUM(Data!I65:I67) -> 6428.51 | F35: =SUM(Data!J56:J58)+SUM(Data!J65:J67) -> 8364.84 | G35: =SUM(Data!K56:K58)+SUM(Data!K65:K67) -> 25833.06 | H35: =SUM(Data!L56:L58)+SUM(Data!L65:L67) -> 1073.82 | I35: =SUM(Data!M56:M58)+SUM(Data!M65:M67) -> 0 | J35: =SUM(Data!N56:N58)+SUM(Data!N65:N67) -> 0 | K35: =SUM(Data!O56:O58)+SUM(Data!O65:O67) -> 5022.68 | L35: =SUM(Data!P56:P58)+SUM(Data!P65:P67) -> 967.94 | M35: =SUM(Data!Q56:Q58)+SUM(Data!Q65:Q67) -> 963.72 | N35: =SUM(Data!R56:R58)+SUM(Data!R65:R67) -> 0
A36: KMPA | B36: NF | C36: =SUM(Data!G78:G80)+SUM(Data!G91:G93) -> 0 | D36: =SUM(Data!H78:H80)+SUM(Data!H91:H93) -> 0 | E36: =SUM(Data!I78:I80)+SUM(Data!I91:I93) -> 0 | F36: =SUM(Data!J78:J80)+SUM(Data!J91:J93) -> 0 | G36: =SUM(Data!K78:K80)+SUM(Data!K91:K93) -> 0 | H36: =SUM(Data!L78:L80)+SUM(Data!L91:L93) -> 0 | I36: =SUM(Data!M78:M80)+SUM(Data!M91:M93) -> 0 | J36: =SUM(Data!N78:N80)+SUM(Data!N91:N93) -> 0 | K36: =SUM(Data!O78:O80)+SUM(Data!O91:O93) -> 0 | L36: =SUM(Data!P78:P80)+SUM(Data!P91:P93) -> 0 | M36: =SUM(Data!Q78:Q80)+SUM(Data!Q91:Q93) -> 0 | N36: =SUM(Data!R78:R80)+SUM(Data!R91:R93) -> 0
A37: Cargill | B37: NF | C37: =SUM(Data!G26:G28)+SUM(Data!G35:G37) -> 0 | D37: =SUM(Data!H26:H28)+SUM(Data!H35:H37) -> 0 | E37: =SUM(Data!I26:I28)+SUM(Data!I35:I37) -> 0 | F37: =SUM(Data!J26:J28)+SUM(Data!J35:J37) -> 0 | G37: =SUM(Data!K26:K28)+SUM(Data!K35:K37) -> 0 | H37: =SUM(Data!L26:L28)+SUM(Data!L35:L37) -> 0 | I37: =SUM(Data!M26:M28)+SUM(Data!M35:M37) -> 0 | J37: =SUM(Data!N26:N28)+SUM(Data!N35:N37) -> 0 | K37: =SUM(Data!O26:O28)+SUM(Data!O35:O37) -> 0 | L37: =SUM(Data!P26:P28)+SUM(Data!P35:P37) -> 0 | M37: =SUM(Data!Q26:Q28)+SUM(Data!Q35:Q37) -> 0 | N37: =SUM(Data!R26:R28)+SUM(Data!R35:R37) -> 0
A38: TVA | B38: NF | C38: 0 | D38: 0 | E38: 0 | F38: 0 | G38: 0 | H38: 0 | I38: 0 | J38: 0 | K38: 0 | L38: 0 | M38: 0 | N38: 0
A39: Ameren | B39: NF | C39: =SUM(Data!G207:G209)+SUM(Data!G213:G215) -> 0 | D39: =SUM(Data!H207:H209)+SUM(Data!H213:H215) -> 0 | E39: =SUM(Data!I207:I209)+SUM(Data!I213:I215) -> 0 | F39: =SUM(Data!J207:J209)+SUM(Data!J213:J215) -> 0 | G39: =SUM(Data!K207:K209)+SUM(Data!K213:K215) -> 0 | H39: =SUM(Data!L207:L209)+SUM(Data!L213:L215) -> 0 | I39: =SUM(Data!M207:M209)+SUM(Data!M213:M215) -> 0 | J39: =SUM(Data!N207:N209)+SUM(Data!N213:N215) -> 0 | K39: =SUM(Data!O207:O209)+SUM(Data!O213:O215) -> 0 | L39: =SUM(Data!P207:P209)+SUM(Data!P213:P215) -> 0 | M39: =SUM(Data!Q207:Q209)+SUM(Data!Q213:Q215) -> 0 | N39: =SUM(Data!R207:R209)+SUM(Data!R213:R215) -> 0
A40: Constell | B40: NF | C40: =SUM(Data!G41:G43)+SUM(Data!G47:G49) -> 0 | D40: =SUM(Data!H41:H43)+SUM(Data!H47:H49) -> 0 | E40: =SUM(Data!I41:I43)+SUM(Data!I47:I49) -> 0 | F40: =SUM(Data!J41:J43)+SUM(Data!J47:J49) -> 0 | G40: =SUM(Data!K41:K43)+SUM(Data!K47:K49) -> 0 | H40: =SUM(Data!L41:L43)+SUM(Data!L47:L49) -> 0 | I40: =SUM(Data!M41:M43)+SUM(Data!M47:M49) -> 0 | J40: =SUM(Data!N41:N43)+SUM(Data!N47:N49) -> 0 | K40: =SUM(Data!O41:O43)+SUM(Data!O47:O49) -> 0 | L40: =SUM(Data!P41:P43)+SUM(Data!P47:P49) -> 0 | M40: =SUM(Data!Q41:Q43)+SUM(Data!Q47:Q49) -> 0 | N40: =SUM(Data!R41:R43)+SUM(Data!R47:R49) -> 0
A41: Total | C41: =SUM(C33:C40) -> 68742.87 | D41: 1259.04 | E41: 90137.55 | F41: 52267.15 | G41: 49357.26 | H41: 6279.45 | I41: 1784.96 | J41: 409.32 | K41: 8151.85 | L41: 3667.51 | M41: 1200.52 | N41: 2638.39
A43: Grand Total | C43: =+C11+C18+C29+C41 -> 2038614.293 | D43: 1751087.637 | E43: 1809970.452 | F43: 1547226.533 | G43: 1846569.476 | H43: 2101552.748 | I43: 2232279.755 | J43: 2069878.468 | K43: 2045021.412 | L43: 1725601.777 | M43: 1957690.863 | N43: 2230245.495
A45: Cumulative ST and NF | C45: =+C29+C41 -> 160792.87 | D45: 93309.04 | E45: 102433.87 | F45: 52267.15 | G45: 116276.44 | H45: 6279.45 | I45: 2235.6 | J45: 4877.3 | K45: 8151.85 | L45: 17339.44 | M45: 199651.72 | N45: 201089.59
C46: =+C45 -> 160792.87 | D46: =+D45+C46 -> 254101.91 | E46: 356535.78 | F46: 408802.93 | G46: 525079.37 | H46: 531358.82 | I46: 533594.42 | J46: 538471.72 | K46: 546623.57 | L46: 563963.01 | M46: =+M45+L46 -> 763614.73 | N46: =+N45+M46 -> 964704.32
A48: Depancaking
A49: OMU | C49: =-SUM(Data!G171:G173) -> 221545.49 | D49: =-SUM(Data!H171:H173) -> 190745.79 | E49: =-SUM(Data!I171:I173) -> 214036.12 | F49: =-SUM(Data!J171:J173) -> 220346.23 | G49: =-SUM(Data!K171:K173) -> 200043.98 | H49: =-SUM(Data!L171:L173) -> 206784.08 | I49: =-SUM(Data!M171:M173) -> 205149.02 | J49: =-SUM(Data!N171:N173) -> 201426.8 | K49: =-SUM(Data!O171:O173) -> 204500.66 | L49: =-SUM(Data!P171:P173) -> 217798.3 | M49: =-SUM(Data!Q171:Q173) -> 398848 | N49: =-SUM(Data!R171:R173) -> 398903.07
A50: KYMA | C50: 0 | D50: 0 | E50: 0 | F50: 0 | G50: =-SUM(Data!K269:K279) -> 81725.35 | H50: =-SUM(Data!L269:L279) -> 83575.86 | I50: =-SUM(Data!M269:M279) -> 87380.3 | J50: =-SUM(Data!N269:N279) -> 87141.22 | K50: =-SUM(Data!O269:O279) -> 82501.76 | L50: =-SUM(Data!P269:P279) -> 84461.18 | M50: =-SUM(Data!Q269:Q279) -> 83048.13 | N50: =-SUM(Data!R269:R279) -> 86107.1
A51: KMPA | C51: =-SUM(Data!G94:G104) -> 574362.42 | D51: =-SUM(Data!H94:H104) -> 88.03 | E51: =-SUM(Data!I94:I104) -> 562718.67 | F51: =-SUM(Data!J94:J104) -> 552502.86 | G51: =-SUM(Data!K94:K104) -> 583841.48 | H51: =-SUM(Data!L94:L104) -> 572438.9 | I51: =-SUM(Data!M94:M104) -> 574901.54 | J51: =-SUM(Data!N94:N104) -> 570085.82 | K51: =-SUM(Data!O94:O104) -> 560776.58 | L51: =-SUM(Data!P94:P104) -> 568847.99 | M51: =-SUM(Data!Q94:Q104) -> 524768.14 | N51: =-SUM(Data!R94:R104) -> 537124.6
C52: =SUM(C49:C51) -> 795907.91 | D52: =SUM(D49:D51) -> 190833.82 | E52: 776754.79 | F52: 772849.09 | G52: 865610.81 | H52: 862798.84 | I52: 867430.86 | J52: 858653.84 | K52: 847779 | L52: 871107.47 | M52: 1006664.27 | N52: 1022134.77
A54: Total | C54: =+C43-C52 -> 1242706.383 | D54: =+D43-D52 -> 1560253.817 | E54: =+E43-E52 -> 1033215.662 | F54: 774377.4426 | G54: 980958.6657 | H54: 1238753.908 | I54: 1364848.895 | J54: 1211224.628 | K54: 1197242.412 | L54: 854494.3066 | M54: 951026.5927 | N54: 1208110.725
D55: =+D54+C54 -> 2802960.2 | E55: =+D55+E54 -> 3836175.862 | F55: =+E55+F54 -> 4610553.304 | G55: 5591511.97 | H55: 6830265.878 | I55: 8195114.772 | J55: 9406339.4 | K55: 10603581.81 | L55: 11458076.12 | M55: 12409102.71 | N55: 13617213.44
A57: BUDGET
A58: Network
C59: January | D59: February | E59: March | F59: April | G59: May | H59: June | I59: July | J59: August | K59: September | L59: October | M59: November | N59: December
A60: EKPC | B60: FNO | C60: =+'2017 Budget'!D68 -> 876756.2165 | D60: =+'2017 Budget'!E68 -> 1006462.884 | E60: =+'2017 Budget'!F68 -> 689807.6724 | F60: =+'2017 Budget'!G68 -> 549357.2752 | G60: =+'2017 Budget'!H68 -> 643480.0782 | H60: =+'2017 Budget'!I68 -> 708348.7526 | I60: =+'2017 Budget'!J68 -> 589267.2589 | J60: =+'2017 Budget'!K68 -> 809437.6153 | K60: =+'2017 Budget'!L68 -> 608120.3337 | L60: =+'2017 Budget'!M68 -> 588049.8089 | M60: =+'2017 Budget'!N68 -> 648652.163 | N60: =+'2017 Budget'!O68 -> 620355.2565
A61: KMPA | B61: FNO | C61: =+'2017 Budget'!D69 -> 265019.524 | D61: =+'2017 Budget'!E69 -> 250341.5196 | E61: =+'2017 Budget'!F69 -> 218539.1767 | F61: =+'2017 Budget'!G69 -> 217723.732 | G61: =+'2017 Budget'!H69 -> 288713.6204 | H61: =+'2017 Budget'!I69 -> 370544.1988 | I61: =+'2017 Budget'!J69 -> 385685.619 | J61: =+'2017 Budget'!K69 -> 379210.3096 | K61: =+'2017 Budget'!L69 -> 346894.4747 | L61: =+'2017 Budget'!M69 -> 253785.0314 | M61: =+'2017 Budget'!N69 -> 217118.0382 | N61: =+'2017 Budget'!O69 -> 231125.6536
A62: OMU | B62: FNO | C62: =+'2017 Budget'!D71 -> 236506.5452 | D62: =+'2017 Budget'!E71 -> 216420.6688 | E62: =+'2017 Budget'!F71 -> 198566.5564 | F62: =+'2017 Budget'!G71 -> 205633.8092 | G62: =+'2017 Budget'!H71 -> 300483.7813 | H62: =+'2017 Budget'!I71 -> 355574.3537 | I62: =+'2017 Budget'!J71 -> 369182.708 | J62: =+'2017 Budget'!K71 -> 364791.8748 | K62: =+'2017 Budget'!L71 -> 351501.2885 | L62: =+'2017 Budget'!M71 -> 247010.7626 | M62: =+'2017 Budget'!N71 -> 176488.8882 | N62: =+'2017 Budget'!O71 -> 191627.0916
A63: TVA | B63: FNO | C63: =+'2017 Budget'!D76 -> 199779.172 | D63: =+'2017 Budget'!E76 -> 193271.7071 | E63: =+'2017 Budget'!F76 -> 158131.3967 | F63: =+'2017 Budget'!G76 -> 100865.7057 | G63: =+'2017 Budget'!H76 -> 99564.21274 | H63: =+'2017 Budget'!I76 -> 126727.1937 | I63: =+'2017 Budget'!J76 -> 145057.7273 | J63: =+'2017 Budget'!K76 -> 135102.7852 | K63: =+'2017 Budget'!L76 -> 124099.3103 | L63: =+'2017 Budget'!M76 -> 87087.23527 | M63: =+'2017 Budget'!N76 -> 153128.3887 | N63: =+'2017 Budget'!O76 -> 153128.3887
A64: BREC | B64: FNO | C64: =+'2017 Budget'!D67 -> 22934.94 | D64: =+'2017 Budget'!E67 -> 21078.42682 | E64: =+'2017 Budget'!F67 -> 19048.91866 | F64: =+'2017 Budget'!G67 -> 20939.87759 | G64: =+'2017 Budget'!H67 -> 25222.98531 | H64: =+'2017 Budget'!I67 -> 25145.63316 | I64: =+'2017 Budget'!J67 -> 26369.61207 | J64: =+'2017 Budget'!K67 -> 27123.996 | K64: =+'2017 Budget'!L67 -> 27774.03639 | L64: =+'2017 Budget'!M67 -> 26897.01371 | M64: =+'2017 Budget'!N67 -> 24873.75048 | N64: =+'2017 Budget'!O67 -> 22328.56791
A65: KYMA | B65: FNO | C65: =+'2017 Budget'!D75 -> 4894.532437 | D65: =+'2017 Budget'!E75 -> 5934.195025 | E65: =+'2017 Budget'!F75 -> 7266.315641 | F65: =+'2017 Budget'!G75 -> 5324.01226 | G65: =+'2017 Budget'!H75 -> 16066.94447 | H65: =+'2017 Budget'!I75 -> 20497.03518 | I65: =+'2017 Budget'!J75 -> 24317.95644 | J65: =+'2017 Budget'!K75 -> 33719.39669 | K65: =+'2017 Budget'!L75 -> 32830.99447 | L65: =+'2017 Budget'!M75 -> 32734.24249 | M65: =+'2017 Budget'!N75 -> 24368.85862 | N65: =+'2017 Budget'!O75 -> 31170.44357
A66: Hoosier | B66: FNO | C66: =+'2017 Budget'!D70 -> 9415 | D66: =+'2017 Budget'!E70 -> 8826.5625 | E66: =+'2017 Budget'!F70 -> 7355.46875 | F66: =+'2017 Budget'!G70 -> 7355.46875 | G66: =+'2017 Budget'!H70 -> 8532.34375 | H66: =+'2017 Budget'!I70 -> 9397.84375 | I66: =+'2017 Budget'!J70 -> 9701 | J66: =+'2017 Budget'!K70 -> 8274.382353 | K66: =+'2017 Budget'!L70 -> 9318.588235 | L66: =+'2017 Budget'!M70 -> 7280.147059 | M66: =+'2017 Budget'!N70 -> 6988.941176 | N66: =+'2017 Budget'!O70 -> 7571.352941
C68: =SUM(C60:C67) -> 1615305.93 | D68: 1702335.964 | E68: 1298715.505 | F68: 1107199.881 | G68: 1382063.966 | H68: 1616235.011 | I68: 1549581.882 | J68: 1757660.36 | K68: 1500539.026 | L68: 1242844.241 | M68: 1251619.028 | N68: 1257306.755 | O68: =SUM(C68:N68) -> 17281407.55
A70: Firm PTP
A72: OMU | B72: LFP-Other Firm | C72: =+'2017 Budget'!D74 -> 478660 | D72: =+'2017 Budget'!E74 -> 478660 | E72: =+'2017 Budget'!F74 -> 478660 | F72: =+'2017 Budget'!G74 -> 478660 | G72: =+'2017 Budget'!H74 -> 478660 | H72: =+'2017 Budget'!I74 -> 492752 | I72: =+'2017 Budget'!J74 -> 492752 | J72: =+'2017 Budget'!K74 -> 492752 | K72: =+'2017 Budget'!L74 -> 503152 | L72: =+'2017 Budget'!M74 -> 503152 | M72: =+'2017 Budget'!N74 -> 503152 | N72: =+'2017 Budget'!O74 -> 503152
C74: =SUM(C72:C73) -> 478660 | D74: 478660 | E74: 478660 | F74: 478660 | G74: 478660 | H74: 492752 | I74: 492752 | J74: 492752 | K74: 503152 | L74: 503152 | M74: 503152 | N74: 503152 | O74: =SUM(C74:N74) -> 5884164
A76: ST Firm PTP
A78: Ameren | B78: SFP | C78: 0 | D78: =+C78 -> 0 | E78: =+D78 -> 0 | F78: 0 | G78: 0 | H78: 0 | I78: 0 | J78: 0 | K78: 0 | L78: 0 | M78: 0 | N78: 0
A79: OMU | B79: SFP | C79: 15000 | D79: =+C79 -> 15000 | E79: =+D79 -> 15000 | F79: 15000 | G79: 15000 | H79: 15000 | I79: 15000 | J79: 15000 | K79: 15000 | L79: 15000 | M79: 15000 | N79: 15000
A80: Cargill | B80: SFP | C80: 0 | D80: =+C80 -> 0 | E80: =+D80 -> 0 | F80: 0 | G80: 0 | H80: 0 | I80: 0 | J80: 0 | K80: 0 | L80: 0 | M80: 0 | N80: 0
A81: Constell | B81: SFP | C81: 0 | D81: =+C81 -> 0 | E81: =+D81 -> 0 | F81: 0 | G81: 0 | H81: 0 | I81: 0 | J81: 0 | K81: 0 | L81: 0 | M81: 0 | N81: 0
A82: Total | C82: =SUM(C78:C81) -> 15000 | D82: =SUM(D78:D81) -> 15000 | E82: =SUM(E78:E81) -> 15000 | F82: =SUM(F78:F81) -> 15000 | G82: =SUM(G78:G81) -> 15000 | H82: =SUM(H78:H81) -> 15000 | I82: =SUM(I78:I81) -> 15000 | J82: =SUM(J78:J81) -> 15000 | K82: =SUM(K78:K81) -> 15000 | L82: =SUM(L78:L81) -> 15000 | M82: =SUM(M78:M81) -> 15000 | N82: =SUM(N78:N81) -> 15000 | O82: =SUM(C82:N82) -> 180000
A84: Non-Firm
A86: OMU | B86: NF | C86: 15000 | D86: =+C86 -> 15000 | E86: =+D86 -> 15000 | F86: 15000 | G86: 15000 | H86: 15000 | I86: 15000 | J86: 15000 | K86: 15000 | L86: 15000 | M86: 15000 | N86: 15000
A87: Cargill | B87: NF | C87: =+R36 -> 0 | D87: =+C87 -> 0 | E87: 0 | F87: 0 | G87: 0 | H87: 0 | I87: 0 | J87: 0 | K87: 0 | L87: 0 | M87: 0 | N87: 0
A88: Ameren | B88: NF | C88: =+R37 -> 0 | D88: 0 | E88: 0 | F88: 0 | G88: 0 | H88: 0 | I88: 0 | J88: 0 | K88: 0 | L88: 0 | M88: 0 | N88: 0
A89: TVA | B89: NF | C89: =+R38 -> 0 | D89: 0 | E89: 0 | F89: 0 | G89: 0 | H89: 0 | I89: 0 | J89: 0 | K89: 0 | L89: 0 | M89: 0 | N89: 0
A90: TEA | B90: NF | C90: 0 | D90: 0 | E90: 0 | F90: 0 | G90: 0 | H90: 0 | I90: 0 | J90: 0 | K90: 0 | L90: 0 | M90: 0 | N90: 0
A91: Constell | B91: NF | C91: =+R39 -> 0 | D91: 0 | E91: 0 | F91: 0 | G91: 0 | H91: 0 | I91: 0 | J91: 0 | K91: 0 | L91: 0 | M91: 0 | N91: 0
A92: Total | C92: =SUM(C86:C91) -> 15000 | D92: 15000 | E92: 15000 | F92: 15000 | G92: 15000 | H92: 15000 | I92: 15000 | J92: 15000 | K92: 15000 | L92: 15000 | M92: 15000 | N92: 15000 | O92: =SUM(C92:N92) -> 180000
A94: Grand Total | C94: =+C92+C82+C74+C68 -> 2123965.93 | D94: 2210995.964 | E94: 1807375.505 | F94: 1615859.881 | G94: 1890723.966 | H94: 2138987.011 | I94: 2072333.882 | J94: 2280412.36 | K94: 2033691.026 | L94: 1775996.241 | M94: 1784771.028 | N94: 1790458.755 | O94: =SUM(C94:N94) -> 23525571.55
A96: Cumulative ST and NF | C96: =+C82+C92 -> 30000 | D96: =+D82+D92 -> 30000 | E96: 30000 | F96: 30000 | G96: 30000 | H96: 30000 | I96: 30000 | J96: 30000 | K96: 30000 | L96: 30000 | M96: 30000 | N96: 30000
C97: =+C96 -> 30000 | D97: =+C97+D96 -> 60000 | E97: =+D97+E96 -> 90000 | F97: =+E97+F96 -> 120000 | G97: =+F97+G96 -> 150000 | H97: =+G97+H96 -> 180000 | I97: =+H97+I96 -> 210000 | J97: =+I97+J96 -> 240000 | K97: =+J97+K96 -> 270000 | L97: =+K97+L96 -> 300000 | M97: =+L97+M96 -> 330000 | N97: =+M97+N96 -> 360000
A99: Depancaking | C99: =+'2017 Budget'!D29 -> 821107.5272 | D99: =+'2017 Budget'!E29 -> 821107.5272 | E99: =+'2017 Budget'!F29 -> 821107.5272 | F99: =+'2017 Budget'!G29 -> 821107.5272 | G99: =+'2017 Budget'!H29 -> 828759.5272 | H99: =+'2017 Budget'!I29 -> 852594.76 | I99: =+'2017 Budget'!J29 -> 852594.76 | J99: =+'2017 Budget'!K29 -> 852594.76 | K99: =+'2017 Budget'!L29 -> 856714.76 | L99: =+'2017 Budget'!M29 -> 856714.76 | M99: =+'2017 Budget'!N29 -> 856714.76 | N99: =+'2017 Budget'!O29 -> 856714.76 | O99: =SUM(C99:N99) -> 10097832.96
A101: Total | C101: =+C94-C99 -> 1302858.403 | D101: =+D94-D99 -> 1389888.437 | E101: 986267.9781 | F101: 794752.3536 | G101: 1061964.439 | H101: 1286392.251 | I101: 1219739.122 | J101: 1427817.6 | K101: 1176976.266 | L101: 919281.4814 | M101: 928056.2683 | N101: 933743.9948
D102: =+D101+C101 -> 2692746.84 | E102: =+E101+D102 -> 3679014.818 | F102: =+F101+E102 -> 4473767.172 | G102: 5535731.611 | H102: 6822123.861 | I102: 8041862.983 | J102: 9469680.583 | K102: 10646656.85 | L102: 11565938.33 | M102: 12493994.6 | N102: 13427738.59
A104: FORECAST
A105: Network
C106: January | D106: February | E106: March | F106: April | G106: May | H106: June | I106: July | J106: August | K106: September | L106: October | M106: November | N106: December
A107: EKPC | B107: FNO | C107: =+'2017 Forecast'!B4 -> 876756.2165 | D107: =+'2017 Forecast'!C4 -> 1006462.884 | E107: =+'2017 Forecast'!D4 -> 689807.6724 | F107: =+'2017 Forecast'!E4 -> 549357.2752 | G107: =+'2017 Forecast'!F4 -> 643480.0782 | H107: =+'2017 Forecast'!G4 -> 738067.1262 | I107: =+'2017 Forecast'!H4 -> 613989.6354 | J107: =+'2017 Forecast'!I4 -> 606480 | K107: =+'2017 Forecast'!J4 -> 633118.3113 | L107: =+'2017 Forecast'!K4 -> 612222.7482 | M107: =+'2017 Forecast'!L4 -> 675316.2808 | N107: =+'2017 Forecast'!M4 -> 645856.1746
A108: KMPA | B108: FNO | C108: =+'2017 Forecast'!B9 -> 265019.524 | D108: =+'2017 Forecast'!C9 -> 250341.5196 | E108: =+'2017 Forecast'!D9 -> 218539.1767 | F108: =+'2017 Forecast'!E9 -> 217723.732 | G108: =+'2017 Forecast'!F9 -> 288713.6204 | H108: =+'2017 Forecast'!G9 -> 384111.8736 | I108: =+'2017 Forecast'!H9 -> 399807.705 | J108: =+'2017 Forecast'!I9 -> 380242.5 | K108: =+'2017 Forecast'!J9 -> 359371.7007 | L108: =+'2017 Forecast'!K9 -> 262913.2633 | M108: =+'2017 Forecast'!L9 -> 224927.4184 | N108: =+'2017 Forecast'!M9 -> 239438.8647
A109: OMU | B109: FNO | C109: =+'2017 Forecast'!B6 -> 236506.5452 | D109: =+'2017 Forecast'!C6 -> 216420.6688 | E109: =+'2017 Forecast'!D6 -> 198566.5564 | F109: =+'2017 Forecast'!E6 -> 205633.8092 | G109: =+'2017 Forecast'!F6 -> 300483.7813 | H109: =+'2017 Forecast'!G6 -> 370267.3051 | I109: =+'2017 Forecast'!H6 -> 384378.46 | J109: =+'2017 Forecast'!I6 -> 323428 | K109: =+'2017 Forecast'!J6 -> 365912.9181 | L109: =+'2017 Forecast'!K6 -> 257596.4155 | M109: =+'2017 Forecast'!L6 -> 184492.3448 | N109: =+'2017 Forecast'!M6 -> 200184.8416
A110: TVA | B110: FNO | C110: =+'2017 Forecast'!B5 -> 199779.172 | D110: =+'2017 Forecast'!C5 -> 193271.7071 | E110: =+'2017 Forecast'!D5 -> 158131.3967 | F110: =+'2017 Forecast'!E5 -> 100865.7057 | G110: =+'2017 Forecast'!F5 -> 99564.21274 | H110: =+'2017 Forecast'!G5 -> 132043.9618 | I110: =+'2017 Forecast'!H5 -> 151143.5427 | J110: =+'2017 Forecast'!I5 -> 140770.9466 | K110: =+'2017 Forecast'!J5 -> 129200.6555 | L110: =+'2017 Forecast'!K5 -> 90667.12667 | M110: =+'2017 Forecast'!L5 -> 159423.0311 | N110: =+'2017 Forecast'!M5 -> 159423.0311
A111: BREC | B111: FNO | C111: =+'2017 Forecast'!B10 -> 22934.94 | D111: =+'2017 Forecast'!C10 -> 21078.42682 | E111: =+'2017 Forecast'!D10 -> 19048.91866 | F111: =+'2017 Forecast'!E10 -> 20939.87759 | G111: =+'2017 Forecast'!F10 -> 25222.98531 | H111: =+'2017 Forecast'!G10 -> 26200.60406 | I111: =+'2017 Forecast'!H10 -> 27475.93432 | J111: =+'2017 Forecast'!I10 -> 28261.968 | K111: =+'2017 Forecast'!J10 -> 28915.74256 | L111: =+'2017 Forecast'!K10 -> 28002.66815 | M111: =+'2017 Forecast'!L10 -> 25896.23472 | N111: =+'2017 Forecast'!M10 -> 23246.42743
A112: KYMA | B112: FNO | C112: =+'2017 Forecast'!B14+'2017 Forecast'!B19 -> 4894.532437 | D112: =+'2017 Forecast'!C14+'2017 Forecast'!C19 -> 5934.195025 | E112: =+'2017 Forecast'!D14+'2017 Forecast'!D19 -> 7266.315641 | F112: =+'2017 Forecast'!E14+'2017 Forecast'!E19 -> 5324.01226 | G112: =+'2017 Forecast'!F14+'2017 Forecast'!F19 -> 16066.94447 | H112: =+'2017 Forecast'!G14+'2017 Forecast'!G19 -> 21247.54513 | I112: =+'2017 Forecast'!H14+'2017 Forecast'!H19 -> 25208.37147 | J112: =+'2017 Forecast'!I14+'2017 Forecast'!I19 -> 34954.0505 | K112: =+'2017 Forecast'!J14+'2017 Forecast'!J19 -> 34011.87156 | L112: =+'2017 Forecast'!K14+'2017 Forecast'!K19 -> 33911.63957 | M112: =+'2017 Forecast'!L14+'2017 Forecast'!L19 -> 25245.36655 | N112: =+'2017 Forecast'!M14+'2017 Forecast'!M19 -> 32291.59337
A113: Hoosier | B113: FNO | C113: =+'2017 Forecast'!B11 -> 9415 | D113: =+'2017 Forecast'!C11 -> 8826.5625 | E113: =+'2017 Forecast'!D11 -> 7355.46875 | F113: =+'2017 Forecast'!E11 -> 7355.46875 | G113: =+'2017 Forecast'!F11 -> 8532.34375 | H113: =+'2017 Forecast'!G11 -> 9792.125 | I113: =+'2017 Forecast'!H11 -> 10108 | J113: =+'2017 Forecast'!I11 -> 8621.529412 | K113: =+'2017 Forecast'!J11 -> 9701.647059 | L113: =+'2017 Forecast'!K11 -> 7579.411765 | M113: =+'2017 Forecast'!L11 -> 7276.235294 | N113: =+'2017 Forecast'!M11 -> 7882.588235
C115: =SUM(C107:C114) -> 1615305.93 | D115: 1702335.964 | E115: 1298715.505 | F115: 1107199.881 | G115: 1382063.966 | H115: 1681730.541 | I115: 1612111.649 | J115: 1522758.995 | K115: 1560232.847 | L115: 1292893.273 | M115: 1302576.912 | N115: 1308323.521 | O115: =SUM(C115:N115) -> 17386248.98
A118: Firm PTP
A120: OMU | B120: LFP-Other Firm | C120: =+'2017 Forecast'!B7 -> 478660 | D120: =+'2017 Forecast'!C7 -> 478660 | E120: =+'2017 Forecast'!D7 -> 478660 | F120: =+'2017 Forecast'!E7 -> 478660 | G120: =+'2017 Forecast'!F7 -> 478660 | H120: =+'2017 Forecast'!G7 -> 513656 | I120: =+'2017 Forecast'!H7 -> 513656 | J120: =+'2017 Forecast'!I7 -> 513656 | K120: =+'2017 Forecast'!J7 -> 524056 | L120: =+'2017 Forecast'!K7 -> 524056 | M120: =+'2017 Forecast'!L7 -> 524056 | N120: =+'2017 Forecast'!M7 -> 524056
C122: =SUM(C120:C121) -> 478660 | D122: 478660 | E122: 478660 | F122: 478660 | G122: 478660 | H122: 513656 | I122: 513656 | J122: 513656 | K122: 524056 | L122: 524056 | M122: 524056 | N122: 524056 | O122: =SUM(C122:N122) -> 6030492
A124: ST Firm PTP
A126: Ameren | B126: SFP | C126: =+C78 -> 0 | D126: 0 | E126: 0 | F126: 0 | G126: 0 | H126: 0 | I126: 0 | J126: 0 | K126: 0 | L126: 0 | M126: 0 | N126: 0
A127: OMU | B127: SFP | C127: =+'2017 Forecast'!B8/2 -> 15000 | D127: =+'2017 Forecast'!C8/2 -> 15000 | E127: =+'2017 Forecast'!D8/2 -> 15000 | F127: =+'2017 Forecast'!E8/2 -> 15000 | G127: =+'2017 Forecast'!F8/2 -> 15000 | H127: =+'2017 Forecast'!G8/2 -> 15000 | I127: =+'2017 Forecast'!H8/2 -> 15000 | J127: =+'2017 Forecast'!I8/2 -> 2500 | K127: =+'2017 Forecast'!J8/2 -> 15000 | L127: =+'2017 Forecast'!K8/2 -> 15000 | M127: =+'2017 Forecast'!L8/2 -> 15000 | N127: =+'2017 Forecast'!M8/2 -> 15000
A128: Cargill | B128: SFP | C128: =+C80 -> 0 | D128: 0 | E128: 0 | F128: 0 | G128: 0 | H128: =+H80 -> 0 | I128: 0 | J128: 0 | K128: 0 | L128: 0 | M128: 0 | N128: 0
A129: Constell | B129: SFP | C129: 0 | D129: 0 | E129: 0 | F129: 0 | G129: 0 | H129: 0 | I129: 0 | J129: 0 | K129: 0 | L129: 0 | M129: 0 | N129: 0
A130: Total | C130: =SUM(C126:C129) -> 15000 | D130: =SUM(D126:D129) -> 15000 | E130: =SUM(E126:E129) -> 15000 | F130: =SUM(F126:F129) -> 15000 | G130: =SUM(G126:G129) -> 15000 | H130: =SUM(H126:H129) -> 15000 | I130: =SUM(I126:I129) -> 15000 | J130: =SUM(J126:J129) -> 2500 | K130: =SUM(K126:K129) -> 15000 | L130: =SUM(L126:L129) -> 15000 | M130: =SUM(M126:M129) -> 15000 | N130: =SUM(N126:N129) -> 15000 | O130: =SUM(C130:N130) -> 167500
A132: Non-Firm
A134: OMU | B134: NF | C134: =+'2017 Forecast'!B8/2 -> 15000 | D134: =+'2017 Forecast'!C8/2 -> 15000 | E134: =+'2017 Forecast'!D8/2 -> 15000 | F134: =+'2017 Forecast'!E8/2 -> 15000 | G134: =+'2017 Forecast'!F8/2 -> 15000 | H134: =+'2017 Forecast'!G8/2 -> 15000 | I134: =+'2017 Forecast'!H8/2 -> 15000 | J134: =+'2017 Forecast'!I8/2 -> 2500 | K134: =+'2017 Forecast'!J8/2 -> 15000 | L134: =+'2017 Forecast'!K8/2 -> 15000 | M134: =+'2017 Forecast'!L8/2 -> 15000 | N134: =+'2017 Forecast'!M8/2 -> 15000
A135: Cargill | B135: NF | C135: =+C87 -> 0 | D135: 0 | E135: 0 | F135: 0 | G135: 0 | H135: =+H87 -> 0 | I135: 0 | J135: 0 | K135: 0 | L135: 0 | M135: 0 | N135: 0
A136: Ameren | B136: NF | C136: 0 | D136: 0 | E136: 0 | F136: 0 | G136: 0 | H136: 0 | I136: 0 | J136: 0 | K136: 0 | L136: 0 | M136: 0 | N136: 0
A137: TVA | B137: NF | C137: 0 | D137: 0 | E137: 0 | F137: 0 | G137: 0 | H137: 0 | I137: 0 | J137: 0 | K137: 0 | L137: 0 | M137: 0 | N137: 0
A138: TEA | B138: NF | C138: 0 | D138: 0 | E138: 0 | F138: 0 | G138: 0 | I138: 0 | J138: 0 | K138: 0 | L138: 0 | M138: 0 | N138: 0
A139: Constell | B139: NF | C139: =+C91 -> 0 | D139: 0 | E139: 0 | F139: 0 | G139: 0 | H139: 0 | I139: 0 | J139: 0 | K139: 0 | L139: 0 | M139: 0 | N139: 0
A140: Total | C140: =SUM(C134:C139) -> 15000 | D140: 15000 | E140: 15000 | F140: 15000 | G140: 15000 | H140: 15000 | I140: 15000 | J140: 2500 | K140: 15000 | L140: 15000 | M140: 15000 | N140: 15000 | O140: =SUM(C140:N140) -> 167500
A142: Grand Total | C142: =+C140+C130+C122+C115 -> 2123965.93 | D142: 2210995.964 | E142: 1807375.505 | F142: 1615859.881 | G142: 1890723.966 | H142: 2225386.541 | I142: 2155767.649 | J142: 2041414.995 | K142: 2114288.847 | L142: 1846949.273 | M142: 1856632.912 | N142: 1862379.521 | O142: =SUM(C142:N142) -> 23751740.98
A144: Cumulative ST and NF | C144: =+C130+C140 -> 30000 | D144: =+D130+D140 -> 30000 | E144: 30000 | F144: 30000 | G144: 30000 | H144: 30000 | I144: 30000 | J144: 5000 | K144: 30000 | L144: 30000 | M144: 30000 | N144: 30000
C145: =+C144 -> 30000 | D145: =+C145+D144 -> 60000 | E145: =+D145+E144 -> 90000 | F145: =+E145+F144 -> 120000 | G145: =+F145+G144 -> 150000 | H145: =+G145+H144 -> 180000 | I145: =+H145+I144 -> 210000 | J145: =+I145+J144 -> 215000 | K145: =+J145+K144 -> 245000 | L145: =+K145+L144 -> 275000 | M145: =+L145+M144 -> 305000 | N145: =+M145+N144 -> 335000
A147: Depancaking | C147: =-'2017 Forecast'!B34 -> 821107.5272 | D147: =-'2017 Forecast'!C34 -> 821107.5272 | E147: =-'2017 Forecast'!D34 -> 821107.5272 | F147: =-'2017 Forecast'!E34 -> 821107.5272 | G147: =-'2017 Forecast'!F34 -> 828759.5272 | H147: =-'2017 Forecast'!G34 -> 837685.84 | I147: =-'2017 Forecast'!H34 -> 837685.84 | J147: =-'2017 Forecast'!I34 -> 837685.84 | K147: =-'2017 Forecast'!J34 -> 841805.84 | L147: =-'2017 Forecast'!K34 -> 841805.84 | M147: =-'2017 Forecast'!L34 -> 841805.84 | N147: =-'2017 Forecast'!M34 -> 841805.84 | O147: =SUM(C147:N147) -> 9993470.516
A149: Total | C149: =+C142-C147 -> 1302858.403 | D149: =+D142-D147 -> 1389888.437 | E149: 986267.9781 | F149: 794752.3536 | G149: 1061964.439 | H149: 1387700.701 | I149: 1318081.809 | J149: 1203729.155 | K149: 1272483.007 | L149: 1005143.433 | M149: 1014827.072 | N149: 1020573.681
D150: =+D149+C149 -> 2692746.84 | E150: =+E149+D150 -> 3679014.818 | F150: =+F149+E150 -> 4473767.172 | G150: 5535731.611 | H150: 6923432.311 | I150: 8241514.12 | J150: 9445243.275 | K150: 10717726.28 | L150: 11722869.71 | M150: 12737696.79 | N150: 13758270.47

Sheet Schedule 2 data (hidden)
A2: 2017 Schedule 2 Revenue-Expense Balance Summary
A3: (contains confidential customer information)
B4: Year | Q4: Enter raw values here - they are rounded in the actual calcualtions to the left
A5: YEAR | B5: 2017 | C5: =+B5 -> 2017 | D5: =+C5 -> 2017 | E5: 2017 | F5: 2017 | G5: 2017 | H5: 2017 | I5: 2017 | J5: 2017 | K5: 2017 | L5: 2017 | M5: 2017 | Q5: 2017 | R5: =+Q5 -> 2017 | S5: =+R5 -> 2017 | T5: 2017 | U5: 2017 | V5: 2017 | W5: 2017 | X5: 2017 | Y5: 2017 | Z5: 2017 | AA5: 2017 | AB5: 2017
A6: MONTH | B6: January | C6: February | D6: March | E6: April | F6: May | G6: June | H6: July | I6: August | J6: September | K6: October | L6: November | M6: December | Q6: January | R6: February | S6: March | T6: April | U6: May | V6: June | W6: July | X6: August | Y6: September | Z6: October | AA6: November | AB6: December
A8: UNIT producing MVAR outside of Bandwidth (15 minute samples)
A9: Brown 1 | B9: =ROUND(Q9,0) -> 3498 | C9: =ROUND(R9,0) -> 0 | D9: 0 | E9: 1170 | F9: 0 | G9: 555 | H9: 2037 | I9: 0 | J9: 0 | K9: 79 | L9: 447 | M9: 0 | N9: k | O9: =SUM(B9:M9) -> 7786 | Q9: 3498.263 | R9: 0 | S9: 0 | T9: 1169.51 | U9: 0 | V9: 555.288 | W9: 2037.138 | X9: 0 | Y9: 0 | Z9: 79.424 | AA9: 447.038
A10: Brown 2 | B10: =ROUND(Q10,0) -> 30007 | C10: 13334 | D10: 5618 | E10: 12606 | F10: 1213 | G10: 3198 | H10: 8163 | I10: 11656 | J10: 0 | K10: 1123 | L10: 17154 | M10: 0 | N10: k | O10: =SUM(B10:M10) -> 104072 | Q10: 30006.634 | R10: 13334.409 | S10: 5617.552 | T10: 12605.839 | U10: 1212.842 | V10: 3197.508 | W10: 8162.703 | X10: 11656.131 | Y10: 0 | Z10: 1122.951 | AA10: 17154.403
A11: Brown 3 | B11: 9234 | C11: 39 | D11: 14465 | E11: 2533 | F11: 13538 | G11: 21346 | H11: 26879 | I11: 29708 | J11: 18224 | K11: 21318 | L11: 8436 | M11: 0 | N11: k | O11: 165720 | Q11: 9233.785 | R11: 38.955 | S11: 14465.382 | T11: 2533.13 | U11: 13538.106 | V11: 21346.289 | W11: 26878.635 | X11: 29707.528 | Y11: 18223.571 | Z11: 21318.481 | AA11: 8435.874
A12: Brown CT | B12: 9844 | C12: 7703 | D12: 1302 | E12: 2782 | F12: 1286 | G12: 1368 | H12: 4842 | I12: 6375 | J12: 3175 | K12: 453 | L12: 840 | M12: 0 | N12: k | O12: 39970 | Q12: 9844.01 | R12: 7703.104 | S12: 1301.572 | T12: 2782.038 | U12: 1285.769 | V12: 1367.653 | W12: 4842.019 | X12: 6375.037 | Y12: 3174.82 | Z12: 453.264 | AA12: 839.983
A13: Ghent 1 | B13: 18 | C13: 0 | D13: 12 | E13: 4 | F13: 33 | G13: 129 | H13: 14 | I13: 0 | J13: 25 | K13: 39 | L13: 112 | M13: 0 | N13: k | O13: 386 | Q13: 18.032 | R13: 0 | S13: 11.967 | T13: 3.659 | U13: 32.535 | V13: 129.399 | W13: 13.992 | X13: 0 | Y13: 24.575 | Z13: 39.377 | AA13: 112.348
A14: Ghent 2 | B14: 88 | C14: 30 | D14: 31 | E14: 432 | F14: 265 | G14: 66 | H14: 202 | I14: 111 | J14: 651 | K14: 20 | L14: 7 | M14: 0 | N14: k | O14: 1903 | Q14: 87.789 | R14: 29.732 | S14: 31.456 | T14: 432.094 | U14: 264.898 | V14: 65.838 | W14: 201.962 | X14: 110.709 | Y14: 651.244 | Z14: 20.381 | AA14: 6.606
A15: Ghent 3 | B15: 9 | C15: 200 | D15: 10 | E15: 1396 | F15: 32 | G15: 22 | H15: 419 | I15: 382 | J15: 36 | K15: 7 | L15: 246 | M15: 0 | N15: k | O15: 2759 | Q15: 9.498 | R15: 199.548 | S15: 9.582 | T15: 1395.697 | U15: 31.51 | V15: 21.533 | W15: 418.515 | X15: 382.299 | Y15: 35.882 | Z15: 6.898 | AA15: 246.192
A16: Ghent 4 | B16: 92 | C16: 53 | D16: 9 | E16: 0 | F16: 155 | G16: 37 | H16: 51 | I16: 366 | J16: 652 | K16: 1487 | L16: 278 | M16: 0 | N16: k | O16: 3180 | Q16: 91.578 | R16: 52.888 | S16: 8.536 | T16: 0 | U16: 155.405 | V16: 37.126 | W16: 51.098 | X16: 365.721 | Y16: 652.356 | Z16: 1486.634 | AA16: 277.686
A17: Green River 3 | B17: 0 | C17: 0 | D17: 0 | E17: 0 | F17: 0 | G17: 0 | H17: 0 | I17: 0 | J17: 0 | K17: 0 | L17: 0 | M17: 0 | N17: k | O17: 0 | Q17: 0 | R17: 0 | S17: 0 | T17: 0 | U17: 0 | V17: 0 | W17: 0 | X17: 0 | Y17: 0 | Z17: 0 | AA17: 0
A18: Green River 4 | B18: 0 | C18: 0 | D18: 0 | E18: 0 | F18: 0 | G18: 0 | H18: 0 | I18: 0 | J18: 0 | K18: 0 | L18: 0 | M18: 0 | N18: k | O18: 0 | Q18: 0 | R18: 0 | S18: 0 | T18: 0 | U18: 0 | V18: 0 | W18: 0 | X18: 0 | Y18: 0 | Z18: 0 | AA18: 0
A19: Cane Run 4 | B19: 0 | C19: 0 | D19: 0 | E19: 0 | F19: 0 | G19: 0 | H19: 0 | I19: 0 | J19: 0 | K19: 0 | L19: 0 | M19: 0 | N19: l | O19: 0 | Q19: 0 | R19: 0 | S19: 0 | T19: 0 | U19: 0 | V19: 0 | W19: 0 | X19: 0 | Y19: 0 | Z19: 0 | AA19: 0
A20: Cane Run 5 | B20: 0 | C20: 0 | D20: 0 | E20: 0 | F20: 0 | G20: 0 | H20: 0 | I20: 0 | J20: 0 | K20: 0 | L20: 0 | M20: 0 | N20: l | O20: 0 | Q20: 0 | R20: 0 | S20: 0 | T20: 0 | U20: 0 | V20: 0 | W20: 0 | X20: 0 | Y20: 0 | Z20: 0 | AA20: 0
A21: Cane Run 6 | B21: 0 | C21: 0 | D21: 0 | E21: 0 | F21: 0 | G21: 0 | H21: 0 | I21: 0 | J21: 0 | K21: 0 | L21: 0 | M21: 0 | N21: l | O21: 0 | Q21: 0 | R21: 0 | S21: 0 | T21: 0 | U21: 0 | V21: 0 | W21: 0 | X21: 0 | Y21: 0 | Z21: 0 | AA21: 0
A22: Cane Run 7 | B22: 222 | C22: 322 | D22: 113 | E22: 80 | F22: 6218 | G22: 10875 | H22: 16849 | I22: 8466 | J22: 2986 | K22: 0 | L22: 190 | M22: 0 | N22: l | O22: 46321 | Q22: 222 | R22: 322 | S22: 113.079 | T22: 80 | U22: 6218 | V22: 10875 | W22: 16849 | X22: 8466.322 | Y22: 2986 | Z22: 0 | AA22: 190
A23: Mill Creek 1 | B23: 0 | C23: 64 | D23: 0 | E23: 5 | F23: 54 | G23: 0 | H23: 69 | I23: 136 | J23: 7 | K23: 0 | L23: 5 | M23: 0 | N23: l | O23: 340 | Q23: 0 | R23: 63.876 | S23: 0 | T23: 5.217 | U23: 53.833 | V23: 0 | W23: 68.989 | X23: 135.632 | Y23: 6.74 | Z23: 0 | AA23: 5.359
A24: Mill Creek 2 | B24: 3 | C24: 0 | D24: 0 | E24: 23 | F24: 9 | G24: 91 | H24: 387 | I24: 269 | J24: 13 | K24: 0 | L24: 0 | M24: 0 | N24: l | O24: 795 | Q24: 2.654 | R24: 0 | S24: 0 | T24: 23.377 | U24: 9.056 | V24: 91.341 | W24: 387.483 | X24: 269.187 | Y24: 13.467 | Z24: 0 | AA24: 0
A25: Mill Creek 3 | B25: 0 | C25: 6 | D25: 0 | E25: 0 | F25: 45 | G25: 76 | H25: 273 | I25: 0 | J25: 0 | K25: 0 | L25: 24 | M25: 0 | N25: l | O25: 424 | Q25: 0 | R25: 6.19 | S25: 0 | T25: 0 | U25: 45.232 | V25: 75.622 | W25: 272.597 | X25: 0 | Y25: 0 | Z25: 0 | AA25: 23.923
A26: Mill Creek 4 | B26: 62 | C26: 120 | D26: 0 | E26: 22 | F26: 10 | G26: 394 | H26: 34 | I26: 0 | J26: 0 | K26: 3 | L26: 24 | M26: 0 | N26: l | O26: 669 | Q26: 61.651 | R26: 119.758 | S26: 0 | T26: 22.28 | U26: 9.766 | V26: 393.906 | W26: 34.238 | X26: 0 | Y26: 0 | Z26: 3.459 | AA26: 24.4
A27: Paddy's Run | B27: 1240 | C27: 708 | D27: 282 | E27: 2319 | F27: 1494 | G27: 2117 | H27: 2650 | I27: 1201 | J27: 636 | K27: 2351 | L27: 4666 | M27: 0 | N27: l | O27: 19664 | Q27: 1240.161 | R27: 707.679 | S27: 282.167 | T27: 2319.242 | U27: 1494.301 | V27: 2116.793 | W27: 2650.311 | X27: 1200.532 | Y27: 636.208 | Z27: 2350.935 | AA27: 4665.794
A28: Trimble 1 | B28: 0 | C28: 219 | D28: 271 | E28: 82 | F28: 507 | G28: 422 | H28: 245 | I28: 184 | J28: 162 | K28: 0 | L28: 86 | M28: 0 | N28: l | O28: 2178 | Q28: 0 | R28: 219.387 | S28: 270.634 | T28: 82.362 | U28: 507.029 | V28: 421.654 | W28: 244.555 | X28: 184.275 | Y28: 162.194 | Z28: 0 | AA28: 86.245
A29: Trimble 2 | B29: 36 | C29: 1 | D29: 0 | E29: 84 | F29: 260 | G29: 9 | H29: 209 | I29: 92 | J29: 546 | K29: 638 | L29: 287 | M29: 0 | N29: l | O29: 2162 | Q29: 35.954 | R29: 1.315 | S29: 0 | T29: 84.133 | U29: 260.316 | V29: 8.949 | W29: 209.026 | X29: 91.526 | Y29: 545.786 | Z29: 638.225 | AA29: 286.538
A30: Trimble CTs | B30: 2461 | C30: 51 | D30: 13 | E30: 112 | F30: 58 | G30: 206 | H30: 1720 | I30: 1160 | J30: 44 | K30: 98 | L30: 25 | M30: 0 | N30: l | O30: 5948 | Q30: 2460.594 | R30: 50.968 | S30: 12.555 | T30: 111.589 | U30: 57.817 | V30: 205.988 | W30: 1719.941 | X30: 1159.963 | Y30: 44.19 | Z30: 97.86 | AA30: 24.669
A31: Bluegrass | B31: 0 | C31: 0 | D31: 0 | E31: 0 | F31: 0 | G31: 0 | H31: 0 | I31: 0 | J31: 0 | K31: 0 | L31: 0 | M31: 0 | N31: x | O31: 0 | Q31: 0 | R31: 0 | S31: 0 | T31: 0 | U31: 0 | V31: 0 | W31: 0 | X31: 0 | Y31: 0 | Z31: 0 | AA31: 0
Q32: =SUM(Q9:Q31) -> 56812.603 | R32: 22849.809 | S32: 22124.482 | T32: 23650.167 | U32: 25176.415 | V32: 40909.887 | W32: 65042.202 | X32: 60104.862 | Y32: 27157.033 | Z32: 27617.889 | AA32: 32827.058 | AB32: 0
A33: MVAR-Hrs from KU Units | B33: =SUM(B9:B18) -> 52790 | C33: 21359 | D33: 21447 | E33: 20923 | F33: 16522 | G33: 26721 | H33: 42607 | I33: 48598 | J33: 22763 | K33: 24526 | L33: 27520 | M33: 0 | N33: =SUM(B33:M33) -> 325776
A34: MVAR-Hrs from LG&E Units | B34: =SUM(B19:B30) -> 4024 | C34: =SUM(C19:C30) -> 1491 | D34: 679 | E34: 2727 | F34: 8655 | G34: 14190 | H34: 22436 | I34: 11508 | J34: 4394 | K34: 3090 | L34: 5307 | M34: 0 | N34: =SUM(B34:M34) -> 78501
A35: MVAR-Hrs from LG&E-KU Units Combined | B35: =+B33+B34 -> 56814 | C35: =+C33+C34 -> 22850 | D35: 22126 | E35: 23650 | F35: 25177 | G35: 40911 | H35: 65043 | I35: 60106 | J35: 27157 | K35: 27616 | L35: 32827 | M35: 0 | N35: =SUM(B35:M35) -> 404277 | O35: =SUM(O9:O32) -> 404277
A36: MVAR-Hrs from Bluegrass | B36: =+B31 -> 0 | C36: =+C31 -> 0 | D36: 0 | E36: 0 | F36: 0 | G36: 0 | H36: 0 | I36: 0 | J36: 0 | K36: 0 | L36: 0 | M36: 0
A37: $/MWH | B37: 5 | C37: 5 | D37: 5 | E37: 5 | F37: 5 | G37: 5 | H37: 5 | I37: 5 | J37: 5 | K37: 5 | L37: 5 | M37: 5
A39: SCHEDULE 2 PAYMENTS TO GENERATORS
A40: Payment to LG&E/KU | B40: =+B35*B37 -> 284070 | C40: =+C35*C37 -> 114250 | D40: 110630 | E40: 118250 | F40: 125885 | G40: 204555 | H40: 325215 | I40: 300530 | J40: 135785 | K40: 138080 | L40: 164135 | M40: 0
A41: Payment to Bluegrass | B41: =+B36*B37 -> 0 | C41: =+C36*C37 -> 0 | D41: 0 | E41: 0 | F41: 0 | G41: 0 | H41: 0 | I41: 0 | J41: 0 | K41: 0 | L41: 0 | M41: 0
A42: Payments to Generators($) | B42: =+B40+B41 -> 284070 | C42: =+C40+C41 -> 114250 | D42: 110630 | E42: 118250 | F42: 125885 | G42: 204555 | H42: 325215 | I42: 300530 | J42: 135785 | K42: 138080 | L42: 164135 | M42: 0
A44: SCHEDULE 2 REVENUE SUMMARY (Network)
A45: Network Load (kW)
A46: Native Load Demand (KW) | B46: =3875000+1791000 -> 5666000 | C46: 5228000 | D46: =3825000+1618000 -> 5443000 | E46: 4708000 | F46: 5446000 | G46: 6077000 | H46: 6472000 | I46: 6234000 | J46: 5763000 | K46: 4808000 | L46: 4853000 | O46: Input
A47: EKPC Demand | B47: =302000+150000 -> 452000 | C47: 412000 | D47: =281000+139000 -> 420000 | E47: 283000 | F47: 325000 | G47: 385000 | H47: 403000 | I47: 393000 | J47: 368000 | K47: 288000 | L47: 392000 | O47: Input
A48: TVA Demand | B48: 85000 | C48: 67000 | D48: 79000 | E48: 40000 | F48: 51000 | G48: 61000 | H48: 70000 | I48: 60000 | J48: 60000 | K48: 45000 | L48: 66000 | O48: Input
A49: KMPA Demand | B49: 104000 | C49: 85000 | D49: 88000 | E49: 93000 | F49: 119 | G49: 144000 | H49: 166000 | I49: 127000 | J49: 142000 | K49: 110000 | L49: 80000 | O49: Input
A50: Benham Demand | B50: 1700 | C50: 1800 | D50: 2100 | E50: 500 | F50: 10000 | G50: 11500 | H50: 13300 | I50: 12300 | J50: 10800 | K50: 7700 | L50: 11600 | O50: Input
A51: HE Demand | B51: 5000 | C51: 4000 | D51: 4000 | E51: 4000 | F51: 4000 | G51: 5000 | H51: 5000 | I51: 5000 | J51: 5000 | K51: 4000 | L51: 4000 | O51: Input
A52: TOTAL Monthly Demand | B52: =SUM(B46:B51) -> 6313700 | C52: 5797800 | D52: 6036100 | E52: 5128500 | F52: 5836119 | G52: 6683500 | H52: =SUM(H46:H51) -> 7129300 | I52: 6831300 | J52: 6348800 | K52: 5262700 | L52: 5406600 | M52: 0
A53: Schedule 2 rate per Month | B53: 0.08 | C53: 0.08 | D53: 0.08 | E53: 0.08 | F53: 0.04 | G53: 0.04 | H53: 0.04 | I53: 0.02 | J53: 0.02 | K53: 0.02 | L53: 0.01 | M53: 0.01 | O53: Input
B54: =IF(B52=0,0,+B42/(B52*1.05)) -> 0.04285012863 | C54: 0.01876738139 | D54: 0.01745529477 | E54: 0.02195945162 | F54: 0.02054284297 | G54: 0.02914854279 | H54: 0.04344445758 | I54: 0.04189818155 | J54: =IF(J52=0,0,+J42/(J52*1.05)) -> 0.02036905362 | K54: =IF(K52=0,0,+K42/(K52*1.05)) -> 0.02498807872 | L54: 0.02891263412 | M54: 0 | N54: =AVERAGE(B54:M54) -> 0.02586133731 | O54: Annual average
A55: Actual Network Service Schedule 2 Charges
A56: Native Load Ratio Share | B56: =+B46*B$53 -> 453280 | C56: =+C46*C$53 -> 418240 | D56: 435440 | E56: 376640 | F56: 217840 | G56: 243080 | H56: 258880 | I56: 124680 | J56: 115260 | K56: 96160 | L56: 48530 | M56: 0
A57: EKPC Payments | B57: 40133 | C57: 36961 | D57: 33863.97 | E57: 22971 | F57: 13950 | G57: 15415 | H57: 16101 | I57: 7900 | J57: 7398 | K57: 5767 | L57: 3926 | O57: Input
A58: TVA Payments | B58: 6834 | C58: 5385 | D58: 6368.27 | E58: 3202 | F58: 3622 | G58: 2438 | H58: 2815 | I58: 1204 | J58: 1191 | K58: 902 | L58: 657 | O58: Input
A59: KMPA Payments | B59: 8320 | C59: 6788 | D59: 7067.84 | E59: 7401 | F59: 4754 | G59: 5759 | H59: 6627 | I59: 2537 | J59: 2836 | K59: 2209 | L59: 798 | O59: Input
A60: Benham Payment | B60: 138 | C60: 141 | D60: 167.68 | E60: 37 | F60: 403 | G60: 460 | H60: 530 | I60: 246 | J60: 215 | K60: 154 | L60: 114 | O60: Input
A61: HE Payments | B61: 400 | C61: 320 | D61: 320 | E61: 320 | F61: 160 | G61: 200 | H61: 200 | I61: 100 | J61: 100 | K61: 80 | L61: 40 | O61: Input
A62: Schedule 2 Revenue from Network Load | B62: =SUM(B56:B61) -> 509105 | C62: =SUM(C56:C61) -> 467835 | D62: 483227.76 | E62: 410571 | F62: 240729 | G62: 267352 | H62: 285153 | I62: 136667 | J62: 127000 | K62: 105272 | L62: 54065 | M62: 0
A63: % of Total Revenue | B63: =IF(B80=0,0,B62/B80) -> 0.9493427763 | C63: 0.966435508 | D63: 0.9493555195 | E63: 0.9537028864 | F63: 0.9479721668 | G63: 0.9716061272 | H63: 0.9732981541 | I63: 0.9722206414 | J63: =IF(J80=0,0,J62/J80) -> 0.9651115958 | K63: =IF(K80=0,0,K62/K80) -> 0.9542335548 | L63: =IF(L80=0,0,L62/L80) -> 0.964740101 | M63: =IF(M80=0,0,M62/M80) -> 0
A65: Actual SCHEDULE 2 REVENUE Charges (Point-to-Point)
A66: LG&E/KU Marketing | B66: 12192 | C66: 2940 | D66: 9835.93 | E66: 6028 | F66: 5560 | G66: 1080 | H66: 1046 | I66: 508 | J66: 1216 | K66: 1733 | L66: 352 | O66: Input
A67: BREC | B67: 996 | C67: 735 | D67: 654.32 | E67: 836 | F67: 449 | G67: 418 | H67: 487 | I67: 253 | J67: 235 | K67: 176 | L67: 53 | O67: Input
A68: Cargill | B68: 0 | C68: 0 | D68: 0 | E68: 0 | F68: 792 | G68: 0 | H68: 8 | I68: 0 | J68: 0 | K68: 0 | L68: 0 | M68: 0 | O68: Input
A69: NextEra | B69: 0 | C69: 0 | D69: 0 | E69: 0 | F69: 0 | G69: 0 | H69: 0 | I69: 0 | J69: 0 | K69: 0 | L69: 0 | M69: 0 | O69: Input
A70: Ameren | B70: 0 | C70: 0 | D70: 0 | E70: 0 | F70: 0 | G70: 0 | H70: 0 | I70: 0 | J70: 0 | K70: 0 | L70: 0 | M70: 0 | O70: Input
A71: EDF | B71: 0 | C71: 0 | D71: 0 | E71: 0 | F71: 0 | G71: 0 | H71: 0 | I71: 0 | J71: 0 | K71: 0 | L71: 0 | M71: 0 | O71: Input
A72: Constellation | B72: 0 | C72: 0 | D72: 0 | E72: 0 | F72: 0 | G72: 0 | H72: 0 | I72: 0 | J72: 0 | K72: 0 | L72: 0 | M72: 0 | O72: Input
A73: TVA (see above) | B73: 0 | C73: 0 | D73: 0 | E73: 0 | F73: 0 | G73: 0 | H73: 0 | I73: 0 | J73: 0 | K73: 0 | L73: 0 | M73: 0 | O73: Input
A74: OMU | B74: =23426-9448 -> 13978 | C74: 12573 | D74: 15207.1 | E74: 13067 | F74: 6399 | G74: 6315 | H74: 6282 | I74: 3143 | J74: 3140 | K74: 3140 | L74: 1570 | O74: Input revenue minus exp
A75: TEA | B75: 0 | C75: 0 | D75: 81 | E75: 0 | F75: 12 | G75: 0 | H75: 0 | I75: 1 | J75: 0 | K75: 0 | L75: 1 | O75: Input
A76: EKPC (see above) | B76: 0 | C76: 0 | D76: 0 | E76: 0 | F76: 0 | G76: 0 | H76: 0 | I76: 0 | J76: 0 | K76: 0 | L76: 0 | M76: 0 | O76: Input
A77: Total PTP Schedule 2 revenue | B77: =SUM(B66:B76) -> 27166 | C77: 16248 | D77: 25778.35 | E77: 19931 | F77: 13212 | G77: 7813 | H77: 7823 | I77: 3905 | J77: 4591 | K77: 5049 | L77: 1976 | M77: 0
A78: % of Total Revenue | B78: =IF(B80=0,0,1-B63) -> 0.05065722368 | C78: 0.03356449204 | D78: 0.05064448048 | E78: 0.0462971136 | F78: 0.05202783324 | G78: 0.02839387277 | H78: 0.02670184588 | I78: 0.02777935862 | J78: =IF(J80=0,0,1-J63) -> 0.03488840422 | K78: =IF(K80=0,0,1-K63) -> 0.04576644519 | L78: =IF(L80=0,0,1-L63) -> 0.035259899 | M78: =IF(M80=0,0,1-M63) -> 0
B79: =SUM(B57:B61)+B77 -> 82991 | C79: 65843 | D79: 73566.11 | E79: 53862 | F79: 36101 | G79: 32085 | H79: =SUM(H57:H61)+H77 -> 34096 | I79: =SUM(I57:I61)+I77 -> 15892 | J79: 16331 | K79: 14161 | L79: 7511 | M79: 0 | O79: Check figure
A80: Total Schedule 2 Revenue | B80: =+B62+B77 -> 536271 | C80: =+C62+C77 -> 484083 | D80: 509006.11 | E80: 430502 | F80: 253941 | G80: 275165 | H80: 292976 | I80: 140572 | J80: 131591 | K80: 110321 | L80: 56041 | M80: 0 | O80: =SUM(B80:M80) -> 3220469.11
A82: Over (Under) Collected Schedule 2 Revenue for Month | B82: =+B80-B42 -> 252201 | C82: 369833 | D82: 398376.11 | E82: 312252 | F82: 128056 | G82: 70610 | H82: -32239 | I82: -159958 | J82: -4194 | K82: -27759 | L82: -108094 | M82: 0
A84: Calculation of Over Collected Revenue by Type
A85: Network | B85: =+B82*B63 -> 239425.1975 | C85: 357419.7432 | D85: 378200.5589 | E85: 297795.6337 | F85: 121393.5238 | G85: 68605.10864 | H85: -31378.15919 | I85: -155514.4694 | J85: -4047.678033 | K85: -26488.56925 | L85: -104282.6165 | M85: 0
A86: PTP | B86: =+B82*B78 -> 12775.80247 | C86: 12413.25678 | D86: 20175.55112 | E86: 14456.36632 | F86: 6662.476213 | G86: 2004.891356 | H86: -860.8408095 | I86: -4443.530646 | J86: -146.3219673 | K86: -1270.430752 | L86: -3811.383523 | M86: 0
A88: Recalculated Network Service Schedule 2 charges
A89: Native Load Demand (KW) | B89: =IF(B$52=0,0,+B$42*B$63*(B46/B$52)) -> 242014.3119 | C89: 99563.79359 | D89: 94707.35338 | E89: 103528.5999 | F89: 111358.4222 | G89: 180711.4324 | H89: 287347.9391 | I89: 266634.3566 | J89: 118955.9867 | K89: 120376.388 | L89: 142133.8702 | M89: 0
A90: EKPC Demand | B90: 19306.47175 | C90: 7846.266825 | D90: 7307.934672 | E90: 6223.150759 | F90: 6645.517298 | G90: 11448.72495 | H90: 17892.64825 | I90: 16808.99938 | J90: 7596.009563 | K90: 7210.565668 | L90: 11480.83188 | M90: 0
A91: TVA Demand | B91: 3630.641812 | C91: 1275.970576 | D91: 1374.587712 | E91: 879.5972804 | F91: 1042.835022 | G91: 1813.953823 | H91: 3107.904162 | I91: 2566.259447 | J91: 1238.47982 | K91: 1126.650886 | L91: 1932.997205 | M91: 0
A92: KMPA Demand | B92: 4442.197041 | C92: 1618.768641 | D92: 1531.186312 | E92: 2045.063677 | F92: 2.433281718 | G92: 4282.120499 | H92: 7370.172727 | I92: 5431.91583 | J92: 2931.068908 | K92: 2754.035498 | L92: 2343.026915 | M92: 0
A93: Benham Demand | B93: =IF(B$52=0,0,+B$42*B$63*(B50/B$52)) -> 72.61283624 | C93: 34.27980651 | D93: 36.53967336 | E93: 10.99496601 | F93: 204.4774553 | G93: 341.974901 | H93: 590.5017908 | I93: 526.0831867 | J93: 222.9263676 | K93: 192.7824849 | L93: 339.7389027 | M93: 0
A94: HE Demand | B94: =IF(B$52=0,0,+B$42*B$63*(B51/B$52)) -> 213.5671654 | C94: 76.17734781 | D94: 69.59937783 | E94: 87.95972804 | F94: 81.79098213 | G94: 148.6847395 | H94: 221.9931544 | I94: 213.8549539 | J94: =IF(J$52=0,0,+J$42*J$63*(J51/J$52)) -> 103.2066517 | K94: 100.1467454 | L94: 117.1513457 | M94: 0
B95: =SUM(B89:B94) -> 269679.8025 | C95: =SUM(C89:C94) -> 110415.2568 | D95: 105027.2011 | E95: 112775.3663 | F95: 119335.4762 | G95: 198746.8914 | H95: 316531.1592 | I95: 292181.4694 | J95: 131047.678 | K95: 131760.5692 | L95: 158347.6165 | M95: 0
A97: Recalculated SCHEDULE 2 REVENUE Charges (Point-to-Point)
A98: LG&E/KU Marketing | B98: =IF(B$77=0,0,+B$42*B$78*(B66/B$77)) -> 6458.267257 | C98: 693.8789422 | D98: 2137.791501 | E98: 1655.766988 | F98: 2756.233141 | G98: 802.8615558 | H98: 1161.101558 | I98: 1086.057252 | J98: 1254.75572 | K98: 2169.057931 | L98: 1030.950911 | M98: 0
A99: BREC | B99: 527.5946676 | C99: 173.4697356 | D99: 142.2132666 | E99: 229.6319181 | F99: 222.5806979 | G99: 310.7371577 | H99: 540.5893486 | I99: 540.8907179 | J99: 242.4897979 | K99: 220.2851678 | L99: 155.2284042 | M99: 0
A100: Cargill | B100: 0 | C100: 0 | D100: 0 | E100: 0 | F100: 392.6145049 | G100: 0 | H100: 8.880317842 | I100: 0 | J100: 0 | K100: 0 | L100: 0 | M100: 0
A101: NextEra | B101: 0 | C101: 0 | D101: 0 | E101: 0 | F101: 0 | G101: 0 | H101: 0 | I101: 0 | J101: 0 | K101: 0 | L101: 0 | M101: 0
A102: Ameren | B102: 0 | C102: 0 | D102: 0 | E102: 0 | F102: 0 | G102: 0 | H102: 0 | I102: 0 | J102: 0 | K102: 0 | L102: 0 | M102: 0
A103: EDF | B103: 0 | C103: 0 | D103: 0 | E103: 0 | F103: 0 | G103: 0 | H103: 0 | I103: 0 | J103: 0 | K103: 0 | L103: 0 | M103: 0
A104: Constellation | B104: 0 | C104: 0 | D104: 0 | E104: 0 | F104: 0 | G104: 0 | H104: 0 | I104: 0 | J104: 0 | K104: 0 | L104: 0 | M104: 0
A105: TVA | B105: 0 | C105: 0 | D105: 0 | E105: 0 | F105: 0 | G105: 0 | H105: 0 | I105: 0 | J105: 0 | K105: 0 | L105: 0 | M105: 0
A106: OMU | B106: 7404.335606 | C106: 2967.394538 | D106: 3305.189152 | E106: 3589.234777 | F106: 3172.146739 | G106: 4694.50993 | H106: 6973.269585 | I106: 6719.444769 | J106: 3240.076449 | K106: 3930.087653 | L106: 4598.27537 | M106: 0
A107: TEA | B107: 0 | C107: 0 | D107: 17.60495567 | E107: 0 | F107: 5.94870462 | G107: 0 | H107: 0 | I107: 2.137907976 | J107: 0 | K107: 0 | L107: 2.928837815 | M107: 0
A108: EKPC | B108: 0 | C108: 0 | D108: 0 | E108: 0 | F108: 0 | G108: 0 | H108: 0 | I108: 0 | J108: 0 | K108: 0 | L108: 0 | M108: 0
B109: =SUM(B98:B108) -> 14390.19753 | C109: 3834.743216 | D109: 5602.798875 | E109: 5474.633683 | F109: 6549.523787 | G109: 5808.108644 | H109: 8683.840809 | I109: 8348.530646 | J109: 4737.321967 | K109: 6319.430752 | L109: 5787.383523 | M109: 0
A111: Credits to Network Customers (by Load Ratio Share)
A112: Native Load Demand | B112: =+B56-B89 -> 211265.6881 | C112: 318676.2064 | D112: 340732.6466 | E112: 273111.4001 | F112: 106481.5778 | G112: 62368.56755 | H112: -28467.93911 | I112: -141954.3566 | J112: -3695.986722 | K112: -24216.38797 | L112: -93603.87023 | M112: 0
A113: EKPC Demand | B113: =+B57-B90 -> 20826.52825 | C113: 29114.73318 | D113: 26556.03533 | E113: 16747.84924 | F113: 7304.482702 | G113: 3966.275055 | H113: -1791.648248 | I113: -8908.999379 | J113: -198.0095634 | K113: =+K57-K90 -> -1443.565668 | L113: -7554.831883 | M113: 0
A114: TVA Demand | B114: =+B58-B91 -> 3203.358188 | C114: 4109.029424 | D114: 4993.682288 | E114: 2322.40272 | F114: 2579.164978 | G114: 624.0461775 | H114: -292.9041622 | I114: -1362.259447 | J114: -47.47982012 | K114: -224.6508857 | L114: -1275.997205 | M114: 0
A115: KMPA Demand | B115: 3877.802959 | C115: 5169.231359 | D115: 5536.653688 | E115: 5355.936323 | F115: 4751.566718 | G115: 1476.879501 | H115: -743.1727274 | I115: -2894.91583 | J115: -95.06890761 | K115: -545.0354984 | L115: -1545.026915 | M115: 0
A116: Benham Demand | B116: 65.38716376 | C116: 106.7201935 | D116: 131.1403266 | E116: 26.00503399 | F116: 198.5225447 | G116: 118.025099 | H116: -60.50179081 | I116: -280.0831867 | J116: -7.926367621 | K116: -38.78248489 | L116: -225.7389027 | M116: 0
A117: HE Demand | B117: 186.4328346 | C117: 243.8226522 | D117: 250.4006222 | E117: 232.040272 | F117: 78.20901787 | G117: 51.31526045 | H117: -21.99315444 | I117: -113.8549539 | J117: -3.206651676 | K117: -20.1467454 | L117: -77.15134575 | M117: 0
B118: =SUM(B112:B117) -> 239425.1975 | C118: 357419.7432 | D118: 378200.5589 | E118: 297795.6337 | F118: 121393.5238 | G118: 68605.10864 | H118: -31378.15919 | I118: -155514.4694 | J118: -4047.678033 | K118: -26488.56925 | L118: -104282.6165 | M118: 0
A120: Credits to Point-to-Point Customers (by Reservation charges)
A121: LG&E/KU Marketing | B121: =+B66-B98 -> 5733.732743 | C121: 2246.121058 | D121: 7698.138499 | E121: 4372.233012 | F121: 2803.766859 | G121: 277.1384442 | H121: -115.1015578 | I121: -578.0572518 | J121: -38.75572038 | K121: -436.0579309 | L121: -678.9509109 | M121: 0
A122: BREC | B122: 468.4053324 | C122: 561.5302644 | D122: 512.1067334 | E122: 606.3680819 | F122: 226.4193021 | G122: 107.2628423 | H122: -53.58934862 | I122: -287.8907179 | J122: -7.489797935 | K122: -44.28516783 | L122: -102.2284042 | M122: 0
A123: Cargill | B123: 0 | C123: 0 | D123: 0 | E123: 0 | F123: 399.3854951 | G123: 0 | H123: -0.8803178417 | I123: 0 | J123: 0 | K123: 0 | L123: 0 | M123: 0
A124: NextEra | B124: 0 | C124: 0 | D124: 0 | E124: 0 | F124: 0 | G124: 0 | H124: 0 | I124: 0 | J124: 0 | K124: 0 | L124: 0 | M124: 0
A125: Ameren | B125: 0 | C125: 0 | D125: 0 | E125: 0 | F125: 0 | G125: 0 | H125: 0 | I125: 0 | J125: 0 | K125: 0 | L125: 0 | M125: 0
A126: EDF | B126: 0 | C126: 0 | D126: 0 | E126: 0 | F126: 0 | G126: 0 | H126: 0 | I126: 0 | J126: 0 | K126: 0 | L126: 0 | M126: 0
A127: Constellation | B127: 0 | C127: 0 | D127: 0 | E127: 0 | F127: 0 | G127: 0 | H127: 0 | I127: 0 | J127: 0 | K127: 0 | L127: 0 | M127: 0
A128: TVA | B128: 0 | C128: 0 | D128: 0 | E128: 0 | F128: 0 | G128: 0 | H128: 0 | I128: 0 | J128: 0 | K128: 0 | L128: 0 | M128: 0
A129: OMU | B129: 6573.664394 | C129: 9605.605462 | D129: 11901.91085 | E129: 9477.765223 | F129: 3226.853261 | G129: 1620.49007 | H129: -691.2695852 | I129: -3576.444769 | J129: -100.076449 | K129: -790.0876533 | L129: -3028.27537 | M129: 0
A130: TEA | B130: 0 | C130: 0 | D130: 63.39504433 | E130: 0 | F130: 6.05129538 | G130: 0 | H130: 0 | I130: -1.137907976 | J130: 0 | K130: 0 | L130: -1.928837815 | M130: 0
A131: EKPC | B131: 0 | C131: 0 | D131: 0 | E131: 0 | F131: 0 | G131: 0 | H131: 0 | I131: 0 | J131: 0 | K131: 0 | L131: 0 | M131: 0
A132: Total PTP Schedule 2 revenue | B132: =SUM(B121:B131) -> 12775.80247 | C132: =SUM(C121:C131) -> 12413.25678 | D132: 20175.55112 | E132: 14456.36632 | F132: 6662.476213 | G132: 2004.891356 | H132: -860.8408095 | I132: -4443.530646 | J132: -146.3219673 | K132: -1270.430752 | L132: -3811.383523 | M132: 0
B133: =+B132+B118 -> 252201 | C133: =+C132+C118 -> 369833 | D133: 398376.11 | E133: 312252 | F133: 128056 | G133: 70610 | H133: -32239 | I133: -159958 | J133: -4194 | K133: -27759 | L133: -108094 | M133: 0
A135: Total Due by Transmission Customer
A136: LG&E/KU | B136: =+B112+B121 -> 216999.4209 | C136: =+C112+C121 -> 320922.3275 | D136: 348430.7851 | E136: 277483.6331 | F136: 109285.3447 | G136: 62645.706 | H136: -28583.04067 | I136: -142532.4138 | J136: -3734.742443 | K136: -24652.4459 | L136: -94282.82114 | M136: 0 | O136: =SUM(B136:M136) -> 1041981.753
A137: EKPC | B137: =+B113+B131 -> 20826.52825 | C137: =+C113+C131 -> 29114.73318 | D137: 26556.03533 | E137: 16747.84924 | F137: 7304.482702 | G137: 3966.275055 | H137: -1791.648248 | I137: -8908.999379 | J137: -198.0095634 | K137: =+K113+K131 -> -1443.565668 | L137: -7554.831883 | M137: 0
A138: KMPA | B138: =+B115 -> 3877.802959 | C138: =+C115 -> 5169.231359 | D138: 5536.653688 | E138: 5355.936323 | F138: 4751.566718 | G138: 1476.879501 | H138: -743.1727274 | I138: -2894.91583 | J138: -95.06890761 | K138: -545.0354984 | L138: -1545.026915 | M138: 0
A139: Benahm | B139: =+B116 -> 65.38716376 | C139: 106.7201935 | D139: 131.1403266 | E139: 26.00503399 | F139: 198.5225447 | G139: 118.025099 | H139: -60.50179081 | I139: -280.0831867 | J139: -7.926367621 | K139: -38.78248489 | L139: -225.7389027 | M139: 0
A140: BREC | B140: =+B122 -> 468.4053324 | C140: =+C122 -> 561.5302644 | D140: 512.1067334 | E140: 606.3680819 | F140: 226.4193021 | G140: 107.2628423 | H140: -53.58934862 | I140: -287.8907179 | J140: -7.489797935 | K140: -44.28516783 | L140: -102.2284042 | M140: 0
A141: Cargill | B141: =+B123 -> 0 | C141: 0 | D141: 0 | E141: 0 | F141: 399.3854951 | G141: 0 | H141: -0.8803178417 | I141: 0 | J141: 0 | K141: 0 | L141: 0 | M141: 0
A142: NextEra | B142: =+B124 -> 0 | C142: 0 | D142: 0 | E142: 0 | F142: 0 | G142: 0 | H142: 0 | I142: 0 | J142: 0 | K142: 0 | L142: 0 | M142: 0
A143: Ameren | B143: =+B125 -> 0 | C143: 0 | D143: 0 | E143: 0 | F143: 0 | G143: 0 | H143: 0 | I143: 0 | J143: 0 | K143: 0 | L143: 0 | M143: 0
A144: Hoosier Energy | B144: =+B117 -> 186.4328346 | C144: =+C117 -> 243.8226522 | D144: 250.4006222 | E144: 232.040272 | F144: 78.20901787 | G144: 51.31526045 | H144: -21.99315444 | I144: -113.8549539 | J144: -3.206651676 | K144: -20.1467454 | L144: -77.15134575 | M144: 0
A145: TVA | B145: =+B114+B128 -> 3203.358188 | C145: =+C114+C128 -> 4109.029424 | D145: 4993.682288 | E145: 2322.40272 | F145: 2579.164978 | G145: 624.0461775 | H145: -292.9041622 | I145: -1362.259447 | J145: -47.47982012 | K145: -224.6508857 | L145: -1275.997205 | M145: 0
A146: EDF | B146: =+B126 -> 0 | C146: =+C126 -> 0 | D146: 0 | E146: 0 | F146: 0 | G146: 0 | H146: 0 | I146: 0 | J146: 0 | K146: 0 | L146: 0 | M146: 0
A147: Constellation | B147: =+B127 -> 0 | C147: 0 | D147: 0 | E147: 0 | F147: 0 | G147: 0 | H147: 0 | I147: 0 | J147: 0 | K147: 0 | L147: 0 | M147: 0
A148: OMU | B148: =+B129 -> 6573.664394 | C148: =+C129 -> 9605.605462 | D148: 11901.91085 | E148: 9477.765223 | F148: 3226.853261 | G148: 1620.49007 | H148: -691.2695852 | I148: -3576.444769 | J148: -100.076449 | K148: -790.0876533 | L148: -3028.27537 | M148: 0
A149: TEA | B149: =+B130 -> 0 | C149: 0 | D149: 63.39504433 | E149: 0 | F149: 6.05129538 | G149: 0 | H149: 0 | I149: -1.137907976 | J149: 0 | K149: 0 | L149: -1.928837815 | M149: 0
B150: =SUM(B136:B149) -> 252201 | C150: =SUM(C136:C149) -> 369833 | D150: 398376.11 | E150: 312252 | F150: 128056 | G150: 70610 | H150: -32239 | I150: -159958 | J150: -4194 | K150: -27759 | L150: -108094 | M150: 0
A152: Running Total Overpayment(Underpayment) by Transmission Customer
A153: LG&E/KU | C153: =+B112+C112+B121+C121 -> 537921.7484 | D153: =+C153+D112+D121 -> 886352.5335 | E153: =+D153+E112+E121 -> 1163836.167 | F153: 1273121.511 | G153: 1335767.217 | H153: 1307184.177 | I153: 1164651.763 | J153: 1160917.02 | K153: 1136264.574 | L153: 1041981.753 | M153: 1041981.753
A154: EKPC | C154: =+B113+B131+C113+C131 -> 49941.26142 | D154: =+C154+D113+D131 -> 76497.29675 | E154: =+D154+E113+E131 -> 93245.14599 | F154: 100549.6287 | G154: =+F154+G113+G131 -> 104515.9037 | H154: 102724.2555 | I154: =+H154+I113+I131 -> 93815.25612 | J154: =+I154+J113+J131 -> 93617.24656 | K154: 92173.68089 | L154: 84618.84901 | M154: 84618.84901
A155: KMPA | C155: =+B115+C115 -> 9047.034318 | D155: =+C155+D115 -> 14583.68801 | E155: =+D155+E115 -> 19939.62433 | F155: 24691.19105 | G155: 26168.07055 | H155: 25424.89782 | I155: 22529.98199 | J155: 22434.91308 | K155: 21889.87759 | L155: 20344.85067 | M155: 20344.85067
A156: Benahm | C156: =+B116+C116 -> 172.1073572 | D156: =+C156+D116 -> 303.2476839 | E156: 329.2527179 | F156: 527.7752625 | G156: 645.8003616 | H156: 585.2985708 | I156: 305.2153841 | J156: 297.2890165 | K156: 258.5065316 | L156: 32.76762894 | M156: 32.76762894
A157: BREC | C157: =+B122+C122 -> 1029.935597 | D157: =+C157+D122 -> 1542.04233 | E157: =+D157+E122 -> 2148.410412 | F157: 2374.829714 | G157: 2482.092557 | H157: 2428.503208 | I157: 2140.61249 | J157: 2133.122692 | K157: 2088.837524 | L157: 1986.60912 | M157: 1986.60912
A158: Cargill | C158: =+B123+C123 -> 0 | D158: =+C158+D123 -> 0 | E158: 0 | F158: 399.3854951 | G158: 399.3854951 | H158: 398.5051772 | I158: 398.5051772 | J158: 398.5051772 | K158: 398.5051772 | L158: 398.5051772 | M158: 398.5051772
A159: NextEra | C159: =+B124+C124 -> 0 | D159: =+C159+D124 -> 0 | E159: 0 | F159: 0 | G159: 0 | H159: 0 | I159: 0 | J159: 0 | K159: 0 | L159: 0 | M159: 0
A160: Ameren | C160: =+B125+C125 -> 0 | D160: =+C160+D125 -> 0 | E160: 0 | F160: 0 | G160: 0 | H160: 0 | I160: 0 | J160: 0 | K160: 0 | L160: 0 | M160: 0
A161: Hoosier Energy | C161: =+B117+C117 -> 430.2554868 | D161: =+C161+D117 -> 680.6561089 | E161: =+D161+E117 -> 912.6963809 | F161: 990.9053988 | G161: 1042.220659 | H161: 1020.227505 | I161: 906.3725508 | J161: 903.1658992 | K161: 883.0191538 | L161: 805.867808 | M161: 805.867808
A162: TVA | C162: =+B114+C114+B128+C128 -> 7312.387612 | D162: =+C162+D114+D128 -> 12306.0699 | E162: =+D162+E114+E128 -> 14628.47262 | F162: 17207.6376 | G162: 17831.68377 | H162: 17538.77961 | I162: 16176.52017 | J162: 16129.04035 | K162: 15904.38946 | L162: 14628.39225 | M162: 14628.39225
A163: EDF | C163: =+C126+B126 -> 0 | D163: =+C163+D126 -> 0 | E163: =+D163+E126 -> 0 | F163: 0 | G163: 0 | H163: 0 | I163: 0 | J163: 0 | K163: 0 | L163: 0 | M163: 0
A164: Constellation | C164: =+C127+B127 -> 0 | D164: =+C164+D127 -> 0 | E164: 0 | F164: 0 | G164: 0 | H164: 0 | I164: 0 | J164: 0 | K164: 0 | L164: 0 | M164: 0
A165: OMU | C165: =+C129+B129 -> 16179.26986 | D165: =+C165+D129 -> 28081.1807 | E165: =+D165+E129 -> 37558.94593 | F165: 40785.79919 | G165: 42406.28926 | H165: 41715.01967 | I165: 38138.5749 | J165: 38038.49845 | K165: 37248.4108 | L165: 34220.13543 | M165: 34220.13543
A166: TEA | C166: =+C130+B130 -> 0 | D166: =+C166+D130 -> 63.39504433 | E166: 63.39504433 | F166: 69.44633971 | G166: 69.44633971 | H166: 69.44633971 | I166: 68.30843174 | J166: 68.30843174 | K166: 68.30843174 | L166: 66.37959392 | M166: 66.37959392
A168: Dates Payments Received | C168: 2017-02-15 | D168: 2017-03-15 | E168: 2017-04-15 | F168: 2017-05-15 | G168: 2017-06-15 | H168: 2017-07-15 | I168: 2017-08-15 | J168: 2017-09-15 | K168: 2017-10-15 | L168: 2017-11-15 | M168: 2017-12-15
A169: Days in QTR | C169: =+D186-C168 -> 44 | D169: =+D186-D168 -> 16 | E169: =+G186-E168 -> 76 | F169: =+G186-F168 -> 46 | G169: =+G186-G168 -> 15 | H169: =+J186-H168 -> 77 | I169: =+J186-I168 -> 46 | J169: =+J186-J168 -> 15 | K169: =+M186-K168 -> 77 | L169: =+M186-L168 -> 46 | M169: =+M186-M168 -> 16
A171: Daily Interest to end of QTR
A172: EKPC | C172: =IF(B137>0,B137*C$169*$D$188,0) -> 81.34328402 | D172: =IF(C137<>0,C137*D$169*$D$188,0) -> 41.35089775 | E172: =IF(D137<>0,D137*E$169*$D$188,0) -> 179.1550175 | F172: 68.38628633 | G172: 9.725968748 | H172: 27.10976166 | I172: -7.315815202 | J172: -11.86239369 | K172: -1.353408928 | L172: -5.894493897 | M172: -10.72993109
A173: KMPA | C173: =IF(B138>0,B138*C$169*$D$188,0) -> 15.14574219 | D173: 7.341724758 | E173: 37.35193436 | F173: 21.86982876 | G173: 6.32674363 | H173: 10.09457255 | I173: 0 | J173: 0 | K173: 0 | L173: 0 | M173: 0
A174: Benahm | C174: 0.2553861388 | D174: 0.1515719132 | E174: 0.8847121653 | F174: 0.1061860347 | G174: 0.264334128 | H174: 0.8067096358 | I174: 0 | J174: 0 | K174: 0 | L174: 0 | M174: 0
A175: BREC | C175: 1.829475731 | D175: =IF(C140<>0,C140*D$169*$D$188,0) -> 0.7975268194 | E175: 3.454826357 | F175: 2.475975313 | G175: 0.3014788516 | H175: 0.7331488739 | I175: -0.2188207265 | J175: -0.3833284628 | K175: -0.05119328188 | L175: -0.1808290798 | M175: -0.1451923418
A176: Cargill | C176: 0 | D176: 0 | E176: 0 | F176: 0 | G176: 0.5317845222 | H176: 0 | I176: -0.00359459099 | J176: 0 | K176: 0 | L176: 0 | M176: 0
A177: NextEra | C177: 0 | D177: 0 | E177: 0 | F177: 0 | G177: 0 | H177: 0 | I177: 0 | J177: 0 | K177: 0 | L177: 0 | M177: 0
A178: Ameren | C178: 0 | D178: 0 | E178: 0 | F178: 0 | G178: 0 | H178: 0 | I178: 0 | J178: 0 | K178: 0 | L178: 0 | M178: 0
A179: Hoosier Energy | C179: 0.7281606821 | D179: 0.3462949668 | E179: 1.68927806 | F179: 0.9474871817 | G179: 0.104135843 | H179: 0.3507433199 | I179: -0.08980437638 | J179: -0.151598651 | K179: -0.02191768384 | L179: -0.08226495709 | M179: -0.1095760483
A180: TVA | C180: 12.51152721 | D180: 5.835947544 | E180: 33.68888566 | F180: 9.483038392 | G180: 3.434175833 | H180: 4.265398366 | I180: -1.196011954 | J180: -1.813857784 | K180: -0.3245278225 | L180: -0.9173141919 | M180: -1.812265619
A181: EDF | C181: 0 | D181: 0 | E181: 0 | F181: 0 | G181: 0 | H181: 0 | I181: 0 | J181: 0 | K181: 0 | L181: 0 | M181: 0
A182: Constellation | C182: 0 | D182: 0 | E182: 0 | F182: 0 | G182: 0 | H182: 0 | I182: 0 | J182: 0 | K182: 0 | L182: 0 | M182: 0
A183: OMU | C183: 25.67511222 | D183: 13.64259143 | E183: 80.29387746 | F183: 38.70044189 | G183: 4.296577219 | H183: 11.07616062 | I183: -2.822652575 | J183: -4.762060705 | K183: -0.6840293834 | L183: -3.226155174 | M183: -4.30098069
A184: TEA | C184: 0 | D184: 0 | E184: 0.4276820744 | F184: 0 | G184: 0.008057341245 | H184: 0 | I184: 0 | J184: -0.001515132264 | K184: 0 | L184: 0 | M184: -0.002739478146
A186: Quarterly Compounding Interest as of: | D186: 2017-03-31 | G186: 2017-06-30 | J186: 2017-09-30 | M186: 2017-12-31
A187: FERC QTR Interest Rate | D187: 0.0027 | G187: 0.0027 | J187: 0.0027 | M187: 0.0027 | O187: Interest rates verified
A188: FERC QTR IR(converted to daily) | D188: =+(D187*12)/365 -> 8.876712329e-05 | G188: =+(G187*12)/365 -> 8.876712329e-05 | J188: =+(J187*12)/365 -> 8.876712329e-05 | M188: =+(M187*12)/365 -> 8.876712329e-05
A189: EKPC | D189: 0 | G189: =ROUND(D204*(G$187*3),2) -> 620.62 | J189: =ROUND(G204*(J$187*3),2) -> 853.69 | M189: =ROUND(J204*(M$187*3),2) -> 765.28
A190: KMPA | D190: 0 | G190: =ROUND(D205*(G$187*3),2) -> 118.31 | J190: =ROUND(G205*(J$187*3),2) -> 213.45 | M190: =ROUND(J205*(M$187*3),2) -> 183.53
A191: Benham | D191: 0 | G191: 2.46 | J191: 5.26 | M191: 2.46
A192: BREC | D192: 0 | G192: 12.51 | J192: 20.26 | M192: 17.44
A193: Cargill | D193: 0 | G193: 0 | J193: 3.24 | M193: 3.25
A194: NextEra | D194: 0 | G194: 0 | J194: 0 | M194: 0
A195: Ameren | D195: 0 | G195: 0 | J195: 0 | M195: 0
A196: Hoosier Energy | D196: 0 | G196: 5.52 | J196: 8.51 | M196: 7.39
A197: TVA | D197: 0 | G197: 99.83 | J197: 145.62 | M197: 131.83
A198: EDF | D198: 0 | G198: 0 | J198: 0 | M198: 0
A199: Constellation | D199: 0 | G199: 0 | J199: 0 | M199: 0
A200: OMU | D200: 0 | G200: 227.78 | J200: 346.33 | M200: 310.95
A201: TEA | D201: 0 | G201: 0.51 | J201: 0.57 | M201: 0.56 | O201: =SUM(M189:M201) -> 1422.69
A203: QTR Balance of Principal and Interest | K203: FINAL AMOUNT Due Customer (or Due From Customer if Negative)
A204: EKPC | D204: =+D154+C172+D172 -> 76619.99093 | G204: =+G154+E172+F172+G172+G189 -> 105393.791 | J204: =+J154+H172+I172+J172+J189 -> 94478.86811 | M204: =+M154+K172+L172+M172+M189 -> 85366.15117
A205: KMPA | D205: =+C173+D173+D155 -> 14606.17547 | G205: =+E173+F173+G173+G155+G190 -> 26351.92905 | J205: =+H173+I173+J173+J155+J190 -> 22658.45766 | M205: =+K173+L173+M173+M155+M190 -> 20528.38067
A206: Benham | D206: =+C174+D174+D156 -> 303.6546419 | G206: =+E174+F174+G174+G156+G191 -> 649.5155939 | J206: =+H174+I174+J174+J156+J191 -> 303.3557261 | M206: =+K174+L174+M174+M156+M191 -> 35.22762894
A207: BREC | D207: =+D157+C175+D175 -> 1544.669333 | G207: =+G157+E175+F175+G175+G192 -> 2500.834837 | J207: =+J157+H175+I175+J175+J192 -> 2153.513692 | M207: =+M157+K175+L175+M175+M192 -> 2003.671905
A208: Cargill | D208: 0 | G208: 399.9172796 | J208: 401.7415826 | M208: 401.7551772
A209: NextEra | D209: 0 | G209: 0 | J209: 0 | M209: 0
A210: Ameren | D210: 0 | G210: 0 | J210: 0 | M210: 0
A211: Hoosier Energy | D211: 681.7305646 | G211: 1050.48156 | J211: 911.7852395 | M211: 813.0440493
A212: TVA | D212: 12324.41737 | G212: 17978.11987 | J212: 16275.91587 | M212: 14757.16815
A213: EDF | D213: 0 | G213: 0 | J213: 0 | M213: 0
A214: Constellation | D214: 0 | G214: 0 | J214: 0 | M214: 0
A215: OMU | D215: 28120.49841 | G215: 42757.36015 | J215: 38388.3199 | M215: 34522.87427
A216: TEA | D216: 63.39504433 | G216: 70.39207913 | J216: 68.87691661 | M216: 66.93685444
A217: Calculation of True-ups (If true-up shows refund to customer use the Principle & Interest Calculation, otherwise use the Principle only calculation)
... 13 more rows

Sheet 2017 Budget (hidden)
A1: LG&E/KU Combined Utility
A2: 2017 Transmission Budget
A3: 1 | D3: January | E3: February | F3: March | G3: April | H3: May | I3: June | J3: July | K3: August | L3: September | M3: October | N3: November | O3: December | P3: Total
A4: 2 | C4: Days in Month | D4: 31 | E4: 29 | F4: 31 | G4: 30 | H4: 31 | I4: 30 | J4: 31 | K4: 31 | L4: 30 | M4: 31 | N4: 30 | O4: 31
A5: 3
A6: 4 | C6: Transmission Sales Volume, MWh | D6: =+D8+D13+D17+D34+D42 -> 7286.263944 | E6: =+E8+E13+E17+E34+E42 -> 7103.051349 | F6: 6150.787136 | G6: 5179.259049 | H6: 6599.888014 | I6: 7553.491137 | J6: 7481.322226 | K6: 7941.833715 | L6: 6901.777865 | M6: 5698.830068 | N6: 5988.294955 | O6: 6609.485507 | P6: =SUM(D6:O6) -> 80494.28497 | R6: Calculated
A7: 5
A8: 6 | C8: NITS & Grandfathered Volume, Mwh | D8: =SUM(D35:D40)+D43+D44 -> 844.5624078 | E8: =SUM(E35:E40)+E43+E44 -> 892.9460371 | F8: 681.7932962 | G8: 579.8480458 | H8: 714.3946185 | I8: 804.6133907 | J8: 768.1789576 | K8: 875.5029863 | L8: 733.3393181 | M8: 614.8529691 | N8: 626.0182214 | O8: 626.7415996 | P8: =SUM(D8:O8) -> 8762.791848 | R8: Calculated
A9: 7 | C9: NITS & Grandfathered Average Price, $/MWh | D9: =D10/D8 -> 2022.734986 | E9: =E10/E8 -> 2010.598502 | F9: 2041.286579 | G9: 1940.54268 | H9: 2064.80274 | I9: 2124.318375 | J9: 2107.471007 | K9: 2086.792836 | L9: 2140.717111 | M9: 2134.131748 | N9: 2110.08559 | O9: 2116.725227 | R9: Calculated
A10: 8 | C10: NITS & Grandfathered Revenue, $ | D10: =D79 -> 1708325.93 | E10: =E79 -> 1795355.964 | F10: 1391735.505 | G10: 1125219.881 | H10: 1475083.966 | I10: 1709255.011 | J10: 1618914.882 | K10: 1826993.36 | L10: 1569872.026 | M10: 1312177.241 | N10: 1320952.028 | O10: 1326639.755 | P10: =SUM(D10:O10) -> 18180525.55 | R10: Calculated
A11: 9 | C11: Municipal Revenue, $ | D11: 651473.6131 | E11: 661974.6567 | F11: 572889.6788 | G11: 454313.6708 | H11: 504014.0879 | I11: 634985.5368 | J11: 671290.3392 | K11: 682121.0755 | L11: 668626.5201 | M11: 494917.7747 | N11: 510986.134 | O11: 523592.4169 | P11: =SUM(D11:O11) -> 7031185.505 | R11: From Rob 2017
A12: 10
A13: 11 | C13: OMU Long Term Firm Volume, MW-month | D13: 260 | E13: 260 | F13: 260 | G13: 260 | H13: 260 | I13: 260 | J13: 260 | K13: 260 | L13: 260 | M13: 260 | N13: 260 | O13: 260 | P13: =SUM(D13:O13) -> 3120 | R13: From BP Final 2017
A14: 12 | C14: OMU Long Term Firm Revenue, $/MWh | D14: =+D53+D47+D48 -> 1841 | E14: =+E53+E47+E48 -> 1841 | F14: 1841 | G14: 1841 | H14: 1841 | I14: 1895.2 | J14: 1895.2 | K14: 1895.2 | L14: 1935.2 | M14: 1935.2 | N14: 1935.2 | O14: 1935.2 | R14: Calculated
A15: 13 | C15: Long Term Firm PTP Revenue, $ | D15: =+D13*D14 -> 478660 | E15: =+E13*E14 -> 478660 | F15: 478660 | G15: 478660 | H15: 478660 | I15: 492752 | J15: 492752 | K15: 492752 | L15: 503152 | M15: 503152 | N15: 503152 | O15: 503152 | P15: =SUM(D15:O15) -> 5884164 | R15: Calculated
A16: 14
A17: 15 | C17: Short Term Firm, MW-days | D17: 0 | E17: 0 | F17: 0 | G17: 0 | H17: 0 | I17: 0 | J17: 0 | K17: 0 | L17: 0 | M17: 0 | N17: 0 | O17: 0 | P17: =SUM(D17:O17) -> 0 | R17: From R&E 2 Dated 8/20/14
A18: 16 | C18: Non Firm Revenue, $/MWh | D18: =D19/D17 ->  | E18: =E19/E17 ->  | P18: =P19/P17 -> 
A19: 17 | C19: Short Term Firm PTP, $ | D19: =+D32-D15 -> 30000 | E19: =+E32-E15 -> 30000 | F19: 30000 | G19: 30000 | H19: 30000 | I19: 30000 | J19: 30000 | K19: 30000 | L19: 30000 | M19: 30000 | N19: 30000 | O19: 30000 | P19: =SUM(D19:O19) -> 360000 | R19: From R&E 2 Dated 8/20/14
A20: 18
A21: 19 | C21: LG&E OSS $ | D21: 88860 | E21: 112725 | F21: 101666 | G21: 65072 | H21: 152919 | I21: 61792 | J21: 81958 | K21: 67301 | L21: 99463 | M21: 32868 | N21: 33679 | O21: 147028 | P21: =SUM(D21:O21) -> 1045331 | R21: From Rob 2017
A22: 20 | C22: NL SERVED BY EKPC | P22: =SUM(D22:O22) -> 0 | R22: N/A
A23: 21 | C23: EKPC NITS | P23: =SUM(D23:O23) -> 0 | R23: N/A
A24: 22
A25: 23 | C25: 3rd Party Expense | P25: =SUM(D25:O25) -> 0 | R25: N/A
A26: 24 | C26: RTO Expense | P26: =SUM(D26:O26) -> 0 | R26: N/A
A27: 25 | C27: 3rd Party Volume (Mwh) | D27: 0 | E27: 0 | F27: 0 | G27: 0 | H27: 0 | I27: 0 | J27: 0 | K27: 0 | L27: 0 | M27: 0 | N27: 0 | O27: 0 | P27: =SUM(D27:O27) -> 0
A28: 26
A29: 27 | C29: Depancaking Adjustment ($) | D29: =D88 -> 821107.5272 | E29: =E88 -> 821107.5272 | F29: 821107.5272 | G29: 821107.5272 | H29: 828759.5272 | I29: 852594.76 | J29: 852594.76 | K29: 852594.76 | L29: 856714.76 | M29: 856714.76 | N29: 856714.76 | O29: 856714.76 | P29: =SUM(D29:O29) -> 10097832.96 | R29: Calculated
A30: 28 | C30: Intercompany Transmission (LGE to KU) | D30: 54377 | E30: 49611 | F30: 49988 | G30: 68363 | H30: 52245 | I30: 73216 | J30: 61320 | K30: 74498 | L30: 49736 | M30: 51242 | N30: 57113 | O30: 57137 | P30: =SUM(D30:O30) -> 698846 | R30: From Rob 2017
A31: 29
A32: 30 | C32: Total PTP | D32: =D74+D72 -> 508660 | E32: =E74+E72 -> 508660 | F32: 508660 | G32: 508660 | H32: 508660 | I32: 522752 | J32: 522752 | K32: 522752 | L32: 533152 | M32: 533152 | N32: 533152 | O32: 533152 | P32: =SUM(D32:O32) -> 6244164
A33: 31
A34: 32 | C34: LKE & Muni Load (Includes line 39) | D34: 6181.701536 | E34: 5950.105312 | F34: 5208.99384 | G34: 4339.411004 | H34: 5625.493396 | I34: 6488.877746 | J34: 6453.143269 | K34: 6806.330729 | L34: 5908.438547 | M34: 4823.977099 | N34: 5102.276734 | O34: 5722.743908 | P34: =SUM(D34:O34) -> 68611.49312 | R34: From Jason Renfro / Vincent Pepe
A35: 33 | C35: BREC Load | D35: 12.18 | E35: 11.19406629 | F35: 10.11626057 | G35: 11.1204873 | H35: 13.39510638 | I35: 12.96033046 | J35: 13.59118239 | K35: 13.98 | L35: 14.02587435 | M35: 13.58297834 | N35: 12.56123143 | O35: 11.27591552 | P35: 149.983433 | R35: From BP Final 2017
A36: 34 | C36: EKPC Load | D36: 465.6166843 | E36: 534.499673 | F36: 366.3343985 | G36: 291.7457648 | H36: 341.7313214 | I36: 365.0905848 | J36: 303.7146989 | K36: 417.1928746 | L36: 307.1004614 | M36: 296.9648565 | N36: 327.5690147 | O36: 313.2790913 | P36: 4330.839424 | R36: From BP Final 2017
A37: 35 | C37: KMPA Load | D37: 122.36 | E37: 115.5831385 | F37: 100.8999385 | G37: 100.5234462 | H37: 133.2996077 | I37: 166.6790513 | J37: 173.49 | K37: 170.5772613 | L37: 153.2828751 | M37: 112.1404407 | N37: 95.93833158 | O37: 102.1279014 | P37: 1546.901992 | R37: From BP Final 2017
A38: 36 | C38: Hoosier Load | D38: 5 | E38: 4.6875 | F38: 3.90625 | G38: 3.90625 | H38: 4.53125 | I38: 4.84375 | J38: 5 | K38: 4.264705882 | L38: 4.705882353 | M38: 3.676470588 | N38: 3.529411765 | O38: 3.823529412 | P38: 51.875 | R38: From BP Final 2017
A39: 37 | C39: OMU Load | D39: 131.0496944 | E39: 121.6015188 | F39: 113.2031405 | G39: 116.5274986 | H39: 161.1438832 | I39: 180.5030882 | J39: 186.68 | K39: 184.6869751 | L39: 177.0470463 | M39: 130.0448754 | N39: 98.32256228 | O39: 105.1320641 | P39: 1705.942347 | R39: From BP Final 2017
A40: 38 | C40: TVA Load | D40: 106.0962145 | E40: 102.6403118 | F40: 83.97843691 | G40: 53.56649268 | H40: 52.87531213 | I40: 65.31656204 | J40: 74.76431671 | K40: 69.63343223 | L40: 62.67008901 | M40: 43.97900983 | N40: 77.32975895 | O40: 77.32975895 | P40: 870.1796958 | R40: From BP Final 2017
A41: 39 | C41: Municipal Load | D41: 338.0738568 | E41: 341.3481954 | F41: 291.3354435 | G41: 262.5479801 | H41: 293.7647911 | I41: 339.7034716 | J41: 354.7138336 | K41: 359.3711267 | L41: 349.6639395 | M41: 257.6951303 | N41: 260.6759442 | O41: 274.6546116 | P41: 3723.548324 | R41: From Jason Renfro / Vincent Pepe
A42: 40 | C42: KU Load on EKPC | P42: =SUM(D42:O42) -> 0
A43: 41 | C43: Benham | D43: 2.259814597 | E43: 2.73982872 | F43: 3.35487125 | G43: 2.458106219 | H43: 1.363206681 | I43: 0.9720974216 | J43: 1.007950999 | K43: 0.8918839138 | L43: 0.8389410331 | M43: 0.4917579114 | N43: 1.551633658 | O43: 1.531271012 | P43: =SUM(D43:O43) -> 19.46136342 | R43: From BP Final 2017
A44: 42 | C44: Paris | D44: 0 | E44: 0 | F44: 0 | G44: 0 | H44: 6.054931028 | I44: 8.2479265 | J44: 9.93080859 | K44: 14.27585334 | L44: 13.66814856 | M44: 13.97257972 | N44: 9.216277004 | O44: 12.24206802 | P44: =SUM(D44:O44) -> 87.60859276 | R44: From BP Final 2017
B46: OATT Rates ($/MW-mo)
C47: Schedule 1 | D47: 78 | E47: 78 | F47: 78 | G47: 78 | H47: 78 | I47: 76.2 | J47: 76.2 | K47: 76.2 | L47: 76.2 | M47: 76.2 | N47: 76.2 | O47: 76.2 | R47: From BP Final 2017
C48: Schedule 2 | D48: 80 | E48: 80 | F48: 80 | G48: 80 | H48: 80 | I48: 40 | J48: 40 | K48: 40 | L48: 80 | M48: 80 | N48: 80 | O48: 80 | R48: From BP Final 2017
C49: Schedule 3 | D49: 69 | E49: 69 | F49: 69 | G49: 69 | H49: 69 | I49: 69 | J49: 69 | K49: 69 | L49: 69 | M49: 69 | N49: 69 | O49: 69 | R49: From BP Final 2017
C50: Schedule 5 | D50: 106.95 | E50: 106.95 | F50: 106.95 | G50: 106.95 | H50: 106.95 | I50: 106.95 | J50: 106.95 | K50: 106.95 | L50: 106.95 | M50: 106.95 | N50: 106.95 | O50: 106.95 | R50: From BP Final 2017
C51: Schedule 6 | D51: 106.95 | E51: 106.95 | F51: 106.95 | G51: 106.95 | H51: 106.95 | I51: 106.95 | J51: 106.95 | K51: 106.95 | L51: 106.95 | M51: 106.95 | N51: 106.95 | O51: 106.95 | R51: From BP Final 2017
C52: Schedule 10 - NITS | D52: 1725 | E52: 1725 | F52: 1725 | G52: 1725 | H52: 1725 | I52: 1824 | J52: 1824 | K52: 1824 | L52: 1824 | M52: 1824 | N52: 1824 | O52: 1824 | R52: From BP Final 2017
C53: Schedule 10 - PTP | D53: 1683 | E53: 1683 | F53: 1683 | G53: 1683 | H53: 1683 | I53: 1779 | J53: 1779 | K53: 1779 | L53: 1779 | M53: 1779 | N53: 1779 | O53: 1779 | R53: From BP Final 2017
C54: Schedule 10c - with OMU Revenue Credits | D54: 42092 | E54: 42092 | F54: 42092 | G54: 42092 | H54: 42092 | I54: 42092 | J54: 42092 | K54: 42092 | L54: 42092 | M54: 42092 | N54: 42092 | O54: 42092 | R54: From BP Final 2017
B56: OATT Charges per Customer ($/MW-mo)
C57: KU Municipal (Sch. 1,10) | D57: =+D47+D52 -> 1803 | E57: =+E47+E52 -> 1803 | F57: 1803 | G57: 1803 | H57: 1803 | I57: 1900.2 | J57: 1900.2 | K57: 1900.2 | L57: 1900.2 | M57: 1900.2 | N57: 1900.2 | O57: 1900.2 | R57: Calculated
C58: BREC (Sch. 1,2,10) | D58: =+D47+D48+D52 -> 1883 | E58: 1883 | F58: 1883 | G58: 1883 | H58: 1883 | I58: 1940.2 | J58: 1940.2 | K58: 1940.2 | L58: 1980.2 | M58: 1980.2 | N58: 1980.2 | O58: 1980.2 | R58: Calculated
C59: EKPC (Sch. 1,2,10e) | D59: =+D47+D48+D52 -> 1883 | E59: =+E47+E48+E52 -> 1883 | F59: 1883 | G59: 1883 | H59: 1883 | I59: 1940.2 | J59: 1940.2 | K59: 1940.2 | L59: 1980.2 | M59: 1980.2 | N59: 1980.2 | O59: 1980.2 | R59: Calculated
C60: KMPA (Sch. 1,2,3,5,6,10) | D60: =+D47+D48+D49+D50+D51+D52 -> 2165.9 | E60: 2165.9 | F60: 2165.9 | G60: 2165.9 | H60: 2165.9 | I60: 2223.1 | J60: 2223.1 | K60: 2223.1 | L60: 2263.1 | M60: 2263.1 | N60: 2263.1 | O60: 2263.1 | R60: Calculated
C61: Hoosier (Sch. 1,2,10) | D61: =+D47+D48+D52 -> 1883 | E61: 1883 | F61: 1883 | G61: 1883 | H61: 1883 | I61: 1940.2 | J61: 1940.2 | K61: 1940.2 | L61: 1980.2 | M61: 1980.2 | N61: 1980.2 | O61: 1980.2 | R61: Calculated
C62: OMU (Sch. 1,2,3,5,6,10c) | D62: =+D47+(D48*0.5)+D49+D50+D51+D52 -> 2125.9 | E62: =+E47+(E48*0.5)+E49+E50+E51+E52 -> 2125.9 | F62: 2125.9 | G62: 2125.9 | H62: 2125.9 | I62: 2203.1 | J62: 2203.1 | K62: 2203.1 | L62: 2223.1 | M62: 2223.1 | N62: 2223.1 | O62: 2223.1 | R62: Calculated
C63: TVA (Sch. 1,2,10) | D63: =+D47+D48+D52 -> 1883 | E63: =+E47+E48+E52 -> 1883 | F63: 1883 | G63: 1883 | H63: 1883 | I63: 1940.2 | J63: 1940.2 | K63: 1940.2 | L63: 1980.2 | M63: 1980.2 | N63: 1980.2 | O63: 1980.2 | R63: Calculated
C64: Benham / Paris (Sch. 1,2,3,5,6,10) | D64: =+D52+D47+D48+D49+D50+D51 -> 2165.9 | E64: =+E52+E47+E48+E49+E50+E51 -> 2165.9 | F64: 2165.9 | G64: 2165.9 | H64: 2165.9 | I64: 2223.1 | J64: 2223.1 | K64: 2223.1 | L64: 2263.1 | M64: 2263.1 | N64: 2263.1 | O64: 2263.1 | R64: Calculated
B66: OATT Revenues ($)
C67: BREC | D67: =D35*D58 -> 22934.94 | E67: 21078.42682 | F67: 19048.91866 | G67: 20939.87759 | H67: 25222.98531 | I67: 25145.63316 | J67: 26369.61207 | K67: 27123.996 | L67: 27774.03639 | M67: 26897.01371 | N67: 24873.75048 | O67: 22328.56791 | P67: =SUM(D67:O67) -> 289737.7581 | R67: Calculated
C68: EKPC | D68: 876756.2165 | E68: 1006462.884 | F68: 689807.6724 | G68: 549357.2752 | H68: 643480.0782 | I68: 708348.7526 | J68: 589267.2589 | K68: 809437.6153 | L68: 608120.3337 | M68: 588049.8089 | N68: 648652.163 | O68: 620355.2565 | P68: 8338095.315 | R68: Calculated
C69: KMPA | D69: =D37*D60 -> 265019.524 | E69: 250341.5196 | F69: 218539.1767 | G69: 217723.732 | H69: 288713.6204 | I69: 370544.1988 | J69: 385685.619 | K69: 379210.3096 | L69: 346894.4747 | M69: 253785.0314 | N69: 217118.0382 | O69: 231125.6536 | P69: 3424700.898 | R69: Calculated
C70: Hoosier | D70: =D38*D61 -> 9415 | E70: 8826.5625 | F70: 7355.46875 | G70: 7355.46875 | H70: 8532.34375 | I70: 9397.84375 | J70: 9701 | K70: 8274.382353 | L70: 9318.588235 | M70: 7280.147059 | N70: 6988.941176 | O70: 7571.352941 | P70: 100017.0993 | R70: Calculated
C71: OMU Network | D71: =D39*D62-D54 -> 236506.5452 | E71: =E39*E62-E54 -> 216420.6688 | F71: 198566.5564 | G71: 205633.8092 | H71: 300483.7813 | I71: 355574.3537 | J71: 369182.708 | K71: 364791.8748 | L71: 351501.2885 | M71: 247010.7626 | N71: 176488.8882 | O71: 191627.0916 | P71: 3213788.328 | R71: Calculated
C72: Various SFP and NF | D72: 30000 | E72: 30000 | F72: 30000 | G72: 30000 | H72: 30000 | I72: 30000 | J72: 30000 | K72: 30000 | L72: 30000 | M72: 30000 | N72: 30000 | O72: 30000 | P72: 360000 | R72: From BP Final 2017
C73: Joint Settlement / Schedule 2 True Up | D73: 93020 | E73: 93020 | F73: 93020 | G73: =93020-75000 -> 18020 | H73: 93020 | I73: 93020 | J73: 69333 | K73: 69333 | L73: 69333 | M73: 69333 | N73: 69333 | O73: 69333 | P73: 899118 | R73: From BP Final 2017
C74: OMU PTP | D74: =D15 -> 478660 | E74: =E15 -> 478660 | F74: 478660 | G74: 478660 | H74: 478660 | I74: 492752 | J74: 492752 | K74: 492752 | L74: 503152 | M74: 503152 | N74: 503152 | O74: 503152 | P74: 5884164 | R74: Calculated
C75: Benham / Paris | D75: =(+D43+D44)*D64 -> 4894.532437 | E75: =(+E43+E44)*E64 -> 5934.195025 | F75: 7266.315641 | G75: 5324.01226 | H75: 16066.94447 | I75: 20497.03518 | J75: 24317.95644 | K75: 33719.39669 | L75: 32830.99447 | M75: 32734.24249 | N75: 24368.85862 | O75: 31170.44357 | P75: 239124.9273 | R75: Calculated
C76: TVA | D76: =D40*D63 -> 199779.172 | E76: 193271.7071 | F76: 158131.3967 | G76: 100865.7057 | H76: 99564.21274 | I76: 126727.1937 | J76: 145057.7273 | K76: 135102.7852 | L76: 124099.3103 | M76: 87087.23527 | N76: 153128.3887 | O76: 153128.3887 | P76: 1675943.223 | R76: Calculated
C77: Total OATT Revenue/Month | D77: =SUM(D67:D76) -> 2216985.93 | E77: 2304015.964 | F77: 1900395.505 | G77: 1633879.881 | H77: 1983743.966 | I77: 2232007.011 | J77: 2141666.882 | K77: 2349745.36 | L77: 2103024.026 | M77: 1845329.241 | N77: 1854104.028 | O77: 1859791.755 | P77: 24424689.55 | R77: Calculated
B79: NITS & GrandFathered | D79: =D77-D74-D72 -> 1708325.93 | E79: 1795355.964 | F79: 1391735.505 | G79: 1125219.881 | H79: 1475083.966 | I79: 1709255.011 | J79: 1618914.882 | K79: 1826993.36 | L79: 1569872.026 | M79: 1312177.241 | N79: 1320952.028 | O79: 1326639.755 | P79: =SUM(D79:O79) -> 18180525.55 | R79: Calculated
B81: MISO Exit Expenses ($)
B83: KMPA | D83: =+D97*D99+D98 -> 538082.6992 | E83: =+E97*E99+E98 -> 538082.6992 | F83: 538082.6992 | G83: 538082.6992 | H83: 545734.6992 | I83: 561520.76 | J83: 561520.76 | K83: 561520.76 | L83: 561520.76 | M83: 561520.76 | N83: 561520.76 | O83: 561520.76 | P83: =SUM(D83:O83) -> 6628710.816 | R83: Calculated
B84: OMU | D84: =+D94*D95 -> 189623 | E84: =+E94*E95 -> 189623 | F84: 189623 | G84: 189623 | H84: 189623 | I84: 195205.6 | J84: 195205.6 | K84: 195205.6 | L84: 199325.6 | M84: 199325.6 | N84: 199325.6 | O84: 199325.6 | P84: =SUM(D84:O84) -> 2331034.2 | R84: Calculated
B85: OMU SFP and NF | D85: 15000 | E85: 15000 | F85: 15000 | G85: 15000 | H85: 15000 | I85: 15000 | J85: 15000 | K85: 15000 | L85: 15000 | M85: 15000 | N85: 15000 | O85: 15000 | P85: =SUM(D85:O85) -> 180000 | R85: Calculated
B86: KYMEA | D86: =+D91*D92 -> 78401.828 | E86: =+E91*E92 -> 78401.828 | F86: 78401.828 | G86: 78401.828 | H86: 78401.828 | I86: 80868.4 | J86: 80868.4 | K86: 80868.4 | L86: 80868.4 | M86: 80868.4 | N86: 80868.4 | O86: 80868.4 | P86: =SUM(D86:O86) -> 958087.94 | R86: Calculated
B88: Total MISO Exit Expenses | D88: =SUM(D82:D87) -> 821107.5272 | E88: =SUM(E82:E87) -> 821107.5272 | F88: 821107.5272 | G88: 821107.5272 | H88: 828759.5272 | I88: 852594.76 | J88: 852594.76 | K88: 852594.76 | L88: 856714.76 | M88: 856714.76 | N88: 856714.76 | O88: 856714.76 | P88: =SUM(D88:O88) -> 10097832.96 | R88: Calculated
D89: =+D88/D4 -> 26487.33959 | E89: 28314.05266 | F89: 26487.33959 | G89: 27370.25091 | H89: 26734.1783 | I89: 28419.82533 | J89: 27503.05677 | K89: 27503.05677 | L89: 28557.15867 | M89: 27635.96 | N89: 28557.15867 | O89: 27635.96 | R89: Calculated
P90: =+P77-P88 -> 14326856.59 | R90: Calculated
C91: KYMEA | D91: 20 | E91: 20 | F91: 20 | G91: 20 | H91: 20 | I91: 20 | J91: 20 | K91: 20 | L91: 20 | M91: 20 | N91: 20 | O91: 20 | R91: From BP Final 2017
C92: MISO Rate | D92: 3920.0914 | E92: 3920.0914 | F92: 3920.0914 | G92: 3920.0914 | H92: 3920.0914 | I92: 4043.42 | J92: 4043.42 | K92: 4043.42 | L92: 4043.42 | M92: 4043.42 | N92: 4043.42 | O92: 4043.42 | R92: From BP Final 2017
C94: OMU TSR Amount | D94: 103 | E94: 103 | F94: 103 | G94: 103 | H94: 103 | I94: 103 | J94: 103 | K94: 103 | L94: 103 | M94: 103 | N94: 103 | O94: 103 | R94: From BP Final 2017
C95: LKE Rate | D95: =+D47+D48+D53 -> 1841 | E95: 1841 | F95: 1841 | G95: 1841 | H95: 1841 | I95: 1895.2 | J95: 1895.2 | K95: 1895.2 | L95: 1935.2 | M95: 1935.2 | N95: 1935.2 | O95: 1935.2 | R95: From BP Final 2017
C97: KMPA TSR Amount | D97: 128 | E97: 128 | F97: 128 | G97: 128 | H97: 128 | I97: 128 | J97: 128 | K97: 128 | L97: 128 | M97: 128 | N97: 128 | O97: 128 | R97: From BP Final 2017
C98: Schedule 26a | D98: 36311 | E98: 36311 | F98: 36311 | G98: 36311 | H98: 43963 | I98: 43963 | J98: 43963 | K98: 43963 | L98: 43963 | M98: 43963 | N98: 43963 | O98: 43963 | R98: From BP Final 2017
C99: MISO Rate | D99: =+D92 -> 3920.0914 | E99: =+E92 -> 3920.0914 | F99: 3920.0914 | G99: 3920.0914 | H99: 3920.0914 | I99: 4043.42 | J99: 4043.42 | K99: 4043.42 | L99: 4043.42 | M99: 4043.42 | N99: 4043.42 | O99: 4043.42 | R99: From BP Final 2017
D103: Jan | E103: Feb | F103: Mar | G103: Apr | H103: May | I103: Jun | J103: Jul | K103: Aug | L103: Sep | M103: Oct | N103: Nov | O103: Dec
C105: Native Load Distribution Losses | D105: 0.06612044092 | E105: 0.06414085214 | F105: 0.05448737442 | G105: 0.04889696062 | H105: 0.05252148943 | I105: 0.06619497141 | J105: 0.07060225742 | K105: 0.07330926072 | L105: 0.05723177203 | M105: 0.04954656168 | N105: 0.0532089577 | O105: 0.06041487364 | R105: From Jeff's report
C106: Margin Budget | D106: 31.97563142 | E106: 30.91415065 | F106: 29.96874646 | G106: 27.5493175 | H106: 27.42731574 | I106: 28.94930923 | J106: 33.96987749 | K106: 33.78595912 | L106: 31.90585766 | M106: 29.87277043 | N106: 31.09444391 | O106: 34.09131744 | R106: From Jeff's report
C107: Margin Forecast | D107: 31.97563142 | E107: 30.91415065 | F107: 29.96874646 | G107: 27.5493175 | H107: 27.42731574 | I107: 28.94930923 | J107: 33.96987749 | K107: 33.78595912 | L107: 31.90585766 | M107: 29.87277043 | N107: 31.09444391 | O107: 34.09131744 | R107: From Jeff's report
C108: Other revenues Budget | D108: 73535322.55 | E108: 72780926.68 | F108: 71284577.11 | G108: 71398919.26 | H108: 74335568.19 | I108: 76928314.31 | J108: 83973493.48 | K108: 85159605.94 | L108: 83404053.39 | M108: 78227455.82 | N108: 76773206.95 | O108: 77144362.63 | R108: From Jeff's report
C109: Other revenues Forecast | D109: 73535322.55 | E109: 72780926.68 | F109: 71284577.11 | G109: 71398919.26 | H109: 74335568.19 | I109: 76928314.31 | J109: 83973493.48 | K109: 85159605.94 | L109: 83404053.39 | M109: 78227455.82 | N109: 76773206.95 | O109: 77144362.63 | R109: From Jeff's report
C111: Joint Settlement Revenue / Schedule 2 True Up
C112: Daily Average for Month | D112: =+D73/D4 -> 3000.645161 | E112: =+E73/E4 -> 3207.586207 | F112: 3000.645161 | G112: 600.6666667 | H112: 3000.645161 | I112: 3100.666667 | J112: 2236.548387 | K112: 2236.548387 | L112: 2311.1 | M112: 2236.548387 | N112: 2311.1 | O112: 2236.548387 | R112: Calculated

Sheet 2017 Forecast (hidden)
A2: Revenues
B3: 2017-01-01 | C3: 2017-02-01 | D3: 2017-03-01 | E3: 2017-04-01 | F3: 2017-05-01 | G3: 2017-06-01 | H3: 2017-07-01 | I3: 2017-08-01 | J3: 2017-09-01 | K3: 2017-10-01 | L3: 2017-11-01 | M3: 2017-12-01
A4: EKPC | B4: 876756.2165 | C4: 1006462.884 | D4: 689807.6724 | E4: 549357.2752 | F4: 643480.0782 | G4: 738067.1262 | H4: 613989.6354 | I4: 606480 | J4: 633118.3113 | K4: 612222.7482 | L4: 675316.2808 | M4: 645856.1746
A5: TVA | B5: 199779.172 | C5: 193271.7071 | D5: 158131.3967 | E5: 100865.7057 | F5: 99564.21274 | G5: 132043.9618 | H5: 151143.5427 | I5: 140770.9466 | J5: 129200.6555 | K5: 90667.12667 | L5: 159423.0311 | M5: 159423.0311
A6: OMU NITS | B6: 236506.5452 | C6: 216420.6688 | D6: 198566.5564 | E6: 205633.8092 | F6: 300483.7813 | G6: 370267.3051 | H6: 384378.46 | I6: 323428 | J6: 365912.9181 | K6: 257596.4155 | L6: 184492.3448 | M6: 200184.8416
A7: OMU PTP | B7: 478660 | C7: 478660 | D7: 478660 | E7: 478660 | F7: 478660 | G7: 513656 | H7: 513656 | I7: 513656 | J7: 524056 | K7: 524056 | L7: 524056 | M7: 524056
A8: Various SFP and NF | B8: 30000 | C8: 30000 | D8: 30000 | E8: 30000 | F8: 30000 | G8: 30000 | H8: 30000 | I8: 5000 | J8: 30000 | K8: 30000 | L8: 30000 | M8: 30000
A9: KMPA | B9: 265019.524 | C9: 250341.5196 | D9: 218539.1767 | E9: 217723.732 | F9: 288713.6204 | G9: 384111.8736 | H9: 399807.705 | I9: 380242.5 | J9: 359371.7007 | K9: 262913.2633 | L9: 224927.4184 | M9: 239438.8647
A10: BREC | B10: 22934.94 | C10: 21078.42682 | D10: 19048.91866 | E10: 20939.87759 | F10: 25222.98531 | G10: 26200.60406 | H10: 27475.93432 | I10: 28261.968 | J10: 28915.74256 | K10: 28002.66815 | L10: 25896.23472 | M10: 23246.42743
A11: Hoosier | B11: 9415 | C11: 8826.5625 | D11: 7355.46875 | E11: 7355.46875 | F11: 8532.34375 | G11: 9792.125 | H11: 10108 | I11: 8621.529412 | J11: 9701.647059 | K11: 7579.411765 | L11: 7276.235294 | M11: 7882.588235
A12: Barbourville - 4/30/19 | B12: 0 | C12: 0 | D12: 0 | E12: 0 | F12: 0 | G12: 0 | H12: 0 | I12: 0 | J12: 0 | K12: 0 | L12: 0 | M12: 0
A13: Bardwell City - 4/30/19 | B13: 0 | C13: 0 | D13: 0 | E13: 0 | F13: 0 | G13: 0 | H13: 0 | I13: 0 | J13: 0 | K13: 0 | L13: 0 | M13: 0
A14: Benham City | B14: 4894.532437 | C14: 5934.195025 | D14: 7266.315641 | E14: 5324.01226 | F14: 2952.569351 | G14: 2240.198508 | H14: 2322.823076 | I14: 2055.346479 | J14: 1966.897252 | K14: 1152.926423 | L14: 3637.805112 | M14: 3590.064887
A15: Berea - 4/30/19 | B15: 0 | C15: 0 | D15: 0 | E15: 0 | F15: 0 | G15: 0 | H15: 0 | I15: 0 | J15: 0 | K15: 0 | L15: 0 | M15: 0
A16: Corbin - 4/30/19 | B16: 0 | C16: 0 | D16: 0 | E16: 0 | F16: 0 | G16: 0 | H16: 0 | I16: 0 | J16: 0 | K16: 0 | L16: 0 | M16: 0
A17: Frankfort - 4/30/19 | B17: 0 | C17: 0 | D17: 0 | E17: 0 | F17: 0 | G17: 0 | H17: 0 | I17: 0 | J17: 0 | K17: 0 | L17: 0 | M17: 0
A18: Madisonville - 4/30/19 | B18: 0 | C18: 0 | D18: 0 | E18: 0 | F18: 0 | G18: 0 | H18: 0 | I18: 0 | J18: 0 | K18: 0 | L18: 0 | M18: 0
A19: Paris - 4/30/17 | B19: 0 | C19: 0 | D19: 0 | E19: 0 | F19: 13114.37511 | G19: 19007.34662 | H19: 22885.5484 | I19: 32898.70402 | J19: 32044.97431 | K19: 32758.71315 | L19: 21607.56144 | M19: 28701.52848
A20: Providence - 4/30/19 | B20: 0 | C20: 0 | D20: 0 | E20: 0 | F20: 0 | G20: 0 | H20: 0 | I20: 0 | J20: 0 | K20: 0 | L20: 0 | M20: 0
A21: Joint Settlement | B21: 93020 | C21: 93020 | D21: 93020 | E21: 93020 | F21: 124589 | G21: 124589 | H21: 103613 | I21: 103613 | J21: 103613 | K21: 103613 | L21: 103613 | M21: 103613
A22: Schedule 2 True Up | B22: 0 | C22: 0 | D22: 0 | E22: -75000 | F22: 0 | G22: 0 | H22: 0 | I22: 0 | J22: 0 | K22: 0 | L22: 0 | M22: 0
A24: Total | B24: =SUM(B4:B23) -> 2216985.93 | C24: 2304015.964 | D24: 1900395.505 | E24: 1633879.881 | F24: 2015312.966 | G24: 2349975.541 | H24: 2259380.649 | I24: 2145027.995 | J24: 2217901.847 | K24: 1950562.273 | L24: 1960245.912 | M24: 1965992.521
A26: Depancaking Expense
A28: OMU | B28: -189623 | C28: -189623 | D28: -189623 | E28: -189623 | F28: -189623 | G28: -203486.8 | H28: -203486.8 | I28: -203486.8 | J28: -207606.8 | K28: -207606.8 | L28: -207606.8 | M28: -207606.8
A29: OMU SFP and NF | B29: -15000 | C29: -15000 | D29: -15000 | E29: -15000 | F29: -15000 | G29: -15000 | H29: -15000 | I29: -15000 | J29: -15000 | K29: -15000 | L29: -15000 | M29: -15000
A30: KMPA | B30: -501771.6992 | C30: -501771.6992 | D30: -501771.6992 | E30: -501771.6992 | F30: -501771.6992 | G30: -497501.44 | H30: -497501.44 | I30: -497501.44 | J30: -497501.44 | K30: -497501.44 | L30: -497501.44 | M30: -497501.44
A31: KYMEA | B31: -78401.828 | C31: -78401.828 | D31: -78401.828 | E31: -78401.828 | F31: -78401.828 | G31: -77734.6 | H31: -77734.6 | I31: -77734.6 | J31: -77734.6 | K31: -77734.6 | L31: -77734.6 | M31: -77734.6
A32: 26A | B32: -36311 | C32: -36311 | D32: -36311 | E32: -36311 | F32: -43963 | G32: -43963 | H32: -43963 | I32: -43963 | J32: -43963 | K32: -43963 | L32: -43963 | M32: -43963
A34: Total | B34: =SUM(B28:B33) -> -821107.5272 | C34: -821107.5272 | D34: -821107.5272 | E34: -821107.5272 | F34: -828759.5272 | G34: -837685.84 | H34: -837685.84 | I34: -837685.84 | J34: -841805.84 | K34: -841805.84 | L34: -841805.84 | M34: -841805.84
A36: Net Income | B36: =+B24+B34 -> 1395878.403 | C36: =+C24+C34 -> 1482908.437 | D36: 1079287.978 | E36: 812772.3536 | F36: 1186553.439 | G36: 1512289.701 | H36: 1421694.809 | I36: 1307342.155 | J36: 1376096.007 | K36: 1108756.433 | L36: 1118440.072 | M36: 1124186.681
C37: =+C36+B36 -> 2878786.84 | D37: =+D36+C37 -> 3958074.818 | E37: =+E36+D37 -> 4770847.172 | F37: 5957400.611 | G37: 7469690.311 | H37: 8891385.12 | I37: 10198727.27 | J37: 11574823.28 | K37: 12683579.71 | L37: 13802019.79 | M37: 14926206.47

Sheet Variances (hidden)
A1: May through December variance for the 5 + 7 forecast
I2: 2016 BP - Actuals obtained through Rob
A3: OATT Revenues (based on actual service month)
I4: New Rates - New Volumes - Sch 2
A5: Actuals January - May | B5: =SUM('Data for Charts'!C43:G43) -> 8993468.39 | L5: Forecast June
A6: Budget June - December | B6: =SUM('Data for Charts'!H94:N94) -> 13876650.3 | J6: 2016 | K6: Actuals thru | L6: thru
A7: Forecast | B7: =+B5+B6 -> 22870118.69 | I7: Revenues: | J7: Budget | K7: May | L7: December | M7: Forecast | N7: Variance
A8: Budget | B8: =SUM('Data for Charts'!C94:N94) -> 23525571.55 | I8: OATT - Muni | J8: 6556265 | K8: 2373004 | L8: 4021025 | M8: =+L8+K8 -> 6394029 | N8: =+M8-J8 -> -162236
I9: OATT - 3rd Party | J9: 22408971 | K9: 7631784 | L9: 13532440 | M9: =+L9+K9 -> 21164224 | N9: =+M9-J9 -> -1244747
A10: Variance | B10: =+B7-B8 -> -655452.8565 | C10: =+B10/B8 -> -0.02786129362 | I10: Sch 2 Recon | J10: 0 | K10: 0 | L10: -54000 | M10: =+L10+K10 -> -54000 | N10: =+M10-J10 -> -54000
I11: Joint Party Settlement | J11: 0 | K11: 1351866 | L11: 651140 | M11: =+L11+K11 -> 2003006 | N11: =+M11-J11 -> 2003006
A12: OATT Revenue Variance | B12: =+B10 -> -655452.8565 | J12: =SUM(J8:J11) -> 28965236 | K12: =SUM(K8:K11) -> 11356654 | L12: =SUM(L8:L11) -> 18150605 | M12: =SUM(M8:M11) -> 29507259 | N12: =+M12-J12 -> 542023
A14: NITS | B14: =+B28 -> -1020132.226 | C14: =+B14/$B$18 -> 1.556377726 | I14: Cost of Sales:
A15: LT PTP | B15: =+E28 -> -10400 | C15: =+B15/$B$18 -> 0.01586689248
A16: ST PTP | B16: =+B37 -> 188315.5 | C16: -0.2873059414 | I16: ITO/RC | J16: =2752256+2438656 -> 5190912 | K16: 2197491 | L16: 3044092 | M16: =+L16+K16 -> 5241583 | N16: =+M16-J16 -> 50671
A17: NF PTP | B17: =+E37 -> 186763.87 | C17: -0.2849386774 | I17: Depancaking | J17: =5883665+2674540+36270 -> 8594475 | K17: 3522775 | L17: 5022453 | M17: =+L17+K17 -> 8545228 | N17: =+M17-J17 -> -49247
B18: =SUM(B14:B17) -> -655452.8565 | J18: =SUM(J15:J17) -> 13785387 | K18: =SUM(K15:K17) -> 5720266 | L18: =SUM(L15:L17) -> 8066545 | M18: =SUM(M15:M17) -> 13786811 | N18: =+M18-J18 -> 1424
I20: Total Gross Margin | J20: =+J12-J18 -> 15179849 | K20: =+K12-K18 -> 5636388 | L20: =+L12-L18 -> 10084060 | M20: =+M12-M18 -> 15720448 | N20: =+M20-J20 -> 540599
A21: NITS | D21: LT PTP
J22: Budget | K22: Actuals | L22: Actual -
A23: Actuals January - May | B23: =SUM('Data for Charts'!C11:G11) -> 6085489.02 | D23: Actuals January - May | E23: =SUM('Data for Charts'!C16:G16) -> 2382900 | I23: Revenues: | J23: Jan - May | K23: Jan - May | L23: Budget
A24: Budget June - December | B24: =SUM('Data for Charts'!H68:N68) -> 10175786.3 | D24: Budget June - December | E24: =SUM('Data for Charts'!H72:N72) -> 3490864 | I24: OATT - Muni | J24: 2535250 | K24: =+K8 -> 2373004 | L24: =+K24-J24 -> -162246
A25: Forecast | B25: =+B23+B24 -> 16261275.32 | D25: Forecast | E25: =+E23+E24 -> 5873764 | I25: OATT - 3rd Party | J25: 8558896 | K25: =+K9 -> 7631784 | L25: =+K25-J25 -> -927112
A26: Budget | B26: =SUM('Data for Charts'!C68:N68) -> 17281407.55 | D26: Budget | E26: =SUM('Data for Charts'!C74:N74) -> 5884164 | I26: Sch 2 Recon | J26: 0 | K26: 0 | L26: 0
I27: Joint Party Settlement | J27: 0 | K27: =+K11 -> 1351866 | L27: 1351866
A28: Variance | B28: =+B25-B26 -> -1020132.226 | C28: =+B28/B26 -> -0.05903062141 | D28: Variance | E28: =+E25-E26 -> -10400 | F28: =+E28/E26 -> -0.001767455836 | J28: =SUM(J24:J27) -> 11094146 | K28: =SUM(K24:K27) -> 11356654 | L28: 262508
A30: ST PTP | D30: NF PTP | I30: Cost of Sales:
A32: Actuals January - May | B32: =SUM('Data for Charts'!C29:G29) -> 263315.5 | D32: Actuals January - May | E32: =SUM('Data for Charts'!C41:G41) -> 261763.87 | I32: ITO/RC | J32: 2146820 | K32: =+K16 -> 2197491 | L32: 50671
A33: Budget June - December | B33: =SUM('Data for Charts'!H82:N82) -> 105000 | D33: Budget June - December | E33: =SUM('Data for Charts'!H92:N92) -> 105000 | I33: Depancaking | J33: 3506235 | K33: =+K17 -> 3522775 | L33: 16540
A34: Forecast | B34: =+B32+B33 -> 368315.5 | D34: Forecast | E34: =+E32+E33 -> 366763.87 | J34: =SUM(J31:J33) -> 5653055 | K34: =SUM(K31:K33) -> 5720266 | L34: 67211
A35: Budget | B35: =SUM('Data for Charts'!C82:N82) -> 180000 | D35: Budget | E35: =SUM('Data for Charts'!C92:N92) -> 180000 | L35: 0
I36: Total Gross Margin | J36: =+J28-J34 -> 5441091 | K36: =+K28-K34 -> 5636388 | L36: 195297
A37: Variance | B37: =+B34-B35 -> 188315.5 | C37: =+B37/B35 -> 1.046197222 | D37: Variance | E37: =+E34-E35 -> 186763.87 | F37: =+E37/E35 -> 1.037577056
J38: Budget | K38: Forecast | L38: Forecast -
A39: Depancaking | D39: Joint Party Settlement | I39: Revenues: | J39: June - Dec | K39: June - Dec | L39: Budget
I40: OATT - Muni | J40: 4021025 | K40: =+L8 -> 4021025 | L40: =+K40-J40 -> 0
A41: Actuals January - May | B41: =SUM('Data for Charts'!C52:G52) -> 3401956.42 | D41: Actuals January - May | E41: =+K11 -> 1351866 | I41: OATT - 3rd Party | J41: 13850074 | K41: =+L9 -> 13532440 | L41: =+K41-J41 -> -317634
A42: Budget June - December | B42: =SUM('Data for Charts'!H99:N99) -> 5984643.32 | D42: Budget June - December | E42: =+L11 -> 651140 | I42: Sch 2 Recon | J42: 0 | K42: -54000 | L42: -54000
A43: Forecast | B43: =+B41+B42 -> 9386599.74 | D43: Forecast | E43: =+E41+E42 -> 2003006 | I43: Joint Party Settlement | J43: 0 | K43: =+L11 -> 651140 | L43: 651140
A44: Budget | B44: =SUM('Data for Charts'!C99:N99) -> 10097832.96 | D44: Budget | E44: 0 | J44: =SUM(J40:J43) -> 17871099 | K44: =SUM(K40:K43) -> 18150605 | L44: 279506
A46: Variance | B46: =+B43-B44 -> -711233.216 | D46: Variance | E46: =+E43-E44 -> 2003006 | I46: Cost of Sales:
A48: Total Variance | B48: =+B28+E28+B37+E37-B46+E46 -> 2058786.36 | I48: ITO/RC | J48: 3044092 | K48: =+L16 -> 3044092 | L48: =+K48-J48 -> 0
I49: Depancaking | J49: 5088240 | K49: =+L17 -> 5022453 | L49: -65787
J50: =SUM(J47:J49) -> 8132332 | K50: =SUM(K47:K49) -> 8066545 | L50: -65787
L51: 0
I52: Total Gross Margin | J52: =+J44-J50 -> 9738767 | K52: =+K44-K50 -> 10084060 | L52: 345293
A142: Actual | B142: LKE & Muni Load | C142: BREC Load | D142: EKPC Load | E142: KMPA Load | F142: Hoosier Load | G142: OMU Load | H142: TVA Load | I142: Benham
A143: January | B143: 6221.8 | C143: 8.5 | D143: 477 | E143: 103 | F143: 5 | G143: 107 | H143: 93 | I143: 2.4
A144: February | B144: 5780.15 | C144: 10.4 | D144: 439.2 | E144: 98 | F144: 4 | G144: 108 | H144: 82.6 | I144: 2
A145: March | B145: 4842.8 | C145: 9.2 | D145: 262.4 | E145: 83 | F145: 4 | G145: 96 | H145: 58.3 | I145: 1.3
A146: April | B146: 4791.3 | C146: 11.2 | D146: 229 | E146: 105 | F146: 4 | G146: 127 | H146: 41.8 | I146: 0.5
A147: May | B147: 5289.48 | C147: 10.3 | D147: 327 | E147: 123 | F147: 4 | G147: 144 | H147: 50.3 | I147: 0.7
A148: June
A149: July
A150: August
A151: September
A152: October
A153: November
A154: December
A156: Budget | B156: LKE & Muni Load | C156: BREC Load | D156: EKPC Load | E156: KMPA Load | F156: Hoosier Load | G156: OMU Load | H156: TVA Load | I156: Benham
A157: January | B157: 6432.423616 | C157: 16.4 | D157: 541.8429242 | E157: 118.52 | F157: 6 | G157: 130.18 | H157: 91.6 | I157: 2.45
A158: February | B158: 6248.103931 | C158: 12.93450241 | D158: 387.3032169 | E158: 103.4698413 | F158: 7.2 | G158: 114.2801527 | H158: 79.10909091 | I158: 3.644509517
A159: March | B159: 5605.885279 | C159: 11.13345024 | D159: 353.9150086 | E159: 87.47904762 | F159: 4.8 | G159: 101.3615267 | H159: 67.45090909 | I159: 2.463152757
A160: April | B160: 4912.275919 | C160: 9.942335233 | D160: 365.3623943 | E160: 72.42888889 | F160: 6 | G160: 92.4178626 | H160: 49.13090909 | I160: 2.66761835
A161: May | B161: 5842.941707 | C161: 15.22685956 | D161: 315.7570562 | E161: 116.6387302 | F161: 6 | G161: 156.0172519 | H161: 41.63636364 | I161: 1.711054173
A162: June
A163: July
A164: August
A165: September
A166: October
A167: November
A168: December
A170: Variance | B170: LKE & Muni Load | C170: BREC Load | D170: EKPC Load | E170: KMPA Load | F170: Hoosier Load | G170: OMU Load | H170: TVA Load | I170: Benham
A171: January | B171: =+B143-B157 -> -210.6236161 | C171: =+C143-C157 -> -7.9 | D171: -64.84292419 | E171: -15.52 | F171: -1 | G171: -23.18 | H171: 1.4 | I171: -0.05
A172: February | B172: =+B144-B158 -> -467.9539308 | C172: -2.534502411 | D172: 51.89678306 | E172: -5.46984127 | F172: -3.2 | G172: -6.280152672 | H172: 3.490909091 | I172: -1.644509517
A173: March | B173: =+B145-B159 -> -763.0852794 | C173: -1.933450241 | D173: -91.51500858 | E173: -4.479047619 | F173: -0.8 | G173: -5.361526718 | H173: -9.150909091 | I173: -1.163152757
A174: April | B174: =+B146-B160 -> -120.9759186 | C174: 1.257664767 | D174: -136.3623943 | E174: 32.57111111 | F174: -2 | G174: 34.5821374 | H174: -7.330909091 | I174: -2.16761835
A175: May | B175: =+B147-B161 -> -553.4617067 | C175: -4.926859565 | D175: 11.24294383 | E175: 6.361269841 | F175: -2 | G175: -12.01725191 | H175: 8.663636364 | I175: -1.011054173
A176: June | B176: =+B148-B162 -> 0 | C176: 0 | D176: 0 | E176: 0 | F176: 0 | G176: 0 | H176: 0 | I176: 0
A177: July | B177: =+B149-B163 -> 0 | C177: 0 | D177: 0 | E177: 0 | F177: 0 | G177: 0 | H177: 0 | I177: 0
A178: August | B178: =+B150-B164 -> 0 | C178: 0 | D178: 0 | E178: 0 | F178: 0 | G178: 0 | H178: 0 | I178: 0
A179: September | B179: =+B151-B165 -> 0 | C179: 0 | D179: 0 | E179: 0 | F179: 0 | G179: 0 | H179: 0 | I179: 0
A180: October | B180: =+B152-B166 -> 0 | C180: 0 | D180: 0 | E180: 0 | F180: 0 | G180: 0 | H180: 0 | I180: 0
A181: November | B181: =+B153-B167 -> 0 | C181: 0 | D181: 0 | E181: 0 | F181: 0 | G181: 0 | H181: 0 | I181: 0
A182: December | B182: =+B154-B168 -> 0 | C182: 0 | D182: 0 | E182: 0 | F182: 0 | G182: 0 | H182: 0 | I182: 0
A183: Total | B183: =SUM(B171:B182) -> -2116.100452 | C183: =SUM(C171:C182) -> -16.03714745 | D183: -229.5806002 | E183: 13.46349206 | F183: -9 | G183: -12.25679389 | H183: -2.927272727 | I183: -6.036334797

Sheet Waterfall Data (hidden)
B1: Values | C1: Ends | D1: Blank | E1: Up | F1: Down
A2: Budgeted 2016 Gross Margin | B2: =+Variances!J20 -> 15179849 | C2: =+B2 -> 15179849
A3: Variance through May | B3: =+Variances!L36 -> 195297 | D3: =MIN(SUM(B$2:B2),SUM(B$2:B3)) -> 15179849 | E3: =MAX(B3,0) -> 195297 | F3: =-MIN(B3,0) -> 0
A4: OATT Muni | B4: =+Variances!L40 -> 0 | D4: =MIN(SUM(B$2:B3),SUM(B$2:B4)) -> 15375146 | E4: =MAX(B4,0) -> 0 | F4: =-MIN(B4,0) -> 0
A5: OATT 3rd Party | B5: =+Variances!L41 -> -317634 | D5: =MIN(SUM(B$2:B4),SUM(B$2:B5)) -> 15057512 | E5: =MAX(B5,0) -> 0 | F5: =-MIN(B5,0) -> 317634
A6: Schedule 2 | B6: =+Variances!L42 -> -54000 | D6: =MIN(SUM(B$2:B5),SUM(B$2:B6)) -> 15003512 | E6: =MAX(B6,0) -> 0 | F6: =-MIN(B6,0) -> 54000
A7: Joint Party Settlement | B7: =+Variances!L43 -> 651140 | D7: =MIN(SUM(B$2:B6),SUM(B$2:B7)) -> 15003512 | E7: 651140 | F7: 0
A8: ITO/RC | B8: =+Variances!L48 -> 0 | D8: =MIN(SUM(B$2:B7),SUM(B$2:B8)) -> 15654652 | E8: 0 | F8: 0
A9: Depancaking | B9: =-Variances!L49 -> 65787 | D9: =MIN(SUM(B$2:B8),SUM(B$2:B9)) -> 15654652 | E9: 65787 | F9: 0
A10: Forecasted 2016 Gross Margin | C10: =SUM(B2:B9) -> 15720439

Sheet January (hidden)
O155: December 2016
O156: Total MVAR's Outside the Bandwidth | S156: 0
O157: Cost per MVAR | S157: 5
O158: Total Costs | S158: =+S156*S157 -> 0
O160: Schedule 2 Revenue Collected | S160: 0
O162: Over (Under) Collected | S162: =+S160-S158 -> 0
P163: LGE Portion | S163: =+'Schedule 2 data'!M136 -> 0
O165: MTD Over (Under) Collected
O166: Subject to refund to 3rd Parties | S166: =+S162-S163 -> 0
O179: YTD 2016
O180: Total MVAR's Outside the Bandwidth | S180: 0
O181: Cost per MVAR | S181: 5
O182: Total Costs | S182: =+S180*S181 -> 0
O184: Schedule 2 Revenue Collected | S184: =+'Schedule 2 data'!O80 -> 3220469.11
O186: Over (Under) Collected | S186: =+S184-S182 -> 3220469.11
P187: LGE Portion | S187: =+'Schedule 2 data'!O136 -> 1041981.753
O189: YTD Over (Under) Collected
O190: Subject to refund to 3rd Parties | S190: =+S186-S187 -> 2178487.357
O191: Interest
S192: =+S190+S191 -> 2178487.357

Sheet February (hidden)
O154: January 2017
O155: Total MVAR's Outside the Bandwidth | S155: =+'Schedule 2 data'!B35 -> 56814
O156: Cost per MVAR | S156: 5
O157: Total Costs | S157: =+S155*S156 -> 284070
O159: Schedule 2 Revenue Collected | S159: =+'Schedule 2 data'!B80 -> 536271
O161: Over (Under) Collected | S161: =+S159-S157 -> 252201
P162: LGE Portion | S162: =+'Schedule 2 data'!B136 -> 216999.4209
O164: MTD Over (Under) Collected
O165: Subject to refund to 3rd Parties | S165: =+S161-S162 -> 35201.57912
O176: YTD 2017
O177: Total MVAR's Outside the Bandwidth | S177: =+'Schedule 2 data'!O35 -> 404277
O178: Cost per MVAR | S178: 5
O179: Total Costs | S179: =+S177*S178 -> 2021385
O181: Schedule 2 Revenue Collected | S181: =+'Schedule 2 data'!O80 -> 3220469.11
O183: Over (Under) Collected | S183: =+S181-S179 -> 1199084.11
P184: LGE Portion | S184: =+'Schedule 2 data'!O136 -> 1041981.753
O186: YTD Over (Under) Collected
O187: Subject to refund to 3rd Parties | S187: =+S183-S184 -> 157102.3567
O188: Interest
S189: =+S187+S188 -> 157102.3567

Sheet March (hidden)
O154: February 2017
O155: Total MVAR's Outside the Bandwidth | S155: =+'Schedule 2 data'!C35 -> 22850
O156: Cost per MVAR | S156: 5
O157: Total Costs | S157: =+S155*S156 -> 114250
O159: Schedule 2 Revenue Collected | S159: =+'Schedule 2 data'!C80 -> 484083
O161: Over (Under) Collected | S161: =+S159-S157 -> 369833
P162: LGE Portion | S162: =+'Schedule 2 data'!C136 -> 320922.3275
O164: MTD Over (Under) Collected
O165: Subject to refund to 3rd Parties | S165: =+S161-S162 -> 48910.67253
O176: YTD 2017
O177: Total MVAR's Outside the Bandwidth | S177: =+'Schedule 2 data'!O35 -> 404277
O178: Cost per MVAR | S178: 5
O179: Total Costs | S179: =+S177*S178 -> 2021385
O181: Schedule 2 Revenue Collected | S181: =+'Schedule 2 data'!O80 -> 3220469.11
O183: Over (Under) Collected | S183: =+S181-S179 -> 1199084.11
P184: LGE Portion | S184: =+'Schedule 2 data'!O136 -> 1041981.753
O186: YTD Over (Under) Collected
O187: Subject to refund to 3rd Parties | S187: =+S183-S184 -> 157102.3567
O188: Interest | S188: =+'Schedule 2 data'!O201 -> 1422.69
S189: =+S187+S188 -> 158525.0467

Sheet April (hidden)
O145: March 2017
O146: Total MVAR's Outside the Bandwidth | S146: =+'Schedule 2 data'!D35 -> 22126
O147: Cost per MVAR | S147: 5
O148: Total Costs | S148: =+S146*S147 -> 110630
O150: Schedule 2 Revenue Collected | S150: =+'Schedule 2 data'!D80 -> 509006.11
O152: Over (Under) Collected | S152: =+S150-S148 -> 398376.11
P153: LGE Portion | S153: =+'Schedule 2 data'!D136 -> 348430.7851
O155: MTD Over (Under) Collected
O156: Subject to refund to 3rd Parties | S156: =+S152-S153 -> 49945.32488
O167: YTD 2017
O168: Total MVAR's Outside the Bandwidth | S168: =+'Schedule 2 data'!O35 -> 404277
O169: Cost per MVAR | S169: 5
O170: Total Costs | S170: =+S168*S169 -> 2021385
O172: Schedule 2 Revenue Collected | S172: =+'Schedule 2 data'!O80 -> 3220469.11
O174: Over (Under) Collected | S174: =+S172-S170 -> 1199084.11
P175: LGE Portion | S175: =+'Schedule 2 data'!O136 -> 1041981.753
O177: YTD Over (Under) Collected
O178: Subject to refund to 3rd Parties | S178: =+S174-S175 -> 157102.3567
O179: Interest | S179: =+'Schedule 2 data'!O201 -> 1422.69
S180: =+S178+S179 -> 158525.0467

Sheet May (hidden)
O145: April 2017
O146: Total MVAR's Outside the Bandwidth | S146: =+'Schedule 2 data'!E35 -> 23650
O147: Cost per MVAR | S147: 5
O148: Total Costs | S148: =+S146*S147 -> 118250
O150: Schedule 2 Revenue Collected | S150: =+'Schedule 2 data'!E80 -> 430502
O152: Over (Under) Collected | S152: =+S150-S148 -> 312252
P153: LGE Portion | S153: =+'Schedule 2 data'!E136 -> 277483.6331
O155: MTD Over (Under) Collected
O156: Subject to refund to 3rd Parties | S156: =+S152-S153 -> 34768.36689
O167: YTD 2017
O168: Total MVAR's Outside the Bandwidth | S168: =+'Schedule 2 data'!O35 -> 404277
O169: Cost per MVAR | S169: 5
O170: Total Costs | S170: =+S168*S169 -> 2021385
O172: Schedule 2 Revenue Collected | S172: =+'Schedule 2 data'!O80 -> 3220469.11
O174: Over (Under) Collected | S174: =+S172-S170 -> 1199084.11
P175: LGE Portion | S175: =+'Schedule 2 data'!O136 -> 1041981.753
O177: YTD Over (Under) Collected
O178: Subject to refund to 3rd Parties | S178: =+S174-S175 -> 157102.3567
O179: Interest | S179: =+'Schedule 2 data'!O201 -> 1422.69
S180: =+S178+S179 -> 158525.0467

Sheet June (hidden)
O145: May 2017
O146: Total MVAR's Outside the Bandwidth | S146: =+'Schedule 2 data'!F35 -> 25177
O147: Cost per MVAR | S147: 5
O148: Total Costs | S148: =+S146*S147 -> 125885
O150: Schedule 2 Revenue Collected | S150: =+'Schedule 2 data'!F80 -> 253941
O152: Over (Under) Collected | S152: =+S150-S148 -> 128056
P153: LGE Portion | S153: =+'Schedule 2 data'!F136 -> 109285.3447
O155: MTD Over (Under) Collected
O156: Subject to refund to 3rd Parties | S156: =+S152-S153 -> 18770.65531
O167: YTD 2017
O168: Total MVAR's Outside the Bandwidth | S168: =+'Schedule 2 data'!O35 -> 404277
O169: Cost per MVAR | S169: 5
O170: Total Costs | S170: =+S168*S169 -> 2021385
O172: Schedule 2 Revenue Collected | S172: =+'Schedule 2 data'!O80 -> 3220469.11
O174: Over (Under) Collected | S174: =+S172-S170 -> 1199084.11
P175: LGE Portion | S175: =+'Schedule 2 data'!O136 -> 1041981.753
O177: YTD Over (Under) Collected
O178: Subject to refund to 3rd Parties | S178: =+S174-S175 -> 157102.3567
O179: Interest | S179: =+'Schedule 2 data'!O201 -> 1422.69
S180: =+S178+S179 -> 158525.0467

Sheet July (hidden)
O145: June 2017
O146: Total MVAR's Outside the Bandwidth | S146: =+'Schedule 2 data'!G35 -> 40911
O147: Cost per MVAR | S147: 5
O148: Total Costs | S148: =+S146*S147 -> 204555
O150: Schedule 2 Revenue Collected | S150: =+'Schedule 2 data'!G80 -> 275165
O152: Over (Under) Collected | S152: =+S150-S148 -> 70610
P153: LGE Portion | S153: =+'Schedule 2 data'!G136 -> 62645.706
O155: MTD Over (Under) Collected
O156: Subject to refund to 3rd Parties | S156: =+S152-S153 -> 7964.294005
O167: YTD 2017
O168: Total MVAR's Outside the Bandwidth | S168: =+'Schedule 2 data'!O35 -> 404277
O169: Cost per MVAR | S169: 5
O170: Total Costs | S170: =+S168*S169 -> 2021385
O172: Schedule 2 Revenue Collected | S172: =+'Schedule 2 data'!O80 -> 3220469.11
O174: Over (Under) Collected | S174: =+S172-S170 -> 1199084.11
P175: LGE Portion | S175: =+'Schedule 2 data'!O136 -> 1041981.753
O177: YTD Over (Under) Collected
O178: Subject to refund to 3rd Parties | S178: =+S174-S175 -> 157102.3567
O179: Interest | S179: =+'Schedule 2 data'!O201 -> 1422.69
S180: =+S178+S179 -> 158525.0467

Sheet August (hidden)
O145: July 2017
O146: Total MVAR's Outside the Bandwidth | S146: =+'Schedule 2 data'!H35 -> 65043
O147: Cost per MVAR | S147: 5
O148: Total Costs | S148: =+S146*S147 -> 325215
O150: Schedule 2 Revenue Collected | S150: =+'Schedule 2 data'!H80 -> 292976
O152: Over (Under) Collected | S152: =+S150-S148 -> -32239
P153: LGE Portion | S153: =+'Schedule 2 data'!H136 -> -28583.04067
O155: MTD Over (Under) Collected
O156: Subject to refund to 3rd Parties | S156: =+S152-S153 -> -3655.959334
O167: YTD 2017
O168: Total MVAR's Outside the Bandwidth | S168: =+'Schedule 2 data'!O35 -> 404277
O169: Cost per MVAR | S169: 5
O170: Total Costs | S170: =+S168*S169 -> 2021385
O172: Schedule 2 Revenue Collected | S172: =+'Schedule 2 data'!O80 -> 3220469.11
O174: Over (Under) Collected | S174: =+S172-S170 -> 1199084.11
P175: LGE Portion | S175: =+'Schedule 2 data'!O136 -> 1041981.753
O177: YTD Over (Under) Collected
O178: Subject to refund to 3rd Parties | S178: =+S174-S175 -> 157102.3567
O179: Interest | S179: =+'Schedule 2 data'!O201 -> 1422.69
S180: =+S178+S179 -> 158525.0467

Sheet Sept (hidden)
O145: August 2017
O146: Total MVAR's Outside the Bandwidth | S146: =+'Schedule 2 data'!I35 -> 60106
O147: Cost per MVAR | S147: 5
O148: Total Costs | S148: =+S146*S147 -> 300530
O150: Schedule 2 Revenue Collected | S150: =+'Schedule 2 data'!I80 -> 140572
O152: Over (Under) Collected | S152: =+S150-S148 -> -159958
P153: LGE Portion | S153: =+'Schedule 2 data'!I136 -> -142532.4138
O155: MTD Over (Under) Collected
O156: Subject to refund to 3rd Parties | S156: =+S152-S153 -> -17425.58619
O167: YTD 2017
O168: Total MVAR's Outside the Bandwidth | S168: =+'Schedule 2 data'!O35 -> 404277
O169: Cost per MVAR | S169: 5
O170: Total Costs | S170: =+S168*S169 -> 2021385
O172: Schedule 2 Revenue Collected | S172: =+'Schedule 2 data'!O80 -> 3220469.11
O174: Over (Under) Collected | S174: =+S172-S170 -> 1199084.11
P175: LGE Portion | S175: =+'Schedule 2 data'!O136 -> 1041981.753
O177: YTD Over (Under) Collected
O178: Subject to refund to 3rd Parties | S178: =+S174-S175 -> 157102.3567
O179: Interest | S179: =+'Schedule 2 data'!O201 -> 1422.69
S180: =+S178+S179 -> 158525.0467

Sheet Oct (hidden)
O146: September 2017
O147: Total MVAR's Outside the Bandwidth | S147: =+'Schedule 2 data'!J35 -> 27157
O148: Cost per MVAR | S148: 5
O149: Total Costs | S149: =+S147*S148 -> 135785
O151: Schedule 2 Revenue Collected | S151: =+'Schedule 2 data'!J80 -> 131591
O153: Over (Under) Collected | S153: =+S151-S149 -> -4194
P154: LGE Portion | S154: =+'Schedule 2 data'!J136 -> -3734.742443
O156: MTD Over (Under) Collected
O157: Subject to refund to 3rd Parties | S157: =+S153-S154 -> -459.2575573
O168: YTD 2017
O169: Total MVAR's Outside the Bandwidth | S169: =+'Schedule 2 data'!O35 -> 404277
O170: Cost per MVAR | S170: 5
O171: Total Costs | S171: =+S169*S170 -> 2021385
O173: Schedule 2 Revenue Collected | S173: =+'Schedule 2 data'!O80 -> 3220469.11
O175: Over (Under) Collected | S175: =+S173-S171 -> 1199084.11
P176: LGE Portion | S176: =+'Schedule 2 data'!O136 -> 1041981.753
O178: YTD Over (Under) Collected
O179: Subject to refund to 3rd Parties | S179: =+S175-S176 -> 157102.3567
O180: Interest | S180: =+'Schedule 2 data'!O201 -> 1422.69
S181: =+S179+S180 -> 158525.0467

Sheet Nov (hidden)
O145: October 2017
O146: Total MVAR's Outside the Bandwidth | S146: =+'Schedule 2 data'!L35 -> 32827
O147: Cost per MVAR | S147: 5
O148: Total Costs | S148: =+S146*S147 -> 164135
O150: Schedule 2 Revenue Collected | S150: =+'Schedule 2 data'!L80 -> 56041
O152: Over (Under) Collected | S152: =+S150-S148 -> -108094
P153: LGE Portion | S153: =+'Schedule 2 data'!L136 -> -94282.82114
O155: MTD Over (Under) Collected
O156: Subject to refund to 3rd Parties | S156: =+S152-S153 -> -13811.17886
O167: YTD 2017
O168: Total MVAR's Outside the Bandwidth | S168: =+'Schedule 2 data'!N35 -> 404277
O169: Cost per MVAR | S169: 5
O170: Total Costs | S170: =+S168*S169 -> 2021385
O172: Schedule 2 Revenue Collected | S172: =+'Schedule 2 data'!O80 -> 3220469.11
O174: Over (Under) Collected | S174: =+S172-S170 -> 1199084.11
P175: LGE Portion | S175: =SUM('Schedule 2 data'!B136:M136) -> 1041981.753
O177: YTD Over (Under) Collected
O178: Subject to refund to 3rd Parties | S178: =+S174-S175 -> 157102.3567
O179: Interest | S179: =+'Schedule 2 data'!O201 -> 1422.69
S180: =+S178+S179 -> 158525.0467

Sheet Dec (hidden)
O145: November 2017
O146: Total MVAR's Outside the Bandwidth | S146: =+'Schedule 2 data'!L35 -> 32827
O147: Cost per MVAR | S147: 5
O148: Total Costs | S148: =+S146*S147 -> 164135
O150: Schedule 2 Revenue Collected | S150: =+'Schedule 2 data'!L80 -> 56041
O152: Over (Under) Collected | S152: =+S150-S148 -> -108094
P153: LGE Portion | S153: =+'Schedule 2 data'!L136 -> -94282.82114
O155: MTD Over (Under) Collected
O156: Subject to refund to 3rd Parties | S156: =+S152-S153 -> -13811.17886
O167: YTD 2017
O168: Total MVAR's Outside the Bandwidth | S168: =+'Schedule 2 data'!N35 -> 404277
O169: Cost per MVAR | S169: 5
O170: Total Costs | S170: =+S168*S169 -> 2021385
O172: Schedule 2 Revenue Collected | S172: =+'Schedule 2 data'!O80 -> 3220469.11
O174: Over (Under) Collected | S174: =+S172-S170 -> 1199084.11
P175: LGE Portion | S175: =+'Schedule 2 data'!O136 -> 1041981.753
O177: YTD Over (Under) Collected
O178: Subject to refund to 3rd Parties | S178: =+S174-S175 -> 157102.3567
O179: Interest | S179: =+'Schedule 2 data'!O201 -> 1422.69
S180: =+S178+S179 -> 158525.0467
